Workbook

Sheet Menu
F2: This file contains the excel tables of the rates contained in the published Schedule fo Standard Prices for Eskom tariffs.
F4: 2017/18 SCHEDULE OF STANDARD PRICES FOR ESKOM TARIFFS 1 April 2017 to 31 March 2018 for Non-Local Authority supplies, and 1 July 2017 to 30 June 2018 for Local Authority supplies.
H6: Click on the arrow to select the tariff
H7: Non-local authority | J7: Local Authority
F8: ê | G8: WEPS | H8: u | J8: u
F9: ê | G9: Megaflex | H9: u | J9: u
F10: ê | G10: Nightsave large Urban | H10: u | J10: u
F11: ê | G11: Miniflex | H11: u | J11: u
F12: ê | G12: Nightsave small | H12: u | J12: u
F13: ê | G13: Businessrate | H13: u | J13: u
F14: ê | G14: Public lighting | H14: u | J14: u
F15: ê | G15: Ruraflex | H15: u | J15: u
F16: ê | G16: Nightsave rural | H16: u | J16: u
F17: ê | G17: Landrate tariffs | H17: u | J17: u
F18: ê | G18: Homepower tariffs | H18: u | J18: u
F19: ê | G19: Homelight tariffs | H19: u | J19: n/a
F20: ê | G20: Excess NCC charges | H20: u | J20: u
F21: ê | G21: Loss factors | H21: u | J21: u
F22: ê | G22: Transmission use of system charges | H22: u | J22: n/a
F23: ê | G23: Distribution use of system charges | H23: u | J23: n/a
F24: ê | G24: Genflex Urban | H24: u | J24: n/a
F25: ê | G25: Genflex Rural | H25: u | J25: n/a
F26: ê | G26: Muniflex Urban | H26: n/a | J26: u
F27: ê | G27: Muniflex Rural | H27: n/a | J27: u
F28: ê | G28: Homeflex | H28: u | J28: n/a

Sheet WEPS inc
G1: Back to menu
A2: Non-municipal | G2: WEPS | R2: Non-local authority
J4: Active energy charge [c/kWh] | V4: Transmission network charges [R/kVA/m]
H5: Transmission zone | J5: High demand season [Jun - Aug] | P5: Low demand season [Sep - May]
I6: Voltage | J6: Peak | L6: Standard | N6: Off Peak | P6: Peak | R6: Standard | T6: Off Peak
A7: Tariff | B7: Tariff nameBillcode | C7: Tx zone | D7: Voltage | E7: Billcode | K7: VAT incl | M7: VAT incl | O7: VAT incl | Q7: VAT incl | S7: VAT incl | U7: VAT incl | W7: VAT incl
A8: WEPS | B8: We | C8: 0 | D8: 1 | E8: =B8&C8&D8&IF($A$2="Non-municipal","N",IF($A$2="Municiple","Y","error")) -> We01N | H8: ≤ 300km | I8: < 500V | J8: 278.33 | K8: =ROUND(J8 * (1 + VAT), 2) -> 317.3 | L8: 84.68 | M8: =ROUND(L8 * (1 + VAT), 2) -> 96.54 | N8: 46.24 | O8: =ROUND(N8 * (1 + VAT), 2) -> 52.71 | P8: 91.14 | Q8: =ROUND(P8 * (1 + VAT), 2) -> 103.9 | R8: 62.89 | S8: =ROUND(R8 * (1 + VAT), 2) -> 71.69 | T8: 40.09 | U8: =ROUND(T8 * (1 + VAT), 2) -> 45.7 | V8: 7.96 | W8: =ROUND(V8 * (1 + VAT), 2) -> 9.07
A9: WEPS | B9: We | C9: 0 | D9: 2 | E9: We02N | I9: ≥ 500V & < 66kV | J9: 273.96 | K9: =ROUND(J9 * (1 + VAT), 2) -> 312.31 | L9: 83 | M9: 94.62 | N9: 45.07 | O9: 51.38 | P9: 89.36 | Q9: 101.87 | R9: 61.51 | S9: 70.12 | T9: 39.02 | U9: 44.48 | V9: 7.28 | W9: 8.3
A10: WEPS | B10: We | C10: 0 | D10: 3 | E10: We03N | I10: ≥ 66kV & ≤ 132kV | J10: 265.29 | K10: 302.43 | L10: 80.36 | M10: 91.61 | N10: 43.65 | O10: 49.76 | P10: 86.55 | Q10: 98.67 | R10: 59.56 | S10: 67.9 | T10: 37.79 | U10: 43.08 | V10: 7.09 | W10: 8.08
A11: WEPS | B11: We | C11: 0 | D11: 4 | E11: We04N | I11: > 132kV* | J11: 250.03 | K11: 285.03 | L11: 75.74 | M11: 86.34 | N11: 41.14 | O11: 46.9 | P11: 81.58 | Q11: 93 | R11: 56.13 | S11: 63.99 | T11: 35.62 | U11: 40.61 | V11: 8.95 | W11: 10.2
A12: WEPS | B12: We | C12: 1 | D12: 1 | E12: We11N | H12: > 300km and ≤ 600km | I12: < 500V | J12: 280.6 | K12: 319.88 | L12: 85.02 | M12: 96.92 | N12: 46.16 | O12: 52.62 | P12: 91.54 | Q12: 104.36 | R12: 63.02 | S12: 71.84 | T12: 39.98 | U12: 45.58 | V12: 8.02 | W12: 9.14
A13: WEPS | B13: We | C13: 1 | D13: 2 | E13: We12N | I13: ≥ 500V & < 66kV | J13: 276.7 | K13: 315.44 | L13: 83.82 | M13: 95.55 | N13: 45.52 | O13: 51.89 | P13: 90.27 | Q13: 102.91 | R13: 62.12 | S13: 70.82 | T13: 39.41 | U13: 44.93 | V13: 7.35 | W13: 8.38
A14: WEPS | B14: We | C14: 1 | D14: 3 | E14: We13N | I14: ≥ 66kV & ≤ 132kV | J14: 267.9 | K14: 305.41 | L14: 81.15 | M14: 92.51 | N14: 44.06 | O14: 50.23 | P14: 87.39 | Q14: 99.62 | R14: 60.14 | S14: 68.56 | T14: 38.15 | U14: 43.49 | V14: 7.14 | W14: 8.14
A15: WEPS | B15: We | C15: 1 | D15: 4 | E15: We14N | I15: > 132kV* | J15: 252.53 | K15: 287.88 | L15: 76.51 | M15: 87.22 | N15: 41.52 | O15: 47.33 | P15: 82.36 | Q15: 93.89 | R15: 56.69 | S15: 64.63 | T15: 35.95 | U15: 40.98 | V15: 9.04 | W15: 10.31
A16: WEPS | B16: We | C16: 2 | D16: 1 | E16: We21N | H16: > 600km and ≤ 900km | I16: < 500V | J16: 283.4 | K16: 323.08 | L16: 85.85 | M16: 97.87 | N16: 46.6 | O16: 53.12 | P16: 92.45 | Q16: 105.39 | R16: 63.63 | S16: 72.54 | T16: 40.35 | U16: 46 | V16: 8.12 | W16: 9.26
A17: WEPS | B17: We | C17: 2 | D17: 2 | E17: We22N | I17: ≥ 500V & < 66kV | J17: 279.48 | K17: 318.61 | L17: 84.67 | M17: 96.52 | N17: 45.98 | O17: 52.42 | P17: 91.16 | Q17: 103.92 | R17: 62.75 | S17: 71.54 | T17: 39.81 | U17: 45.38 | V17: 7.41 | W17: 8.45
A18: WEPS | B18: We | C18: 2 | D18: 3 | E18: We23N | I18: ≥ 66kV & ≤ 132kV | J18: 270.63 | K18: 308.52 | L18: 81.98 | M18: 93.46 | N18: 44.51 | O18: 50.74 | P18: 88.27 | Q18: 100.63 | R18: 60.76 | S18: 69.27 | T18: 38.54 | U18: 43.94 | V18: 7.18 | W18: 8.19
A19: WEPS | B19: We | C19: 2 | D19: 4 | E19: We24N | I19: > 132kV* | J19: 255.08 | K19: 290.79 | L19: 77.26 | M19: 88.08 | N19: 41.97 | O19: 47.85 | P19: 83.21 | Q19: 94.86 | R19: 57.26 | S19: 65.28 | T19: 36.34 | U19: 41.43 | V19: 9.17 | W19: 10.45
A20: WEPS | B20: We | C20: 3 | D20: 1 | E20: We31N | H20: > 900km | I20: < 500V | J20: 286.25 | K20: 326.33 | L20: 86.74 | M20: 98.88 | N20: 47.09 | O20: 53.68 | P20: 93.39 | Q20: 106.46 | R20: 64.26 | S20: 73.26 | T20: 40.79 | U20: 46.5 | V20: 8.16 | W20: 9.3
A21: WEPS | B21: We | C21: 3 | D21: 2 | E21: We32N | I21: ≥ 500V & < 66kV | J21: 282.26 | K21: 321.78 | L21: 85.5 | M21: 97.47 | N21: 46.41 | O21: 52.91 | P21: 92.06 | Q21: 104.95 | R21: 63.35 | S21: 72.22 | T21: 40.2 | U21: 45.83 | V21: 7.5 | W21: 8.55
A22: WEPS | B22: We | C22: 3 | D22: 3 | E22: We33N | I22: ≥ 66kV & ≤ 132kV | J22: 273.34 | K22: 311.61 | L22: 82.8 | M22: 94.39 | N22: 44.96 | O22: 51.25 | P22: 89.16 | Q22: 101.64 | R22: 61.37 | S22: 69.96 | T22: 38.93 | U22: 44.38 | V22: 7.25 | W22: 8.27
A23: WEPS | B23: We | C23: 3 | D23: 4 | E23: We34N | I23: > 132kV* | J23: 257.56 | K23: 293.62 | L23: 78.06 | M23: 88.99 | N23: 42.41 | O23: 48.35 | P23: 84.07 | Q23: 95.84 | R23: 57.88 | S23: 65.98 | T23: 36.74 | U23: 41.88 | V23: 9.24 | W23: 10.53
I24: * 132 kV or Transmission connected
H25: Distribution network charges
H26: Voltage | J26: Network capacity charge [R/kVA/m] | L26: Network demand charge [R/kVA/m] | N26: Urban low voltage subsidy charge [R/kVA/m]
Q27: Voltage | S27: Ancillary service charge [c/kWh]
A28: Tariff | B28: Tariff nameBillcode | C28: Tx zone | D28: Voltage | E28: Billcode | K28: VAT incl | M28: VAT incl | O28: VAT incl | T28: VAT incl
A29: WEPS | B29: We | C29: 0 | D29: 1 | E29: We01N | H29: < 500V | J29: 15.82 | K29: =ROUND(J29 * (1 + VAT), 2) -> 18.03 | L29: 30 | M29: =ROUND(L29 * (1 + VAT), 2) -> 34.2 | N29: 0 | O29: =ROUND(N29 * (1 + VAT), 2) -> 0 | Q29: < 500V | S29: 0.37 | T29: =ROUND(S29 * (1 + VAT), 2) -> 0.42
A30: WEPS | B30: We | C30: 0 | D30: 2 | E30: We02N | H30: ≥ 500V & < 66kV | J30: 14.51 | K30: =ROUND(J30 * (1 + VAT), 2) -> 16.54 | L30: 27.52 | M30: =ROUND(L30 * (1 + VAT), 2) -> 31.37 | N30: 0 | O30: =ROUND(N30 * (1 + VAT), 2) -> 0 | Q30: ≥ 500V & < 66kV | S30: 0.36 | T30: =ROUND(S30 * (1 + VAT), 2) -> 0.41
A31: WEPS | B31: We | C31: 0 | D31: 3 | E31: We03N | H31: ≥ 66kV & ≤ 132kV | J31: 5.18 | K31: =ROUND(J31 * (1 + VAT), 2) -> 5.91 | L31: 9.6 | M31: =ROUND(L31 * (1 + VAT), 2) -> 10.94 | N31: 12.78 | O31: =ROUND(N31 * (1 + VAT), 2) -> 14.57 | Q31: ≥ 66kV & ≤ 132kV | S31: 0.34 | T31: =ROUND(S31 * (1 + VAT), 2) -> 0.39
A32: WEPS | B32: We | C32: 0 | D32: 4 | E32: We04N | H32: > 132kV / Transmission connected | J32: 0 | K32: =ROUND(J32 * (1 + VAT), 2) -> 0 | L32: 0 | M32: =ROUND(L32 * (1 + VAT), 2) -> 0 | N32: 12.78 | O32: =ROUND(N32 * (1 + VAT), 2) -> 14.57 | Q32: > 132kV / Transmission connected | S32: 0.32 | T32: =ROUND(S32 * (1 + VAT), 2) -> 0.36
H34: Customer categories | J34: Service charge [R/account/day] | L34: Administration charge [R/POD/day] | Q34: Reactive energy charge [c/kVArh]
A36: Tariff | B36: Tariff nameBillcode | C36: Tx zone | D36: Voltage | E36: Billcode | K36: VAT incl | M36: VAT incl | Q36: High season | S36: Low season
A37: WEPS | B37: We | C37: 0 | D37: 1 | E37: We01N | H37: ≤ 100 kVA | J37: 12.92 | K37: =ROUND(J37 * (1 + VAT), 2) -> 14.73 | L37: 2.84 | M37: =ROUND(L37 * (1 + VAT), 2) -> 3.24 | R37: VAT incl | T37: VAT incl
A38: WEPS | B38: We | C38: 0 | D38: 1 | E38: We01N | H38: > 100 kVA & ≤ 500 kVA | J38: 59.03 | K38: =ROUND(J38 * (1 + VAT), 2) -> 67.29 | L38: 16.55 | M38: =ROUND(L38 * (1 + VAT), 2) -> 18.87 | Q38: 12.8 | R38: =ROUND(Q38 * (1 + VAT), 2) -> 14.59 | S38: 0 | T38: =ROUND(S38 * (1 + VAT), 2) -> 0
A39: WEPS | B39: We | C39: 0 | D39: 1 | E39: We01N | H39: > 500 kVA & ≤ 1 MVA | J39: 181.66 | K39: =ROUND(J39 * (1 + VAT), 2) -> 207.09 | L39: 32.88 | M39: =ROUND(L39 * (1 + VAT), 2) -> 37.48
A40: WEPS | B40: We | C40: 0 | D40: 1 | E40: We01N | H40: > 1 MVA | J40: 181.66 | K40: =ROUND(J40 * (1 + VAT), 2) -> 207.09 | L40: 81.87 | M40: =ROUND(L40 * (1 + VAT), 2) -> 93.33
A41: WEPS | B41: We | C41: 0 | D41: 1 | E41: We01N | H41: Key customers | J41: 3559.79 | K41: =ROUND(J41 * (1 + VAT), 2) -> 4058.16 | L41: 113.69 | M41: =ROUND(L41 * (1 + VAT), 2) -> 129.61
H44: Electrification and rural network subsidy charge [c/kWh] | J44: Affordability subsidy charge [c/kWh] Only payable by non-local authority tariffs
A47: Tariff | B47: Tariff nameBillcode | C47: Tx zone | D47: Voltage | E47: Billcode | I47: VAT incl | K47: VAT incl
A48: WEPS | B48: We | C48: 0 | D48: 1 | E48: We01N | H48: 7.08 | I48: =ROUND(H48 * (1 + VAT), 2) -> 8.07 | J48: 2.87 | K48: =ROUND(J48 * (1 + VAT), 2) -> 3.27
H51: Active energy charge excluding losses [c/kWh]
H52: High demand season [Jun - Aug] | N52: Low demand season [Sep - May]
H53: Peak | J53: Standard | L53: Off Peak | N53: Peak | P53: Standard | R53: Off Peak
A54: Tariff | B54: Tariff nameBillcode | C54: Tx zone | D54: Voltage | E54: Billcode | I54: VAT incl | K54: VAT incl | M54: VAT incl | O54: VAT incl | Q54: VAT incl | S54: VAT incl
A55: WEPS | B55: We | C55: 0 | D55: 1 | E55: We01N | H55: =ROUND(J11/'Loss Factors'!$T$6, 2) -> 247.38 | I55: =ROUND(H55 * (1 + VAT), 2) -> 282.01 | J55: =ROUND(L11/'Loss Factors'!$T$6, 2) -> 74.94 | K55: =ROUND(J55 * (1 + VAT), 2) -> 85.43 | L55: =ROUND(N11/'Loss Factors'!$T$6, 2) -> 40.7 | M55: =ROUND(L55 * (1 + VAT), 2) -> 46.4 | N55: =ROUND(P11/'Loss Factors'!$T$6, 2) -> 80.72 | O55: =ROUND(N55 * (1 + VAT), 2) -> 92.02 | P55: =ROUND(R11/'Loss Factors'!$T$6, 2) -> 55.54 | Q55: =ROUND(P55 * (1 + VAT), 2) -> 63.32 | R55: =ROUND(T11/'Loss Factors'!$T$6, 2) -> 35.24 | S55: =ROUND(R55 * (1 + VAT), 2) -> 40.17
H57: Active energy charge excluding losses and enviromental levy [c/kWh]
H58: High demand season [Jun - Aug] | N58: Low demand season [Sep - May]
H59: Peak | J59: Standard | L59: Off Peak | N59: Peak | P59: Standard | R59: Off Peak
A60: Tariff | B60: Tariff nameBillcode | C60: Tx zone | D60: Voltage | E60: Billcode | I60: VAT incl | K60: VAT incl | M60: VAT incl | O60: VAT incl | Q60: VAT incl | S60: VAT incl
A61: WEPS | B61: We | C61: 0 | D61: 1 | E61: We01N | H61: =H55-ROUND('Env levy'!$C$8,2) -> 243.89 | I61: =ROUND(H61 * (1 + VAT), 2) -> 278.03 | J61: =J55-ROUND('Env levy'!$C$8,2) -> 71.45 | K61: =ROUND(J61 * (1 + VAT), 2) -> 81.45 | L61: =L55-ROUND('Env levy'!$C$8,2) -> 37.21 | M61: =ROUND(L61 * (1 + VAT), 2) -> 42.42 | N61: =N55-ROUND('Env levy'!$C$8,2) -> 77.23 | O61: =ROUND(N61 * (1 + VAT), 2) -> 88.04 | P61: =P55-ROUND('Env levy'!$C$8,2) -> 52.05 | Q61: =ROUND(P61 * (1 + VAT), 2) -> 59.34 | R61: =R55-ROUND('Env levy'!$C$8,2) -> 31.75 | S61: =ROUND(R61 * (1 + VAT), 2) -> 36.2

Sheet WEPS Munic inc
G1: Back to menu
A2: Municiple | G2: WEPS | R2: Local authority
J4: Active energy charge [c/kWh] | V4: Transmission network charges [R/kVA/m]
H5: Transmission zone | J5: High demand season [Jun - Aug] | P5: Low demand season [Sep - May]
I6: Voltage | J6: Peak | L6: Standard | N6: Off Peak | P6: Peak | R6: Standard | T6: Off Peak
A7: Tariff | B7: Tariff nameBillcode | C7: Tx zone | D7: Voltage | E7: Billcode | K7: VAT incl | M7: VAT incl | O7: VAT incl | Q7: VAT incl | S7: VAT incl | U7: VAT incl | W7: VAT incl
A8: WEPS | B8: We | C8: 0 | D8: 1 | E8: =B8&C8&D8&IF($A$2="Non-municipal","N",IF($A$2="Municiple","Y","error")) -> We01Y | H8: ≤ 300km | I8: < 500V | J8: 279.71 | K8: =ROUND(J8 * (1 + VAT), 2) -> 318.87 | L8: 85.11 | M8: =ROUND(L8 * (1 + VAT), 2) -> 97.03 | N8: 46.44 | O8: =ROUND(N8 * (1 + VAT), 2) -> 52.94 | P8: 91.58 | Q8: =ROUND(P8 * (1 + VAT), 2) -> 104.4 | R8: 63.2 | S8: =ROUND(R8 * (1 + VAT), 2) -> 72.05 | T8: 40.28 | U8: =ROUND(T8 * (1 + VAT), 2) -> 45.92 | V8: 7.79 | W8: =ROUND(V8 * (1 + VAT), 2) -> 8.88
A9: WEPS | B9: We | C9: 0 | D9: 2 | E9: =B9&C9&D9&IF($A$2="Non-municipal","N",IF($A$2="Municiple","Y","error")) -> We02Y | I9: ≥ 500V & < 66kV | J9: 275.3 | K9: 313.84 | L9: 83.41 | M9: 95.09 | N9: 45.29 | O9: 51.63 | P9: 89.81 | Q9: 102.38 | R9: 61.81 | S9: 70.46 | T9: 39.22 | U9: 44.71 | V9: 7.11 | W9: 8.11
A10: WEPS | B10: We | C10: 0 | D10: 3 | E10: We03Y | I10: ≥ 66kV & ≤ 132kV | J10: 266.61 | K10: 303.94 | L10: 80.76 | M10: 92.07 | N10: 43.86 | O10: 50 | P10: 86.97 | Q10: 99.15 | R10: 59.87 | S10: 68.25 | T10: 37.97 | U10: 43.29 | V10: 6.92 | W10: 7.89
A11: WEPS | B11: We | C11: 0 | D11: 4 | E11: We04Y | I11: > 132kV* | J11: 251.27 | K11: 286.45 | L11: 76.12 | M11: 86.78 | N11: 41.33 | O11: 47.12 | P11: 81.96 | Q11: 93.43 | R11: 56.41 | S11: 64.31 | T11: 35.79 | U11: 40.8 | V11: 8.76 | W11: 9.99
A12: WEPS | B12: We | C12: 1 | D12: 1 | E12: We11Y | H12: > 300km and ≤ 600km | I12: < 500V | J12: 281.99 | K12: 321.47 | L12: 85.43 | M12: 97.39 | N12: 46.38 | O12: 52.87 | P12: 91.99 | Q12: 104.87 | R12: 63.33 | S12: 72.2 | T12: 40.17 | U12: 45.79 | V12: 7.83 | W12: 8.93
A13: WEPS | B13: We | C13: 1 | D13: 2 | E13: We12Y | I13: ≥ 500V & < 66kV | J13: 278.05 | K13: 316.98 | L13: 84.23 | M13: 96.02 | N13: 45.74 | O13: 52.14 | P13: 90.71 | Q13: 103.41 | R13: 62.43 | S13: 71.17 | T13: 39.6 | U13: 45.14 | V13: 7.18 | W13: 8.19
A14: WEPS | B14: We | C14: 1 | D14: 3 | E14: We13Y | I14: ≥ 66kV & ≤ 132kV | J14: 269.22 | K14: 306.91 | L14: 81.55 | M14: 92.97 | N14: 44.28 | O14: 50.48 | P14: 87.82 | Q14: 100.11 | R14: 60.44 | S14: 68.9 | T14: 38.33 | U14: 43.7 | V14: 6.97 | W14: 7.95
A15: WEPS | B15: We | C15: 1 | D15: 4 | E15: We14Y | I15: > 132kV* | J15: 253.77 | K15: 289.3 | L15: 76.89 | M15: 87.65 | N15: 41.74 | O15: 47.58 | P15: 82.77 | Q15: 94.36 | R15: 56.98 | S15: 64.96 | T15: 36.14 | U15: 41.2 | V15: 8.84 | W15: 10.08
A16: WEPS | B16: We | C16: 2 | D16: 1 | E16: We21Y | H16: > 600km and ≤ 900km | I16: < 500V | J16: 284.8 | K16: 324.67 | L16: 86.28 | M16: 98.36 | N16: 46.84 | O16: 53.4 | P16: 92.9 | Q16: 105.91 | R16: 63.95 | S16: 72.9 | T16: 40.57 | U16: 46.25 | V16: 7.93 | W16: 9.04
A17: WEPS | B17: We | C17: 2 | D17: 2 | E17: We22Y | I17: ≥ 500V & < 66kV | J17: 280.85 | K17: 320.17 | L17: 85.07 | M17: 96.98 | N17: 46.2 | O17: 52.67 | P17: 91.63 | Q17: 104.46 | R17: 63.03 | S17: 71.85 | T17: 40 | U17: 45.6 | V17: 7.24 | W17: 8.25
A18: WEPS | B18: We | C18: 2 | D18: 3 | E18: We23Y | I18: ≥ 66kV & ≤ 132kV | J18: 271.96 | K18: 310.03 | L18: 82.37 | M18: 93.9 | N18: 44.73 | O18: 50.99 | P18: 88.69 | Q18: 101.11 | R18: 61.04 | S18: 69.59 | T18: 38.72 | U18: 44.14 | V18: 7.03 | W18: 8.01
A19: WEPS | B19: We | C19: 2 | D19: 4 | E19: We24Y | I19: > 132kV* | J19: 256.32 | K19: 292.2 | L19: 77.66 | M19: 88.53 | N19: 42.16 | O19: 48.06 | P19: 83.62 | Q19: 95.33 | R19: 57.55 | S19: 65.61 | T19: 36.51 | U19: 41.62 | V19: 8.96 | W19: 10.21
A20: WEPS | B20: We | C20: 3 | D20: 1 | E20: We31Y | H20: > 900km | I20: < 500V | J20: 287.66 | K20: 327.93 | L20: 87.15 | M20: 99.35 | N20: 47.33 | O20: 53.96 | P20: 93.84 | Q20: 106.98 | R20: 64.58 | S20: 73.62 | T20: 40.98 | U20: 46.72 | V20: 7.97 | W20: 9.09
A21: WEPS | B21: We | C21: 3 | D21: 2 | E21: We32Y | I21: ≥ 500V & < 66kV | J21: 283.66 | K21: 323.37 | L21: 85.92 | M21: 97.95 | N21: 46.66 | O21: 53.19 | P21: 92.52 | Q21: 105.47 | R21: 63.68 | S21: 72.6 | T21: 40.38 | U21: 46.03 | V21: 7.31 | W21: 8.33
A22: WEPS | B22: We | C22: 3 | D22: 3 | E22: We33Y | I22: ≥ 66kV & ≤ 132kV | J22: 274.7 | K22: 313.16 | L22: 83.22 | M22: 94.87 | N22: 45.19 | O22: 51.52 | P22: 89.6 | Q22: 102.14 | R22: 61.66 | S22: 70.29 | T22: 39.12 | U22: 44.6 | V22: 7.08 | W22: 8.07
A23: WEPS | B23: We | C23: 3 | D23: 4 | E23: We34Y | I23: > 132kV* | J23: 258.84 | K23: 295.08 | L23: 78.45 | M23: 89.43 | N23: 42.63 | O23: 48.6 | P23: 84.48 | Q23: 96.31 | R23: 58.15 | S23: 66.29 | T23: 36.91 | U23: 42.08 | V23: 9.03 | W23: 10.29
I24: * 132 kV or Transmission connected
H25: Distribution network charges
H26: Voltage | J26: Network capacity charge [R/kVA/m] | L26: Network demand charge [R/kVA/m] | N26: Urban low voltage subsidy charge [R/kVA/m]
Q27: Voltage | S27: Ancillary service charge [c/kWh]
A28: Tariff | B28: Tariff nameBillcode | C28: Tx zone | D28: Voltage | E28: Billcode | K28: VAT incl | M28: VAT incl | O28: VAT incl | T28: VAT incl
A29: WEPS | B29: We | C29: 0 | D29: 1 | E29: =B29&C29&D29&IF($A$2="Non-municipal","N",IF($A$2="Municiple","Y","error")) -> We01Y | H29: < 500V | J29: 15.54 | K29: =ROUND(J29 * (1 + VAT), 2) -> 17.72 | L29: 29.45 | M29: =ROUND(L29 * (1 + VAT), 2) -> 33.57 | N29: 0 | O29: =ROUND(N29 * (1 + VAT), 2) -> 0 | Q29: < 500V | S29: 0.36 | T29: =ROUND(S29 * (1 + VAT), 2) -> 0.41
A30: WEPS | B30: We | C30: 0 | D30: 2 | E30: =B30&C30&D30&IF($A$2="Non-municipal","N",IF($A$2="Municiple","Y","error")) -> We02Y | H30: ≥ 500V & < 66kV | J30: 14.25 | K30: =ROUND(J30 * (1 + VAT), 2) -> 16.25 | L30: 27.01 | M30: =ROUND(L30 * (1 + VAT), 2) -> 30.79 | N30: 0 | O30: =ROUND(N30 * (1 + VAT), 2) -> 0 | Q30: ≥ 500V & < 66kV | S30: 0.35 | T30: =ROUND(S30 * (1 + VAT), 2) -> 0.4
A31: WEPS | B31: We | C31: 0 | D31: 3 | E31: We03Y | H31: ≥ 66kV & ≤ 132kV | J31: 5.1 | K31: =ROUND(J31 * (1 + VAT), 2) -> 5.81 | L31: 9.42 | M31: =ROUND(L31 * (1 + VAT), 2) -> 10.74 | N31: 12.48 | O31: =ROUND(N31 * (1 + VAT), 2) -> 14.23 | Q31: ≥ 66kV & ≤ 132kV | S31: 0.33 | T31: =ROUND(S31 * (1 + VAT), 2) -> 0.38
A32: WEPS | B32: We | C32: 0 | D32: 4 | E32: We04Y | H32: > 132kV / Transmission connected | J32: 0 | K32: =ROUND(J32 * (1 + VAT), 2) -> 0 | L32: 0 | M32: =ROUND(L32 * (1 + VAT), 2) -> 0 | N32: 12.48 | O32: =ROUND(N32 * (1 + VAT), 2) -> 14.23 | Q32: > 132kV / Transmission | S32: 0.31 | T32: =ROUND(S32 * (1 + VAT), 2) -> 0.35
H34: Customer categories | J34: Service charge [R/account/day] | L34: Administration charge [R/POD/day] | Q34: Reactive energy charge [c/kVArh]
A36: Tariff | B36: Tariff nameBillcode | C36: Tx zone | D36: Voltage | E36: Billcode | K36: VAT incl | M36: VAT incl | Q36: High season | S36: Low season
A37: WEPS | B37: We | C37: 0 | D37: 1 | E37: =B37&C37&D37&IF($A$2="Non-municipal","N",IF($A$2="Municiple","Y","error")) -> We01Y | H37: ≤ 100 kVA | J37: 12.62 | K37: =ROUND(J37 * (1 + VAT), 2) -> 14.39 | L37: 2.77 | M37: =ROUND(L37 * (1 + VAT), 2) -> 3.16 | R37: VAT incl | T37: VAT incl
A38: WEPS | B38: We | C38: 0 | D38: 1 | E38: =B38&C38&D38&IF($A$2="Non-municipal","N",IF($A$2="Municiple","Y","error")) -> We01Y | H38: > 100 kVA & ≤ 500 kVA | J38: 57.67 | K38: =ROUND(J38 * (1 + VAT), 2) -> 65.74 | L38: 16.16 | M38: =ROUND(L38 * (1 + VAT), 2) -> 18.42 | Q38: 12.49 | R38: =ROUND(Q38 * (1 + VAT), 2) -> 14.24 | S38: 0 | T38: =ROUND(S38 * (1 + VAT), 2) -> 0
A39: WEPS | B39: We | C39: 0 | D39: 1 | E39: =B39&C39&D39&IF($A$2="Non-municipal","N",IF($A$2="Municiple","Y","error")) -> We01Y | H39: > 500 kVA & ≤ 1 MVA | J39: 177.48 | K39: =ROUND(J39 * (1 + VAT), 2) -> 202.33 | L39: 32.13 | M39: =ROUND(L39 * (1 + VAT), 2) -> 36.63
A40: WEPS | B40: We | C40: 0 | D40: 1 | E40: =B40&C40&D40&IF($A$2="Non-municipal","N",IF($A$2="Municiple","Y","error")) -> We01Y | H40: > 1 MVA | J40: 177.48 | K40: =ROUND(J40 * (1 + VAT), 2) -> 202.33 | L40: 80 | M40: =ROUND(L40 * (1 + VAT), 2) -> 91.2
A41: WEPS | B41: We | C41: 0 | D41: 1 | E41: =B41&C41&D41&IF($A$2="Non-municipal","N",IF($A$2="Municiple","Y","error")) -> We01Y | H41: Key customers | J41: 3477.93 | K41: =ROUND(J41 * (1 + VAT), 2) -> 3964.84 | L41: 111.07 | M41: =ROUND(L41 * (1 + VAT), 2) -> 126.62
H44: Electrification and rural network subsidy charge [c/kWh]
A47: Tariff | B47: Tariff nameBillcode | C47: Tx zone | D47: Voltage | E47: Billcode | I47: VAT incl
A48: WEPS | B48: We | C48: 0 | D48: 1 | E48: =B48&C48&D48&IF($A$2="Non-municipal","N",IF($A$2="Municiple","Y","error")) -> We01Y | H48: 6.91 | I48: =ROUND(H48 * (1 + VAT), 2) -> 7.88
H51: Active energy charge excluding losses [c/kWh]
H52: High demand season [Jun - Aug] | N52: Low demand season [Sep - May]
H53: Peak | J53: Standard | L53: Off Peak | N53: Peak | P53: Standard | R53: Off Peak
A54: Tariff | B54: Tariff nameBillcode | C54: Tx zone | D54: Voltage | E54: Billcode | I54: VAT incl | K54: VAT incl | M54: VAT incl | O54: VAT incl | Q54: VAT incl | S54: VAT incl
A55: WEPS | B55: We | C55: 0 | D55: 1 | E55: =B55&C55&D55&IF($A$2="Non-municipal","N",IF($A$2="Municiple","Y","error")) -> We01Y | H55: =ROUND(J11/'Loss Factors'!$T$6, 2) -> 248.61 | I55: =ROUND(H55 * (1 + VAT), 2) -> 283.42 | J55: =ROUND(L11/'Loss Factors'!$T$6, 2) -> 75.31 | K55: =ROUND(J55 * (1 + VAT), 2) -> 85.85 | L55: =ROUND(N11/'Loss Factors'!$T$6, 2) -> 40.89 | M55: =ROUND(L55 * (1 + VAT), 2) -> 46.61 | N55: =ROUND(P11/'Loss Factors'!$T$6, 2) -> 81.09 | O55: =ROUND(N55 * (1 + VAT), 2) -> 92.44 | P55: =ROUND(R11/'Loss Factors'!$T$6, 2) -> 55.81 | Q55: =ROUND(P55 * (1 + VAT), 2) -> 63.62 | R55: =ROUND(T11/'Loss Factors'!$T$6, 2) -> 35.41 | S55: =ROUND(R55 * (1 + VAT), 2) -> 40.37
H57: Active energy charge excluding losses and enviromental levy [c/kWh]
H58: High demand season [Jun - Aug] | N58: Low demand season [Sep - May]
H59: Peak | J59: Standard | L59: Off Peak | N59: Peak | P59: Standard | R59: Off Peak
A60: Tariff | B60: Tariff nameBillcode | C60: Tx zone | D60: Voltage | E60: Billcode | I60: VAT incl | K60: VAT incl | M60: VAT incl | O60: VAT incl | Q60: VAT incl | S60: VAT incl
A61: WEPS | B61: We | C61: 0 | D61: 1 | E61: =B61&C61&D61&IF($A$2="Non-municipal","N",IF($A$2="Municiple","Y","error")) -> We01Y | H61: =H55-ROUND('Env levy'!$C$8,2) -> 245.12 | I61: =ROUND(H61 * (1 + VAT), 2) -> 279.44 | J61: =J55-ROUND('Env levy'!$C$8,2) -> 71.82 | K61: =ROUND(J61 * (1 + VAT), 2) -> 81.87 | L61: =L55-ROUND('Env levy'!$C$8,2) -> 37.4 | M61: =ROUND(L61 * (1 + VAT), 2) -> 42.64 | N61: =N55-ROUND('Env levy'!$C$8,2) -> 77.6 | O61: =ROUND(N61 * (1 + VAT), 2) -> 88.46 | P61: =P55-ROUND('Env levy'!$C$8,2) -> 52.32 | Q61: =ROUND(P61 * (1 + VAT), 2) -> 59.64 | R61: =R55-ROUND('Env levy'!$C$8,2) -> 31.92 | S61: =ROUND(R61 * (1 + VAT), 2) -> 36.39

Sheet Nightsave Large inc
H1: Back to menu
A2: Non-municipal | H2: Nightsave Urban Large tariff | Q2: Non-local authority | AG2: check value
J4: Active energy charge [c/kWh] | N4: Energy demand charge [R/kVA/m] | R4: Transmission network charges [R/kVA/m]
H5: Transmission zone | J5: High demand season [Jun - Aug] | L5: Low demand season [Sep - May] | N5: High demand season [Jun - Aug] | P5: Low demand season [Sep - May]
I6: Voltage
A7: Tariff | B7: Tariff nameBillcode | C7: Tx zone | D7: Voltage | E7: Billcode | K7: VAT incl | M7: VAT incl | O7: VAT incl | Q7: VAT incl | S7: VAT incl
A8: Nightsave Large | B8: NL | C8: 0 | D8: 1 | E8: =B8&C8&D8&IF($A$2="Non-municipal","N",IF($A$2="Municiple","Y","error")) -> NL01N | H8: ≤ 300km | I8: < 500V | J8: 68.74 | K8: =ROUND(J8 * (1 + VAT), 2) -> 78.36 | L8: 53.44 | M8: =ROUND(L8 * (1 + VAT), 2) -> 60.92 | N8: 209.17 | O8: =ROUND(N8 * (1 + VAT), 2) -> 238.45 | P8: 29.23 | Q8: =ROUND(P8 * (1 + VAT), 2) -> 33.32 | R8: 7.96 | S8: =ROUND(R8 * (1 + VAT), 2) -> 9.07
A9: Nightsave Large | B9: NL | C9: 0 | D9: 2 | E9: =B9&C9&D9&IF($A$2="Non-municipal","N",IF($A$2="Municiple","Y","error")) -> NL02N | I9: ≥ 500V & < 66kV | J9: 65.1 | K9: 74.21 | L9: 50.81 | M9: 57.92 | N9: 202.45 | O9: 230.79 | P9: 28.3 | Q9: 32.26 | R9: 7.28 | S9: 8.3
A10: Nightsave Large | B10: NL | C10: 0 | D10: 3 | E10: NL03N | I10: ≥ 66kV & ≤ 132kV | J10: 64.62 | K10: 73.67 | L10: 50.2 | M10: 57.23 | N10: 195.08 | O10: 222.39 | P10: 27.27 | Q10: 31.09 | R10: 7.09 | S10: 8.08
A11: Nightsave Large | B11: NL | C11: 0 | D11: 4 | E11: NL04N | I11: > 132kV* | J11: 60.45 | K11: 68.91 | L11: 47 | M11: 53.58 | N11: 188.18 | O11: 214.53 | P11: 26.3 | Q11: 29.98 | R11: 8.95 | S11: 10.2
A12: Nightsave Large | B12: NL | C12: 1 | D12: 1 | E12: NL11N | H12: > 300km and ≤ 600km | I12: < 500V | J12: 69.67 | K12: 79.42 | L12: 54.02 | M12: 61.58 | N12: 211.33 | O12: 240.92 | P12: 29.52 | Q12: 33.65 | R12: 8.02 | S12: 9.14
A13: Nightsave Large | B13: NL | C13: 1 | D13: 2 | E13: NL12N | I13: ≥ 500V & < 66kV | J13: 66.46 | K13: 75.76 | L13: 51.85 | M13: 59.11 | N13: 204.5 | O13: 233.13 | P13: 28.55 | Q13: 32.55 | R13: 7.35 | S13: 8.38
A14: Nightsave Large | B14: NL | C14: 1 | D14: 3 | E14: NL13N | I14: ≥ 66kV & ≤ 132kV | J14: 65.97 | K14: 75.21 | L14: 51.22 | M14: 58.39 | N14: 197.01 | O14: 224.59 | P14: 27.52 | Q14: 31.37 | R14: 7.14 | S14: 8.14
A15: Nightsave Large | B15: NL | C15: 1 | D15: 4 | E15: NL14N | I15: > 132kV* | J15: 61.72 | K15: 70.36 | L15: 47.96 | M15: 54.67 | N15: 190.1 | O15: 216.71 | P15: 26.54 | Q15: 30.26 | R15: 9.04 | S15: 10.31
A16: Nightsave Large | B16: NL | C16: 2 | D16: 1 | E16: NL21N | H16: > 600km and ≤ 900km | I16: < 500V | J16: 70.31 | K16: 80.15 | L16: 54.55 | M16: 62.19 | N16: 213.49 | O16: 243.38 | P16: 29.82 | Q16: 33.99 | R16: 8.12 | S16: 9.26
A17: Nightsave Large | B17: NL | C17: 2 | D17: 2 | E17: NL22N | I17: ≥ 500V & < 66kV | J17: 67.12 | K17: 76.52 | L17: 52.38 | M17: 59.71 | N17: 206.56 | O17: 235.48 | P17: 28.87 | Q17: 32.91 | R17: 7.41 | S17: 8.45
A18: Nightsave Large | B18: NL | C18: 2 | D18: 3 | E18: NL23N | I18: ≥ 66kV & ≤ 132kV | J18: 66.62 | K18: 75.95 | L18: 51.73 | M18: 58.97 | N18: 198.99 | O18: 226.85 | P18: 27.8 | Q18: 31.69 | R18: 7.18 | S18: 8.19
A19: Nightsave Large | B19: NL | C19: 2 | D19: 4 | E19: NL24N | I19: > 132kV* | J19: 62.32 | K19: 71.04 | L19: 48.45 | M19: 55.23 | N19: 192 | O19: 218.88 | P19: 26.81 | Q19: 30.56 | R19: 9.17 | S19: 10.45
A20: Nightsave Large | B20: NL | C20: 3 | D20: 1 | E20: NL31N | H20: > 900km | I20: < 500V | J20: 71.06 | K20: 81.01 | L20: 55.11 | M20: 62.83 | N20: 215.56 | O20: 245.74 | P20: 30.11 | Q20: 34.33 | R20: 8.16 | S20: 9.3
A21: Nightsave Large | B21: NL | C21: 3 | D21: 2 | E21: NL32N | I21: ≥ 500V & < 66kV | J21: 67.78 | K21: 77.27 | L21: 52.89 | M21: 60.29 | N21: 208.63 | O21: 237.84 | P21: 29.12 | Q21: 33.2 | R21: 7.5 | S21: 8.55
A22: Nightsave Large | B22: NL | C22: 3 | D22: 3 | E22: NL33N | I22: ≥ 66kV & ≤ 132kV | J22: 67.31 | K22: 76.73 | L22: 52.24 | M22: 59.55 | N22: 201.03 | O22: 229.17 | P22: 28.08 | Q22: 32.01 | R22: 7.25 | S22: 8.27
A23: Nightsave Large | B23: NL | C23: 3 | D23: 4 | E23: NL34N | I23: > 132kV* | J23: 62.99 | K23: 71.81 | L23: 48.98 | M23: 55.84 | N23: 193.94 | O23: 221.09 | P23: 27.08 | Q23: 30.87 | R23: 9.24 | S23: 10.53
I24: * 132 kV or Transmission connected
H26: Distribution network charges
H27: Voltage | J27: Network capacity charge [R/kVA/m] | L27: Network demand charge [R/kVA/m] | N27: Urban low voltage subsidy charge [R/kVA/m]
Q28: Voltage | R28: Ancillary service charge [c/kWh]
A29: Tariff | B29: Tariff nameBillcode | C29: Tx zone | D29: Voltage | E29: Billcode | K29: VAT incl | M29: VAT incl | O29: VAT incl | S29: VAT incl
A30: Nightsave Large | B30: NL | C30: 0 | D30: 1 | E30: =B30&C30&D30&IF($A$2="Non-municipal","N",IF($A$2="Municiple","Y","error")) -> NL01N | H30: < 500V | J30: 15.82 | K30: =ROUND(J30 * (1 + VAT), 2) -> 18.03 | L30: 30 | M30: =ROUND(L30 * (1 + VAT), 2) -> 34.2 | N30: 0 | O30: =ROUND(N30 * (1 + VAT), 2) -> 0 | Q30: < 500V | R30: 0.37 | S30: =ROUND(R30 * (1 + VAT), 2) -> 0.42
A31: Nightsave Large | B31: NL | C31: 0 | D31: 2 | E31: =B31&C31&D31&IF($A$2="Non-municipal","N",IF($A$2="Municiple","Y","error")) -> NL02N | H31: ≥ 500V & < 66kV | J31: 14.51 | K31: =ROUND(J31 * (1 + VAT), 2) -> 16.54 | L31: 27.52 | M31: =ROUND(L31 * (1 + VAT), 2) -> 31.37 | N31: 0 | O31: =ROUND(N31 * (1 + VAT), 2) -> 0 | Q31: ≥ 500V & < 66kV | R31: 0.36 | S31: =ROUND(R31 * (1 + VAT), 2) -> 0.41
A32: Nightsave Large | B32: NL | C32: 0 | D32: 3 | E32: NL03N | H32: ≥ 66kV & ≤ 132kV | J32: 5.18 | K32: =ROUND(J32 * (1 + VAT), 2) -> 5.91 | L32: 9.6 | M32: =ROUND(L32 * (1 + VAT), 2) -> 10.94 | N32: 12.78 | O32: =ROUND(N32 * (1 + VAT), 2) -> 14.57 | Q32: ≥ 66kV & ≤ 132kV | R32: 0.34 | S32: =ROUND(R32 * (1 + VAT), 2) -> 0.39
A33: Nightsave Large | B33: NL | C33: 0 | D33: 4 | E33: NL04N | H33: > 132kV / Transmission connected | J33: 0 | K33: =ROUND(J33 * (1 + VAT), 2) -> 0 | L33: 0 | M33: =ROUND(L33 * (1 + VAT), 2) -> 0 | N33: 12.78 | O33: =ROUND(N33 * (1 + VAT), 2) -> 14.57 | Q33: > 132kV* | R33: 0.32 | S33: =ROUND(R33 * (1 + VAT), 2) -> 0.36
Q34: * 132 kV or Transmission connected
H36: Customer categories | I36: Service charge [R/account/day] | K36: Administration charge [R/POD/day]
A38: Tariff | B38: Tariff nameBillcode | C38: Tx zone | D38: Voltage | E38: Billcode | J38: VAT incl | L38: VAT incl
A39: Nightsave Large | B39: NL | C39: 0 | D39: 1 | E39: =B39&C39&D39&IF($A$2="Non-municipal","N",IF($A$2="Municiple","Y","error")) -> NL01N | H39: >1 MVA | I39: 181.66 | J39: =ROUND(I39 * (1 + VAT), 2) -> 207.09 | K39: 81.87 | L39: =ROUND(K39 * (1 + VAT), 2) -> 93.33
A40: Nightsave Large | B40: NL | C40: 0 | D40: 1 | E40: =B40&C40&D40&IF($A$2="Non-municipal","N",IF($A$2="Municiple","Y","error")) -> NL01N | H40: Key customers | I40: 3559.79 | J40: =ROUND(I40 * (1 + VAT), 2) -> 4058.16 | K40: 113.69 | L40: =ROUND(K40 * (1 + VAT), 2) -> 129.61
H43: Electrification and rural network subsidy charge [c/kWh] | J43: Affordability subsidy charge [c/kWh] Only payable by non-local authority tariffs
A46: Tariff | B46: Tariff nameBillcode | C46: Tx zone | D46: Voltage | E46: Billcode | I46: VAT incl | K46: VAT incl
A47: Nightsave Large | B47: NL | C47: 0 | D47: 1 | E47: =B47&C47&D47&IF($A$2="Non-municipal","N",IF($A$2="Municiple","Y","error")) -> NL01N | H47: 7.08 | I47: =ROUND(H47 * (1 + VAT), 2) -> 8.07 | J47: 2.87 | K47: =ROUND(J47 * (1 + VAT), 2) -> 3.27

Sheet Nightsave Large Munic inc
H1: Back to menu
A2: Municiple | H2: Nightsave Urban Large tariff | Q2: Local authority | AG2: check value
J4: Active energy charge [c/kWh] | N4: Energy demand charge [R/kVA/m] | R4: Transmission network charges [R/kVA/m]
H5: Transmission zone | J5: High demand season [Jun - Aug] | L5: Low demand season [Sep - May] | N5: High demand season [Jun - Aug] | P5: Low demand season [Sep - May]
I6: Voltage
A7: Tariff | B7: Tariff nameBillcode | C7: Tx zone | D7: Voltage | E7: Billcode | K7: VAT incl | M7: VAT incl | O7: VAT incl | Q7: VAT incl | S7: VAT incl
A8: Nightsave Large | B8: NL | C8: 0 | D8: 1 | E8: =B8&C8&D8&IF($A$2="Non-municipal","N",IF($A$2="Municiple","Y","error")) -> NL01Y | H8: ≤ 300km | I8: < 500V | J8: 69.08 | K8: =ROUND(J8 * (1 + VAT), 2) -> 78.75 | L8: 53.72 | M8: =ROUND(L8 * (1 + VAT), 2) -> 61.24 | N8: 206.26 | O8: =ROUND(N8 * (1 + VAT), 2) -> 235.14 | P8: 28.82 | Q8: =ROUND(P8 * (1 + VAT), 2) -> 32.85 | R8: 7.79 | S8: =ROUND(R8 * (1 + VAT), 2) -> 8.88
A9: Nightsave Large | B9: NL | C9: 0 | D9: 2 | E9: =B9&C9&D9&IF($A$2="Non-municipal","N",IF($A$2="Municiple","Y","error")) -> NL02Y | I9: ≥ 500V & < 66kV | J9: 65.42 | K9: 74.58 | L9: 51.06 | M9: 58.21 | N9: 199.64 | O9: 227.59 | P9: 27.92 | Q9: 31.83 | R9: 7.11 | S9: 8.11
A10: Nightsave Large | B10: NL | C10: 0 | D10: 3 | E10: NL03Y | I10: ≥ 66kV & ≤ 132kV | J10: 64.94 | K10: 74.03 | L10: 50.43 | M10: 57.49 | N10: 192.37 | O10: 219.3 | P10: 26.88 | Q10: 30.64 | R10: 6.92 | S10: 7.89
A11: Nightsave Large | B11: NL | C11: 0 | D11: 4 | E11: NL04Y | I11: > 132kV* | J11: 60.75 | K11: 69.26 | L11: 47.24 | M11: 53.85 | N11: 185.57 | O11: 211.55 | P11: 25.92 | Q11: 29.55 | R11: 8.76 | S11: 9.99
A12: Nightsave Large | B12: NL | C12: 1 | D12: 1 | E12: NL11Y | H12: > 300km and ≤ 600km | I12: < 500V | J12: 69.99 | K12: 79.79 | L12: 54.3 | M12: 61.9 | N12: 208.4 | O12: 237.58 | P12: 29.1 | Q12: 33.17 | R12: 7.83 | S12: 8.93
A13: Nightsave Large | B13: NL | C13: 1 | D13: 2 | E13: NL12Y | I13: ≥ 500V & < 66kV | J13: 66.78 | K13: 76.13 | L13: 52.09 | M13: 59.38 | N13: 201.65 | O13: 229.88 | P13: 28.16 | Q13: 32.1 | R13: 7.18 | S13: 8.19
A14: Nightsave Large | B14: NL | C14: 1 | D14: 3 | E14: NL13Y | I14: ≥ 66kV & ≤ 132kV | J14: 66.29 | K14: 75.57 | L14: 51.48 | M14: 58.69 | N14: 194.28 | O14: 221.48 | P14: 27.15 | Q14: 30.95 | R14: 6.97 | S14: 7.95
A15: Nightsave Large | B15: NL | C15: 1 | D15: 4 | E15: NL14Y | I15: > 132kV* | J15: 62 | K15: 70.68 | L15: 48.2 | M15: 54.95 | N15: 187.46 | O15: 213.7 | P15: 26.18 | Q15: 29.85 | R15: 8.84 | S15: 10.08
A16: Nightsave Large | B16: NL | C16: 2 | D16: 1 | E16: NL21Y | H16: > 600km and ≤ 900km | I16: < 500V | J16: 70.66 | K16: 80.55 | L16: 54.82 | M16: 62.49 | N16: 210.51 | O16: 239.98 | P16: 29.41 | Q16: 33.53 | R16: 7.93 | S16: 9.04
A17: Nightsave Large | B17: NL | C17: 2 | D17: 2 | E17: NL22Y | I17: ≥ 500V & < 66kV | J17: 67.45 | K17: 76.89 | L17: 52.63 | M17: 60 | N17: 203.7 | O17: 232.22 | P17: 28.47 | Q17: 32.46 | R17: 7.24 | S17: 8.25
A18: Nightsave Large | B18: NL | C18: 2 | D18: 3 | E18: NL23Y | I18: ≥ 66kV & ≤ 132kV | J18: 66.95 | K18: 76.32 | L18: 52 | M18: 59.28 | N18: 196.24 | O18: 223.71 | P18: 27.4 | Q18: 31.24 | R18: 7.03 | S18: 8.01
A19: Nightsave Large | B19: NL | C19: 2 | D19: 4 | E19: NL24Y | I19: > 132kV* | J19: 62.63 | K19: 71.4 | L19: 48.69 | M19: 55.51 | N19: 189.35 | O19: 215.86 | P19: 26.45 | Q19: 30.15 | R19: 8.96 | S19: 10.21
A20: Nightsave Large | B20: NL | C20: 3 | D20: 1 | E20: NL31Y | H20: > 900km | I20: < 500V | J20: 71.41 | K20: 81.41 | L20: 55.37 | M20: 63.12 | N20: 212.58 | O20: 242.34 | P20: 29.7 | Q20: 33.86 | R20: 7.97 | S20: 9.09
A21: Nightsave Large | B21: NL | C21: 3 | D21: 2 | E21: NL32Y | I21: ≥ 500V & < 66kV | J21: 68.12 | K21: 77.66 | L21: 53.14 | M21: 60.58 | N21: 205.73 | O21: 234.53 | P21: 28.72 | Q21: 32.74 | R21: 7.31 | S21: 8.33
A22: Nightsave Large | B22: NL | C22: 3 | D22: 3 | E22: NL33Y | I22: ≥ 66kV & ≤ 132kV | J22: 67.62 | K22: 77.09 | L22: 52.5 | M22: 59.85 | N22: 198.22 | O22: 225.97 | P22: 27.7 | Q22: 31.58 | R22: 7.08 | S22: 8.07
A23: Nightsave Large | B23: NL | C23: 3 | D23: 4 | E23: NL34Y | I23: > 132kV* | J23: 63.31 | K23: 72.17 | L23: 49.23 | M23: 56.12 | N23: 191.25 | O23: 218.03 | P23: 26.7 | Q23: 30.44 | R23: 9.03 | S23: 10.29
I24: * 132 kV or Transmission connected
H26: Distribution network charges
H27: Voltage | J27: Network capacity charge [R/kVA/m] | L27: Network demand charge [R/kVA/m] | N27: Urban low voltage subsidy charge [R/kVA/m]
Q28: Voltage | R28: Ancillary service charge [c/kWh]
A29: Tariff | B29: Tariff nameBillcode | C29: Tx zone | D29: Voltage | E29: Billcode | K29: VAT incl | M29: VAT incl | O29: VAT incl | S29: VAT incl
A30: Nightsave Large | B30: NL | C30: 0 | D30: 1 | E30: =B30&C30&D30&IF($A$2="Non-municipal","N",IF($A$2="Municiple","Y","error")) -> NL01Y | H30: < 500V | J30: 15.54 | K30: =ROUND(J30 * (1 + VAT), 2) -> 17.72 | L30: 29.45 | M30: =ROUND(L30 * (1 + VAT), 2) -> 33.57 | N30: 0 | O30: =ROUND(N30 * (1 + VAT), 2) -> 0 | Q30: < 500V | R30: 0.36 | S30: =ROUND(R30 * (1 + VAT), 2) -> 0.41
A31: Nightsave Large | B31: NL | C31: 0 | D31: 2 | E31: =B31&C31&D31&IF($A$2="Non-municipal","N",IF($A$2="Municiple","Y","error")) -> NL02Y | H31: ≥ 500V & < 66kV | J31: 14.25 | K31: =ROUND(J31 * (1 + VAT), 2) -> 16.25 | L31: 27.01 | M31: =ROUND(L31 * (1 + VAT), 2) -> 30.79 | N31: 0 | O31: =ROUND(N31 * (1 + VAT), 2) -> 0 | Q31: ≥ 500V & < 66kV | R31: 0.35 | S31: =ROUND(R31 * (1 + VAT), 2) -> 0.4
A32: Nightsave Large | B32: NL | C32: 0 | D32: 3 | E32: NL03Y | H32: ≥ 66kV & ≤ 132kV | J32: 5.1 | K32: =ROUND(J32 * (1 + VAT), 2) -> 5.81 | L32: 9.42 | M32: =ROUND(L32 * (1 + VAT), 2) -> 10.74 | N32: 12.48 | O32: =ROUND(N32 * (1 + VAT), 2) -> 14.23 | Q32: ≥ 66kV & ≤ 132kV | R32: 0.33 | S32: =ROUND(R32 * (1 + VAT), 2) -> 0.38
A33: Nightsave Large | B33: NL | C33: 0 | D33: 4 | E33: NL04Y | H33: > 132kV / Transmission connected | J33: 0 | K33: =ROUND(J33 * (1 + VAT), 2) -> 0 | L33: 0 | M33: =ROUND(L33 * (1 + VAT), 2) -> 0 | N33: 12.48 | O33: =ROUND(N33 * (1 + VAT), 2) -> 14.23 | Q33: > 132kV* | R33: 0.31 | S33: =ROUND(R33 * (1 + VAT), 2) -> 0.35
Q34: * 132 kV or Transmission connected
H36: Customer categories | I36: Service charge [R/account/day] | K36: Administration charge [R/POD/day]
A38: Tariff | B38: Tariff nameBillcode | C38: Tx zone | D38: Voltage | E38: Billcode | J38: VAT incl | L38: VAT incl
A39: Nightsave Large | B39: NL | C39: 0 | D39: 1 | E39: =B39&C39&D39&IF($A$2="Non-municipal","N",IF($A$2="Municiple","Y","error")) -> NL01Y | H39: >1 MVA | I39: 177.48 | J39: =ROUND(I39 * (1 + VAT), 2) -> 202.33 | K39: 80 | L39: =ROUND(K39 * (1 + VAT), 2) -> 91.2
A40: Nightsave Large | B40: NL | C40: 0 | D40: 1 | E40: =B40&C40&D40&IF($A$2="Non-municipal","N",IF($A$2="Municiple","Y","error")) -> NL01Y | H40: Key customers | I40: 3477.93 | J40: =ROUND(I40 * (1 + VAT), 2) -> 3964.84 | K40: 111.07 | L40: =ROUND(K40 * (1 + VAT), 2) -> 126.62
H43: Electrification and rural network subsidy charge [c/kWh]
A46: Tariff | B46: Tariff nameBillcode | C46: Tx zone | D46: Voltage | E46: Billcode | I46: VAT incl
A47: Nightsave Large | B47: NL | C47: 0 | D47: 1 | E47: =B47&C47&D47&IF($A$2="Non-municipal","N",IF($A$2="Municiple","Y","error")) -> NL01Y | H47: 6.91 | I47: =ROUND(H47 * (1 + VAT), 2) -> 7.88

Sheet Nightsave Small inc
G1: Back to menu
A2: Non-municipal | G2: Nightsave Urban Small tariff | R2: Non-local authority | AF2: =SUM(#REF!,#REF!,#REF!,#REF!,#REF!,#REF!,#REF!,#REF!,#REF!) ->  | AG2: check value
J4: Active energy charge [c/kWh] | N4: Energy demand charge [R/kVA/m] | R4: Transmission network charges [R/kVA/m]
H5: Transmission zone | J5: High demand season [Jun - Aug] | L5: Low demand season [Sep - May] | N5: High demand season [Jun - Aug] | P5: Low demand season [Sep - May]
I6: Voltage
A7: Tariff | B7: Tariff nameBillcode | C7: Tx zone | D7: Voltage | E7: Billcode | K7: VAT incl | M7: VAT incl | O7: VAT incl | Q7: VAT incl | S7: VAT incl
A8: Nightsave Small | B8: NS | C8: 0 | D8: 1 | E8: =B8&C8&D8&IF($A$2="Non-municipal","N",IF($A$2="Municiple","Y","error")) -> NS01N | H8: ≤ 300km | I8: < 500V | J8: 68.74 | K8: =ROUND(J8 * (1 + VAT), 2) -> 78.36 | L8: 53.44 | M8: =ROUND(L8 * (1 + VAT), 2) -> 60.92 | N8: 146.9 | O8: =ROUND(N8 * (1 + VAT), 2) -> 167.47 | P8: 18.93 | Q8: =ROUND(P8 * (1 + VAT), 2) -> 21.58 | R8: 7.96 | S8: =ROUND(R8 * (1 + VAT), 2) -> 9.07
A9: Nightsave Small | B9: NS | C9: 0 | D9: 2 | E9: =B9&C9&D9&IF($A$2="Non-municipal","N",IF($A$2="Municiple","Y","error")) -> NS02N | I9: ≥ 500V & < 66kV | J9: 65.1 | K9: 74.21 | L9: 50.81 | M9: 57.92 | N9: 142.17 | O9: 162.07 | P9: 18.29 | Q9: 20.85 | R9: 7.28 | S9: 8.3
A10: Nightsave Small | B10: NS | C10: 0 | D10: 3 | E10: NS03N | I10: ≥ 66kV & ≤ 132kV | J10: 64.62 | K10: 73.67 | L10: 50.2 | M10: 57.23 | N10: 136.94 | O10: 156.11 | P10: 17.61 | Q10: 20.08 | R10: 7.09 | S10: 8.08
A11: Nightsave Small | B11: NS | C11: 0 | D11: 4 | E11: NS04N | I11: > 132kV* | J11: 60.45 | K11: 68.91 | L11: 47 | M11: 53.58 | N11: 132.15 | O11: 150.65 | P11: 17 | Q11: 19.38 | R11: 8.95 | S11: 10.2
A12: Nightsave Small | B12: NS | C12: 1 | D12: 1 | E12: NS11N | H12: > 300km and ≤ 600km | I12: < 500V | J12: 69.67 | K12: 79.42 | L12: 54.02 | M12: 61.58 | N12: 148.4 | O12: 169.18 | P12: 19.08 | Q12: 21.75 | R12: 8.02 | S12: 9.14
A13: Nightsave Small | B13: NS | C13: 1 | D13: 2 | E13: NS12N | I13: ≥ 500V & < 66kV | J13: 66.46 | K13: 75.76 | L13: 51.85 | M13: 59.11 | N13: 143.6 | O13: 163.7 | P13: 18.47 | Q13: 21.06 | R13: 7.35 | S13: 8.38
A14: Nightsave Small | B14: NS | C14: 1 | D14: 3 | E14: NS13N | I14: ≥ 66kV & ≤ 132kV | J14: 65.97 | K14: 75.21 | L14: 51.22 | M14: 58.39 | N14: 138.35 | O14: 157.72 | P14: 17.8 | Q14: 20.29 | R14: 7.14 | S14: 8.14
A15: Nightsave Small | B15: NS | C15: 1 | D15: 4 | E15: NS14N | I15: > 132kV* | J15: 61.72 | K15: 70.36 | L15: 47.96 | M15: 54.67 | N15: 133.47 | O15: 152.16 | P15: 17.17 | Q15: 19.57 | R15: 9.04 | S15: 10.31
A16: Nightsave Small | B16: NS | C16: 2 | D16: 1 | E16: NS21N | H16: > 600km and ≤ 900km | I16: < 500V | J16: 70.31 | K16: 80.15 | L16: 54.55 | M16: 62.19 | N16: 149.86 | O16: 170.84 | P16: 19.26 | Q16: 21.96 | R16: 8.12 | S16: 9.26
A17: Nightsave Small | B17: NS | C17: 2 | D17: 2 | E17: NS22N | I17: ≥ 500V & < 66kV | J17: 67.12 | K17: 76.52 | L17: 52.38 | M17: 59.71 | N17: 145.07 | O17: 165.38 | P17: 18.66 | Q17: 21.27 | R17: 7.41 | S17: 8.45
A18: Nightsave Small | B18: NS | C18: 2 | D18: 3 | E18: NS23N | I18: ≥ 66kV & ≤ 132kV | J18: 66.62 | K18: 75.95 | L18: 51.73 | M18: 58.97 | N18: 139.74 | O18: 159.3 | P18: 17.98 | Q18: 20.5 | R18: 7.18 | S18: 8.19
A19: Nightsave Small | B19: NS | C19: 2 | D19: 4 | E19: NS24N | I19: > 132kV* | J19: 62.32 | K19: 71.04 | L19: 48.45 | M19: 55.23 | N19: 134.79 | O19: 153.66 | P19: 17.34 | Q19: 19.77 | R19: 9.17 | S19: 10.45
A20: Nightsave Small | B20: NS | C20: 3 | D20: 1 | E20: NS31N | H20: > 900km | I20: < 500V | J20: 71.06 | K20: 81.01 | L20: 55.11 | M20: 62.83 | N20: 151.39 | O20: 172.58 | P20: 19.47 | Q20: 22.2 | R20: 8.16 | S20: 9.3
A21: Nightsave Small | B21: NS | C21: 3 | D21: 2 | E21: NS32N | I21: ≥ 500V & < 66kV | J21: 67.78 | K21: 77.27 | L21: 52.89 | M21: 60.29 | N21: 146.49 | O21: 167 | P21: 18.85 | Q21: 21.49 | R21: 7.5 | S21: 8.55
A22: Nightsave Small | B22: NS | C22: 3 | D22: 3 | E22: NS33N | I22: ≥ 66kV & ≤ 132kV | J22: 67.31 | K22: 76.73 | L22: 52.24 | M22: 59.55 | N22: 141.17 | O22: 160.93 | P22: 18.17 | Q22: 20.71 | R22: 7.25 | S22: 8.27
A23: Nightsave Small | B23: NS | C23: 3 | D23: 4 | E23: NS34N | I23: > 132kV* | J23: 62.99 | K23: 71.81 | L23: 48.98 | M23: 55.84 | N23: 136.2 | O23: 155.27 | P23: 17.54 | Q23: 20 | R23: 9.24 | S23: 10.53
I24: * 132 kV or Transmission connected
H26: Distribution network charges
J27: Network capacity charge [R/kVA/m] | L27: Network demand charge [R/kVA/m] | N27: Urban low voltage subsidy charge [R/kVA/m]
H28: Voltage | Q28: Voltage | R28: Ancillary service charge [c/kWh]
A29: Tariff | B29: Tariff nameBillcode | C29: Tx zone | D29: Voltage | E29: Billcode | K29: VAT incl | M29: VAT incl | O29: VAT incl | S29: VAT incl
A30: Nightsave Small | B30: NS | C30: 0 | D30: 1 | E30: =B30&C30&D30&IF($A$2="Non-municipal","N",IF($A$2="Municiple","Y","error")) -> NS01N | H30: < 500V | J30: 15.82 | K30: =ROUND(J30 * (1 + VAT), 2) -> 18.03 | L30: 30 | M30: =ROUND(L30 * (1 + VAT), 2) -> 34.2 | N30: 0 | O30: =ROUND(N30 * (1 + VAT), 2) -> 0 | Q30: < 500V | R30: 0.37 | S30: =ROUND(R30 * (1 + VAT), 2) -> 0.42
A31: Nightsave Small | B31: NS | C31: 0 | D31: 2 | E31: =B31&C31&D31&IF($A$2="Non-municipal","N",IF($A$2="Municiple","Y","error")) -> NS02N | H31: ≥ 500V & < 66kV | J31: 14.51 | K31: =ROUND(J31 * (1 + VAT), 2) -> 16.54 | L31: 27.52 | M31: =ROUND(L31 * (1 + VAT), 2) -> 31.37 | N31: 0 | O31: =ROUND(N31 * (1 + VAT), 2) -> 0 | Q31: ≥ 500V & < 66kV | R31: 0.36 | S31: =ROUND(R31 * (1 + VAT), 2) -> 0.41
A32: Nightsave Small | B32: NS | C32: 0 | D32: 3 | E32: NS03N | H32: ≥ 66kV & ≤ 132kV | J32: 5.18 | K32: =ROUND(J32 * (1 + VAT), 2) -> 5.91 | L32: 9.6 | M32: =ROUND(L32 * (1 + VAT), 2) -> 10.94 | N32: 12.78 | O32: =ROUND(N32 * (1 + VAT), 2) -> 14.57 | Q32: ≥ 66kV & ≤ 132kV | R32: 0.34 | S32: =ROUND(R32 * (1 + VAT), 2) -> 0.39
A33: Nightsave Small | B33: NS | C33: 0 | D33: 4 | E33: NS04N | H33: > 132kV / Transmission connected | J33: 0 | K33: =ROUND(J33 * (1 + VAT), 2) -> 0 | L33: 0 | M33: =ROUND(L33 * (1 + VAT), 2) -> 0 | N33: 12.78 | O33: =ROUND(N33 * (1 + VAT), 2) -> 14.57 | Q33: > 132kV* | R33: 0.32 | S33: =ROUND(R33 * (1 + VAT), 2) -> 0.36
Q34: * 132 kV or Transmission connected
H36: Customer categories | I36: Service charge [R/account/day] | K36: Administration charge [R/POD/day]
A38: Tariff | B38: Tariff nameBillcode | C38: Tx zone | D38: Voltage | E38: Billcode | J38: VAT incl | L38: VAT incl
A39: Nightsave Small | B39: NS | C39: 0 | D39: 1 | E39: =B39&C39&D39&IF($A$2="Non-municipal","N",IF($A$2="Municiple","Y","error")) -> NS01N | H39: ≤ 100 kVA | I39: 12.92 | J39: =ROUND(I39 * (1 + VAT), 2) -> 14.73 | K39: 2.84 | L39: =ROUND(K39 * (1 + VAT), 2) -> 3.24
A40: Nightsave Small | B40: NS | C40: 0 | D40: 1 | E40: =B40&C40&D40&IF($A$2="Non-municipal","N",IF($A$2="Municiple","Y","error")) -> NS01N | H40: > 100 kVA & ≤ 500 kVA | I40: 59.03 | J40: =ROUND(I40 * (1 + VAT), 2) -> 67.29 | K40: 16.55 | L40: =ROUND(K40 * (1 + VAT), 2) -> 18.87
A41: Nightsave Small | B41: NS | C41: 0 | D41: 1 | E41: =B41&C41&D41&IF($A$2="Non-municipal","N",IF($A$2="Municiple","Y","error")) -> NS01N | H41: > 500 kVA & ≤ 1 MVA | I41: 181.66 | J41: =ROUND(I41 * (1 + VAT), 2) -> 207.09 | K41: 32.88 | L41: =ROUND(K41 * (1 + VAT), 2) -> 37.48
A42: Nightsave Small | B42: NS | C42: 0 | D42: 1 | E42: =B42&C42&D42&IF($A$2="Non-municipal","N",IF($A$2="Municiple","Y","error")) -> NS01N | H42: Key customers | I42: 3559.79 | J42: =ROUND(I42 * (1 + VAT), 2) -> 4058.16 | K42: 113.69 | L42: =ROUND(K42 * (1 + VAT), 2) -> 129.61
H44: Electrification and rural network subsidy charge [c/kWh] | J44: Affordability subsidy charge [c/kWh] Only payable by non-local authority tariffs
A47: Tariff | B47: Tariff nameBillcode | C47: Tx zone | D47: Voltage | E47: Billcode | I47: VAT incl | K47: VAT incl
A48: Nightsave Small | B48: NS | C48: 0 | D48: 1 | E48: =B48&C48&D48&IF($A$2="Non-municipal","N",IF($A$2="Municiple","Y","error")) -> NS01N | H48: 7.08 | I48: =ROUND(H48 * (1 + VAT), 2) -> 8.07 | J48: 2.87 | K48: =ROUND(J48 * (1 + VAT), 2) -> 3.27

Sheet Nightsave Small Munic inc
G1: Back to menu
A2: Municiple | G2: Nightsave Urban Small tariff | R2: Local authority | AF2: =SUM(#REF!,#REF!,#REF!,#REF!,#REF!,#REF!,#REF!,#REF!,#REF!) ->  | AG2: check value
J4: Active energy charge [c/kWh] | N4: Energy demand charge [R/kVA/m] | R4: Transmission network charges [R/kVA/m]
H5: Transmission zone | J5: High demand season [Jun - Aug] | L5: Low demand season [Sep - May] | N5: High demand season [Jun - Aug] | P5: Low demand season [Sep - May]
I6: Voltage
A7: Tariff | B7: Tariff nameBillcode | C7: Tx zone | D7: Voltage | E7: Billcode | K7: VAT incl | M7: VAT incl | O7: VAT incl | Q7: VAT incl | S7: VAT incl
A8: Nightsave Small | B8: NS | C8: 0 | D8: 1 | E8: =B8&C8&D8&IF($A$2="Non-municipal","N",IF($A$2="Municiple","Y","error")) -> NS01Y | H8: ≤ 300km | I8: < 500V | J8: 69.08 | K8: =ROUND(J8 * (1 + VAT), 2) -> 78.75 | L8: 53.72 | M8: =ROUND(L8 * (1 + VAT), 2) -> 61.24 | N8: 144.85 | O8: =ROUND(N8 * (1 + VAT), 2) -> 165.13 | P8: 18.68 | Q8: =ROUND(P8 * (1 + VAT), 2) -> 21.3 | R8: 7.79 | S8: =ROUND(R8 * (1 + VAT), 2) -> 8.88
A9: Nightsave Small | B9: NS | C9: 0 | D9: 2 | E9: =B9&C9&D9&IF($A$2="Non-municipal","N",IF($A$2="Municiple","Y","error")) -> NS02Y | I9: ≥ 500V & < 66kV | J9: 65.42 | K9: 74.58 | L9: 51.06 | M9: 58.21 | N9: 140.19 | O9: 159.82 | P9: 18.04 | Q9: 20.57 | R9: 7.11 | S9: 8.11
A10: Nightsave Small | B10: NS | C10: 0 | D10: 3 | E10: NS03Y | I10: ≥ 66kV & ≤ 132kV | J10: 64.94 | K10: 74.03 | L10: 50.43 | M10: 57.49 | N10: 135.05 | O10: 153.96 | P10: 17.36 | Q10: 19.79 | R10: 6.92 | S10: 7.89
A11: Nightsave Small | B11: NS | C11: 0 | D11: 4 | E11: NS04Y | I11: > 132kV* | J11: 60.75 | K11: 69.26 | L11: 47.24 | M11: 53.85 | N11: 130.31 | O11: 148.55 | P11: 16.76 | Q11: 19.11 | R11: 8.76 | S11: 9.99
A12: Nightsave Small | B12: NS | C12: 1 | D12: 1 | E12: NS11Y | H12: > 300km and ≤ 600km | I12: < 500V | J12: 69.99 | K12: 79.79 | L12: 54.3 | M12: 61.9 | N12: 146.34 | O12: 166.83 | P12: 18.83 | Q12: 21.47 | R12: 7.83 | S12: 8.93
A13: Nightsave Small | B13: NS | C13: 1 | D13: 2 | E13: NS12Y | I13: ≥ 500V & < 66kV | J13: 66.78 | K13: 76.13 | L13: 52.09 | M13: 59.38 | N13: 141.63 | O13: 161.46 | P13: 18.21 | Q13: 20.76 | R13: 7.18 | S13: 8.19
A14: Nightsave Small | B14: NS | C14: 1 | D14: 3 | E14: NS13Y | I14: ≥ 66kV & ≤ 132kV | J14: 66.29 | K14: 75.57 | L14: 51.48 | M14: 58.69 | N14: 136.44 | O14: 155.54 | P14: 17.54 | Q14: 20 | R14: 6.97 | S14: 7.95
A15: Nightsave Small | B15: NS | C15: 1 | D15: 4 | E15: NS14Y | I15: > 132kV* | J15: 62 | K15: 70.68 | L15: 48.2 | M15: 54.95 | N15: 131.62 | O15: 150.05 | P15: 16.93 | Q15: 19.3 | R15: 8.84 | S15: 10.08
A16: Nightsave Small | B16: NS | C16: 2 | D16: 1 | E16: NS21Y | H16: > 600km and ≤ 900km | I16: < 500V | J16: 70.66 | K16: 80.55 | L16: 54.82 | M16: 62.49 | N16: 147.8 | O16: 168.49 | P16: 19 | Q16: 21.66 | R16: 7.93 | S16: 9.04
A17: Nightsave Small | B17: NS | C17: 2 | D17: 2 | E17: NS22Y | I17: ≥ 500V & < 66kV | J17: 67.45 | K17: 76.89 | L17: 52.63 | M17: 60 | N17: 143.04 | O17: 163.07 | P17: 18.4 | Q17: 20.98 | R17: 7.24 | S17: 8.25
A18: Nightsave Small | B18: NS | C18: 2 | D18: 3 | E18: NS23Y | I18: ≥ 66kV & ≤ 132kV | J18: 66.95 | K18: 76.32 | L18: 52 | M18: 59.28 | N18: 137.81 | O18: 157.1 | P18: 17.72 | Q18: 20.2 | R18: 7.03 | S18: 8.01
A19: Nightsave Small | B19: NS | C19: 2 | D19: 4 | E19: NS24Y | I19: > 132kV* | J19: 62.63 | K19: 71.4 | L19: 48.69 | M19: 55.51 | N19: 132.92 | O19: 151.53 | P19: 17.09 | Q19: 19.48 | R19: 8.96 | S19: 10.21
A20: Nightsave Small | B20: NS | C20: 3 | D20: 1 | E20: NS31Y | H20: > 900km | I20: < 500V | J20: 71.41 | K20: 81.41 | L20: 55.37 | M20: 63.12 | N20: 149.29 | O20: 170.19 | P20: 19.19 | Q20: 21.88 | R20: 7.97 | S20: 9.09
A21: Nightsave Small | B21: NS | C21: 3 | D21: 2 | E21: NS32Y | I21: ≥ 500V & < 66kV | J21: 68.12 | K21: 77.66 | L21: 53.14 | M21: 60.58 | N21: 144.46 | O21: 164.68 | P21: 18.58 | Q21: 21.18 | R21: 7.31 | S21: 8.33
A22: Nightsave Small | B22: NS | C22: 3 | D22: 3 | E22: NS33Y | I22: ≥ 66kV & ≤ 132kV | J22: 67.62 | K22: 77.09 | L22: 52.5 | M22: 59.85 | N22: 139.2 | O22: 158.69 | P22: 17.91 | Q22: 20.42 | R22: 7.08 | S22: 8.07
A23: Nightsave Small | B23: NS | C23: 3 | D23: 4 | E23: NS34Y | I23: > 132kV* | J23: 63.31 | K23: 72.17 | L23: 49.23 | M23: 56.12 | N23: 134.32 | O23: 153.12 | P23: 17.29 | Q23: 19.71 | R23: 9.03 | S23: 10.29
I24: * 132 kV or Transmission connected
H26: Distribution network charges
J27: Network capacity charge [R/kVA/m] | L27: Network demand charge [R/kVA/m] | N27: Urban low voltage subsidy charge [R/kVA/m]
H28: Voltage | Q28: Voltage | R28: Ancillary service charge [c/kWh]
A29: Tariff | B29: Tariff nameBillcode | C29: Tx zone | D29: Voltage | E29: Billcode | K29: VAT incl | M29: VAT incl | O29: VAT incl | S29: VAT incl
A30: Nightsave Small | B30: NS | C30: 0 | D30: 1 | E30: =B30&C30&D30&IF($A$2="Non-municipal","N",IF($A$2="Municiple","Y","error")) -> NS01Y | H30: < 500V | J30: 15.54 | K30: =ROUND(J30 * (1 + VAT), 2) -> 17.72 | L30: 29.45 | M30: =ROUND(L30 * (1 + VAT), 2) -> 33.57 | N30: 0 | O30: =ROUND(N30 * (1 + VAT), 2) -> 0 | Q30: < 500V | R30: 0.36 | S30: =ROUND(R30 * (1 + VAT), 2) -> 0.41
A31: Nightsave Small | B31: NS | C31: 0 | D31: 2 | E31: =B31&C31&D31&IF($A$2="Non-municipal","N",IF($A$2="Municiple","Y","error")) -> NS02Y | H31: ≥ 500V & < 66kV | J31: 14.25 | K31: =ROUND(J31 * (1 + VAT), 2) -> 16.25 | L31: 27.01 | M31: =ROUND(L31 * (1 + VAT), 2) -> 30.79 | N31: 0 | O31: =ROUND(N31 * (1 + VAT), 2) -> 0 | Q31: ≥ 500V & < 66kV | R31: 0.35 | S31: =ROUND(R31 * (1 + VAT), 2) -> 0.4
A32: Nightsave Small | B32: NS | C32: 0 | D32: 3 | E32: NS03Y | H32: ≥ 66kV & ≤ 132kV | J32: 5.1 | K32: =ROUND(J32 * (1 + VAT), 2) -> 5.81 | L32: 9.42 | M32: =ROUND(L32 * (1 + VAT), 2) -> 10.74 | N32: 12.48 | O32: =ROUND(N32 * (1 + VAT), 2) -> 14.23 | Q32: ≥ 66kV & ≤ 132kV | R32: 0.33 | S32: =ROUND(R32 * (1 + VAT), 2) -> 0.38
A33: Nightsave Small | B33: NS | C33: 0 | D33: 4 | E33: NS04Y | H33: > 132kV / Transmission connected | J33: 0 | K33: =ROUND(J33 * (1 + VAT), 2) -> 0 | L33: 0 | M33: =ROUND(L33 * (1 + VAT), 2) -> 0 | N33: 12.48 | O33: =ROUND(N33 * (1 + VAT), 2) -> 14.23 | Q33: > 132kV* | R33: 0.31 | S33: =ROUND(R33 * (1 + VAT), 2) -> 0.35
Q34: * 132 kV or Transmission connected
H36: Customer categories | I36: Service charge [R/account/day] | K36: Administration charge [R/POD/day]
A38: Tariff | B38: Tariff nameBillcode | C38: Tx zone | D38: Voltage | E38: Billcode | J38: VAT incl | L38: VAT incl
A39: Nightsave Small | B39: NS | C39: 0 | D39: 1 | E39: =B39&C39&D39&IF($A$2="Non-municipal","N",IF($A$2="Municiple","Y","error")) -> NS01Y | H39: ≤ 100 kVA | I39: 12.62 | J39: =ROUND(I39 * (1 + VAT), 2) -> 14.39 | K39: 2.77 | L39: =ROUND(K39 * (1 + VAT), 2) -> 3.16
A40: Nightsave Small | B40: NS | C40: 0 | D40: 1 | E40: =B40&C40&D40&IF($A$2="Non-municipal","N",IF($A$2="Municiple","Y","error")) -> NS01Y | H40: > 100 kVA & ≤ 500 kVA | I40: 57.67 | J40: =ROUND(I40 * (1 + VAT), 2) -> 65.74 | K40: 16.16 | L40: =ROUND(K40 * (1 + VAT), 2) -> 18.42
A41: Nightsave Small | B41: NS | C41: 0 | D41: 1 | E41: =B41&C41&D41&IF($A$2="Non-municipal","N",IF($A$2="Municiple","Y","error")) -> NS01Y | H41: > 500 kVA & ≤ 1 MVA | I41: 177.48 | J41: =ROUND(I41 * (1 + VAT), 2) -> 202.33 | K41: 32.13 | L41: =ROUND(K41 * (1 + VAT), 2) -> 36.63
A42: Nightsave Small | B42: NS | C42: 0 | D42: 1 | E42: =B42&C42&D42&IF($A$2="Non-municipal","N",IF($A$2="Municiple","Y","error")) -> NS01Y | H42: Key customers | I42: 3477.93 | J42: =ROUND(I42 * (1 + VAT), 2) -> 3964.84 | K42: 111.07 | L42: =ROUND(K42 * (1 + VAT), 2) -> 126.62
H44: Electrification and rural network subsidy charge [c/kWh]
A47: Tariff | B47: Tariff nameBillcode | C47: Tx zone | D47: Voltage | E47: Billcode | I47: VAT incl
A48: Nightsave Small | B48: NS | C48: 0 | D48: 1 | E48: =B48&C48&D48&IF($A$2="Non-municipal","N",IF($A$2="Municiple","Y","error")) -> NS01Y | H48: 6.91 | I48: =ROUND(H48 * (1 + VAT), 2) -> 7.88

Sheet Megaflex inc
G1: Back to menu
A2: Non-municipal | G2: Megaflex tariff | R2: Non-local authority | AF2: =SUM(J8:T23,V8:V23,#REF!,#REF!,#REF!,#REF!,H26:J26,L26) ->  | AG2: check value
J4: Active energy charge [c/kWh] | V4: Transmission network charges [R/kVA/m]
H5: Transmission zone | J5: High demand season [Jun - Aug] | P5: Low demand season [Sep - May]
I6: Voltage | J6: Peak | L6: Standard | N6: Off Peak | P6: Peak | R6: Standard | T6: Off Peak
A7: Tariff | B7: Tariff nameBillcode | C7: Tx zone | D7: Voltage | E7: Billcode | K7: VAT incl | M7: VAT incl | O7: VAT incl | Q7: VAT incl | S7: VAT incl | U7: VAT incl | W7: VAT incl
A8: Megaflex | B8: Me | C8: 0 | D8: 1 | E8: =B8&C8&D8&IF($A$2="Non-municipal","N",IF($A$2="Municiple","Y","error")) -> Me01N | H8: ≤ 300km | I8: < 500V | J8: 278.33 | K8: =ROUND(J8 * (1 + VAT), 2) -> 317.3 | L8: 84.68 | M8: =ROUND(L8 * (1 + VAT), 2) -> 96.54 | N8: 46.24 | O8: =ROUND(N8 * (1 + VAT), 2) -> 52.71 | P8: 91.14 | Q8: =ROUND(P8 * (1 + VAT), 2) -> 103.9 | R8: 62.89 | S8: =ROUND(R8 * (1 + VAT), 2) -> 71.69 | T8: 40.09 | U8: =ROUND(T8 * (1 + VAT), 2) -> 45.7 | V8: 7.96 | W8: =ROUND(V8 * (1 + VAT), 2) -> 9.07
A9: Megaflex | B9: Me | C9: 0 | D9: 2 | E9: =B9&C9&D9&IF($A$2="Non-municipal","N",IF($A$2="Municiple","Y","error")) -> Me02N | I9: ≥ 500V & < 66kV | J9: 273.96 | K9: 312.31 | L9: 83 | M9: 94.62 | N9: 45.07 | O9: 51.38 | P9: 89.36 | Q9: 101.87 | R9: 61.51 | S9: 70.12 | T9: 39.02 | U9: 44.48 | V9: 7.28 | W9: 8.3
A10: Megaflex | B10: Me | C10: 0 | D10: 3 | E10: Me03N | I10: ≥ 66kV & ≤ 132kV | J10: 265.29 | K10: 302.43 | L10: 80.36 | M10: 91.61 | N10: 43.65 | O10: 49.76 | P10: 86.55 | Q10: 98.67 | R10: 59.56 | S10: 67.9 | T10: 37.79 | U10: 43.08 | V10: 7.09 | W10: 8.08
A11: Megaflex | B11: Me | C11: 0 | D11: 4 | E11: Me04N | I11: > 132kV* | J11: 250.03 | K11: 285.03 | L11: 75.74 | M11: 86.34 | N11: 41.14 | O11: 46.9 | P11: 81.58 | Q11: 93 | R11: 56.13 | S11: 63.99 | T11: 35.62 | U11: 40.61 | V11: 8.95 | W11: 10.2
A12: Megaflex | B12: Me | C12: 1 | D12: 1 | E12: Me11N | H12: > 300km and ≤ 600km | I12: < 500V | J12: 280.6 | K12: 319.88 | L12: 85.02 | M12: 96.92 | N12: 46.16 | O12: 52.62 | P12: 91.54 | Q12: 104.36 | R12: 63.02 | S12: 71.84 | T12: 39.98 | U12: 45.58 | V12: 8.02 | W12: 9.14
A13: Megaflex | B13: Me | C13: 1 | D13: 2 | E13: Me12N | I13: ≥ 500V & < 66kV | J13: 276.7 | K13: 315.44 | L13: 83.82 | M13: 95.55 | N13: 45.52 | O13: 51.89 | P13: 90.27 | Q13: 102.91 | R13: 62.12 | S13: 70.82 | T13: 39.41 | U13: 44.93 | V13: 7.35 | W13: 8.38
A14: Megaflex | B14: Me | C14: 1 | D14: 3 | E14: Me13N | I14: ≥ 66kV & ≤ 132kV | J14: 267.9 | K14: 305.41 | L14: 81.15 | M14: 92.51 | N14: 44.06 | O14: 50.23 | P14: 87.39 | Q14: 99.62 | R14: 60.14 | S14: 68.56 | T14: 38.15 | U14: 43.49 | V14: 7.14 | W14: 8.14
A15: Megaflex | B15: Me | C15: 1 | D15: 4 | E15: Me14N | I15: > 132kV* | J15: 252.53 | K15: 287.88 | L15: 76.51 | M15: 87.22 | N15: 41.52 | O15: 47.33 | P15: 82.36 | Q15: 93.89 | R15: 56.69 | S15: 64.63 | T15: 35.95 | U15: 40.98 | V15: 9.04 | W15: 10.31
A16: Megaflex | B16: Me | C16: 2 | D16: 1 | E16: Me21N | H16: > 600km and ≤ 900km | I16: < 500V | J16: 283.4 | K16: 323.08 | L16: 85.85 | M16: 97.87 | N16: 46.6 | O16: 53.12 | P16: 92.45 | Q16: 105.39 | R16: 63.63 | S16: 72.54 | T16: 40.35 | U16: 46 | V16: 8.12 | W16: 9.26
A17: Megaflex | B17: Me | C17: 2 | D17: 2 | E17: Me22N | I17: ≥ 500V & < 66kV | J17: 279.48 | K17: 318.61 | L17: 84.67 | M17: 96.52 | N17: 45.98 | O17: 52.42 | P17: 91.16 | Q17: 103.92 | R17: 62.75 | S17: 71.54 | T17: 39.81 | U17: 45.38 | V17: 7.41 | W17: 8.45
A18: Megaflex | B18: Me | C18: 2 | D18: 3 | E18: Me23N | I18: ≥ 66kV & ≤ 132kV | J18: 270.63 | K18: 308.52 | L18: 81.98 | M18: 93.46 | N18: 44.51 | O18: 50.74 | P18: 88.27 | Q18: 100.63 | R18: 60.76 | S18: 69.27 | T18: 38.54 | U18: 43.94 | V18: 7.18 | W18: 8.19
A19: Megaflex | B19: Me | C19: 2 | D19: 4 | E19: Me24N | I19: > 132kV* | J19: 255.08 | K19: 290.79 | L19: 77.26 | M19: 88.08 | N19: 41.97 | O19: 47.85 | P19: 83.21 | Q19: 94.86 | R19: 57.26 | S19: 65.28 | T19: 36.34 | U19: 41.43 | V19: 9.17 | W19: 10.45
A20: Megaflex | B20: Me | C20: 3 | D20: 1 | E20: Me31N | H20: > 900km | I20: < 500V | J20: 286.25 | K20: 326.33 | L20: 86.74 | M20: 98.88 | N20: 47.09 | O20: 53.68 | P20: 93.39 | Q20: 106.46 | R20: 64.26 | S20: 73.26 | T20: 40.79 | U20: 46.5 | V20: 8.16 | W20: 9.3
A21: Megaflex | B21: Me | C21: 3 | D21: 2 | E21: Me32N | I21: ≥ 500V & < 66kV | J21: 282.26 | K21: 321.78 | L21: 85.5 | M21: 97.47 | N21: 46.41 | O21: 52.91 | P21: 92.06 | Q21: 104.95 | R21: 63.35 | S21: 72.22 | T21: 40.2 | U21: 45.83 | V21: 7.5 | W21: 8.55
A22: Megaflex | B22: Me | C22: 3 | D22: 3 | E22: Me33N | I22: ≥ 66kV & ≤ 132kV | J22: 273.34 | K22: 311.61 | L22: 82.8 | M22: 94.39 | N22: 44.96 | O22: 51.25 | P22: 89.16 | Q22: 101.64 | R22: 61.37 | S22: 69.96 | T22: 38.93 | U22: 44.38 | V22: 7.25 | W22: 8.27
A23: Megaflex | B23: Me | C23: 3 | D23: 4 | E23: Me34N | I23: > 132kV* | J23: 257.56 | K23: 293.62 | L23: 78.06 | M23: 88.99 | N23: 42.41 | O23: 48.35 | P23: 84.07 | Q23: 95.84 | R23: 57.88 | S23: 65.98 | T23: 36.74 | U23: 41.88 | V23: 9.24 | W23: 10.53
I24: * 132 kV or Transmission connected
H26: Distribution network charges
J27: Network capacity charge [R/kVA/m] | L27: Network demand charge [R/kVA/m] | N27: Urban low voltage subsidy charge [R/kVA/m]
H28: Voltage | Q28: Voltage | S28: Ancillary service charge [c/kWh]
A29: Tariff | B29: Tariff nameBillcode | C29: Tx zone | D29: Voltage | E29: Billcode | K29: VAT incl | M29: VAT incl | O29: VAT incl | T29: VAT incl
A30: Megaflex | B30: Me | C30: 0 | D30: 1 | E30: =B30&C30&D30&IF($A$2="Non-municipal","N",IF($A$2="Municiple","Y","error")) -> Me01N | H30: < 500V | J30: 15.82 | K30: =ROUND(J30 * (1 + VAT), 2) -> 18.03 | L30: 30 | M30: =ROUND(L30 * (1 + VAT), 2) -> 34.2 | N30: 0 | O30: =ROUND(N30 * (1 + VAT), 2) -> 0 | Q30: < 500V | S30: 0.37 | T30: =ROUND(S30 * (1 + VAT), 2) -> 0.42
A31: Megaflex | B31: Me | C31: 0 | D31: 2 | E31: =B31&C31&D31&IF($A$2="Non-municipal","N",IF($A$2="Municiple","Y","error")) -> Me02N | H31: ≥ 500V & < 66kV | J31: 14.51 | K31: =ROUND(J31 * (1 + VAT), 2) -> 16.54 | L31: 27.52 | M31: =ROUND(L31 * (1 + VAT), 2) -> 31.37 | N31: 0 | O31: =ROUND(N31 * (1 + VAT), 2) -> 0 | Q31: ≥ 500V & < 66kV | S31: 0.36 | T31: =ROUND(S31 * (1 + VAT), 2) -> 0.41
A32: Megaflex | B32: Me | C32: 0 | D32: 3 | E32: Me03N | H32: ≥ 66kV & ≤ 132kV | J32: 5.18 | K32: =ROUND(J32 * (1 + VAT), 2) -> 5.91 | L32: 9.6 | M32: =ROUND(L32 * (1 + VAT), 2) -> 10.94 | N32: 12.78 | O32: =ROUND(N32 * (1 + VAT), 2) -> 14.57 | Q32: ≥ 66kV & ≤ 132kV | S32: 0.34 | T32: =ROUND(S32 * (1 + VAT), 2) -> 0.39
A33: Megaflex | B33: Me | C33: 0 | D33: 4 | E33: Me04N | H33: > 132kV / Transmission connected | J33: 0 | K33: =ROUND(J33 * (1 + VAT), 2) -> 0 | L33: 0 | M33: =ROUND(L33 * (1 + VAT), 2) -> 0 | N33: 12.78 | O33: =ROUND(N33 * (1 + VAT), 2) -> 14.57 | Q33: > 132kV / Transmission connected | S33: 0.32 | T33: =ROUND(S33 * (1 + VAT), 2) -> 0.36
H36: Customer categories | J36: Service charge [R/account/day] | L36: Administration charge [R/POD/day] | Q36: Reactive energy charge [c/kVArh]
Q37: High season | S37: Low season
A38: Tariff | B38: Tariff nameBillcode | C38: Tx zone | D38: Voltage | E38: Billcode | K38: VAT incl | M38: VAT incl | R38: VAT incl | T38: VAT incl
A39: Megaflex | B39: Me | C39: 0 | D39: 1 | E39: =B39&C39&D39&IF($A$2="Non-municipal","N",IF($A$2="Municiple","Y","error")) -> Me01N | H39: > 1 MVA | J39: 181.66 | K39: =ROUND(J39 * (1 + VAT), 2) -> 207.09 | L39: 81.87 | M39: =ROUND(L39 * (1 + VAT), 2) -> 93.33 | Q39: 12.8 | R39: =ROUND(Q39 * (1 + VAT), 2) -> 14.59 | S39: 0 | T39: =ROUND(S39 * (1 + VAT), 2) -> 0
A40: Megaflex | B40: Me | C40: 0 | D40: 1 | E40: =B40&C40&D40&IF($A$2="Non-municipal","N",IF($A$2="Municiple","Y","error")) -> Me01N | H40: Key customers | J40: 3559.79 | K40: =ROUND(J40 * (1 + VAT), 2) -> 4058.16 | L40: 113.69 | M40: =ROUND(L40 * (1 + VAT), 2) -> 129.61
H42: Electrification and rural network subsidy charge [c/kWh] | J42: Affordability subsidy charge [c/kWh] Only payable by non-local authority tariffs
A45: Tariff | B45: Tariff nameBillcode | C45: Tx zone | D45: Voltage | E45: Billcode | I45: VAT incl | K45: VAT incl
A46: Megaflex | B46: Me | C46: 0 | D46: 1 | E46: =B46&C46&D46&IF($A$2="Non-municipal","N",IF($A$2="Municiple","Y","error")) -> Me01N | H46: 7.08 | I46: =ROUND(H46 * (1 + VAT), 2) -> 8.07 | J46: 2.87 | K46: =ROUND(J46 * (1 + VAT), 2) -> 3.27

Sheet Megaflex Munic inc
G1: Back to menu
A2: Municiple | G2: Megaflex tariff | R2: Local authority | AF2: =SUM(J8:T23,V8:V23,#REF!,#REF!,#REF!,#REF!,H26:J26,L26) ->  | AG2: check value
J4: Active energy charge [c/kWh] | V4: Transmission network charges [R/kVA/m]
H5: Transmission zone | J5: High demand season [Jun - Aug] | P5: Low demand season [Sep - May]
I6: Voltage | J6: Peak | L6: Standard | N6: Off Peak | P6: Peak | R6: Standard | T6: Off Peak
A7: Tariff | B7: Tariff nameBillcode | C7: Tx zone | D7: Voltage | E7: Billcode | K7: VAT incl | M7: VAT incl | O7: VAT incl | Q7: VAT incl | S7: VAT incl | U7: VAT incl | W7: VAT incl
A8: Megaflex | B8: Me | C8: 0 | D8: 1 | E8: =B8&C8&D8&IF($A$2="Non-municipal","N",IF($A$2="Municiple","Y","error")) -> Me01Y | H8: ≤ 300km | I8: < 500V | J8: 279.71 | K8: =ROUND(J8 * (1 + VAT), 2) -> 318.87 | L8: 85.11 | M8: =ROUND(L8 * (1 + VAT), 2) -> 97.03 | N8: 46.44 | O8: =ROUND(N8 * (1 + VAT), 2) -> 52.94 | P8: 91.58 | Q8: =ROUND(P8 * (1 + VAT), 2) -> 104.4 | R8: 63.2 | S8: =ROUND(R8 * (1 + VAT), 2) -> 72.05 | T8: 40.28 | U8: =ROUND(T8 * (1 + VAT), 2) -> 45.92 | V8: 7.79 | W8: =ROUND(V8 * (1 + VAT), 2) -> 8.88
A9: Megaflex | B9: Me | C9: 0 | D9: 2 | E9: =B9&C9&D9&IF($A$2="Non-municipal","N",IF($A$2="Municiple","Y","error")) -> Me02Y | I9: ≥ 500V & < 66kV | J9: 275.3 | K9: 313.84 | L9: 83.41 | M9: 95.09 | N9: 45.29 | O9: 51.63 | P9: 89.81 | Q9: 102.38 | R9: 61.81 | S9: 70.46 | T9: 39.22 | U9: 44.71 | V9: 7.11 | W9: 8.11
A10: Megaflex | B10: Me | C10: 0 | D10: 3 | E10: Me03Y | I10: ≥ 66kV & ≤ 132kV | J10: 266.61 | K10: 303.94 | L10: 80.76 | M10: 92.07 | N10: 43.86 | O10: 50 | P10: 86.97 | Q10: 99.15 | R10: 59.87 | S10: 68.25 | T10: 37.97 | U10: 43.29 | V10: 6.92 | W10: 7.89
A11: Megaflex | B11: Me | C11: 0 | D11: 4 | E11: Me04Y | I11: > 132kV* | J11: 251.27 | K11: 286.45 | L11: 76.12 | M11: 86.78 | N11: 41.33 | O11: 47.12 | P11: 81.96 | Q11: 93.43 | R11: 56.41 | S11: 64.31 | T11: 35.79 | U11: 40.8 | V11: 8.76 | W11: 9.99
A12: Megaflex | B12: Me | C12: 1 | D12: 1 | E12: Me11Y | H12: > 300km and ≤ 600km | I12: < 500V | J12: 281.99 | K12: 321.47 | L12: 85.43 | M12: 97.39 | N12: 46.38 | O12: 52.87 | P12: 91.99 | Q12: 104.87 | R12: 63.33 | S12: 72.2 | T12: 40.17 | U12: 45.79 | V12: 7.83 | W12: 8.93
A13: Megaflex | B13: Me | C13: 1 | D13: 2 | E13: Me12Y | I13: ≥ 500V & < 66kV | J13: 278.05 | K13: 316.98 | L13: 84.23 | M13: 96.02 | N13: 45.74 | O13: 52.14 | P13: 90.71 | Q13: 103.41 | R13: 62.43 | S13: 71.17 | T13: 39.6 | U13: 45.14 | V13: 7.18 | W13: 8.19
A14: Megaflex | B14: Me | C14: 1 | D14: 3 | E14: Me13Y | I14: ≥ 66kV & ≤ 132kV | J14: 269.22 | K14: 306.91 | L14: 81.55 | M14: 92.97 | N14: 44.28 | O14: 50.48 | P14: 87.82 | Q14: 100.11 | R14: 60.44 | S14: 68.9 | T14: 38.33 | U14: 43.7 | V14: 6.97 | W14: 7.95
A15: Megaflex | B15: Me | C15: 1 | D15: 4 | E15: Me14Y | I15: > 132kV* | J15: 253.77 | K15: 289.3 | L15: 76.89 | M15: 87.65 | N15: 41.74 | O15: 47.58 | P15: 82.77 | Q15: 94.36 | R15: 56.98 | S15: 64.96 | T15: 36.14 | U15: 41.2 | V15: 8.84 | W15: 10.08
A16: Megaflex | B16: Me | C16: 2 | D16: 1 | E16: Me21Y | H16: > 600km and ≤ 900km | I16: < 500V | J16: 284.8 | K16: 324.67 | L16: 86.28 | M16: 98.36 | N16: 46.84 | O16: 53.4 | P16: 92.9 | Q16: 105.91 | R16: 63.95 | S16: 72.9 | T16: 40.57 | U16: 46.25 | V16: 7.93 | W16: 9.04
A17: Megaflex | B17: Me | C17: 2 | D17: 2 | E17: Me22Y | I17: ≥ 500V & < 66kV | J17: 280.85 | K17: 320.17 | L17: 85.07 | M17: 96.98 | N17: 46.2 | O17: 52.67 | P17: 91.63 | Q17: 104.46 | R17: 63.03 | S17: 71.85 | T17: 40 | U17: 45.6 | V17: 7.24 | W17: 8.25
A18: Megaflex | B18: Me | C18: 2 | D18: 3 | E18: Me23Y | I18: ≥ 66kV & ≤ 132kV | J18: 271.96 | K18: 310.03 | L18: 82.37 | M18: 93.9 | N18: 44.73 | O18: 50.99 | P18: 88.69 | Q18: 101.11 | R18: 61.04 | S18: 69.59 | T18: 38.72 | U18: 44.14 | V18: 7.03 | W18: 8.01
A19: Megaflex | B19: Me | C19: 2 | D19: 4 | E19: Me24Y | I19: > 132kV* | J19: 256.32 | K19: 292.2 | L19: 77.66 | M19: 88.53 | N19: 42.16 | O19: 48.06 | P19: 83.62 | Q19: 95.33 | R19: 57.55 | S19: 65.61 | T19: 36.51 | U19: 41.62 | V19: 8.96 | W19: 10.21
A20: Megaflex | B20: Me | C20: 3 | D20: 1 | E20: Me31Y | H20: > 900km | I20: < 500V | J20: 287.66 | K20: 327.93 | L20: 87.15 | M20: 99.35 | N20: 47.33 | O20: 53.96 | P20: 93.84 | Q20: 106.98 | R20: 64.58 | S20: 73.62 | T20: 40.98 | U20: 46.72 | V20: 7.97 | W20: 9.09
A21: Megaflex | B21: Me | C21: 3 | D21: 2 | E21: Me32Y | I21: ≥ 500V & < 66kV | J21: 283.66 | K21: 323.37 | L21: 85.92 | M21: 97.95 | N21: 46.66 | O21: 53.19 | P21: 92.52 | Q21: 105.47 | R21: 63.68 | S21: 72.6 | T21: 40.38 | U21: 46.03 | V21: 7.31 | W21: 8.33
A22: Megaflex | B22: Me | C22: 3 | D22: 3 | E22: Me33Y | I22: ≥ 66kV & ≤ 132kV | J22: 274.7 | K22: 313.16 | L22: 83.22 | M22: 94.87 | N22: 45.19 | O22: 51.52 | P22: 89.6 | Q22: 102.14 | R22: 61.66 | S22: 70.29 | T22: 39.12 | U22: 44.6 | V22: 7.08 | W22: 8.07
A23: Megaflex | B23: Me | C23: 3 | D23: 4 | E23: Me34Y | I23: > 132kV* | J23: 258.84 | K23: 295.08 | L23: 78.45 | M23: 89.43 | N23: 42.63 | O23: 48.6 | P23: 84.48 | Q23: 96.31 | R23: 58.15 | S23: 66.29 | T23: 36.91 | U23: 42.08 | V23: 9.03 | W23: 10.29
I24: * 132 kV or Transmission connected
H26: Distribution network charges
J27: Network capacity charge [R/kVA/m] | L27: Network demand charge [R/kVA/m] | N27: Urban low voltage subsidy charge [R/kVA/m]
H28: Voltage | Q28: Voltage | S28: Ancillary service charge [c/kWh]
A29: Tariff | B29: Tariff nameBillcode | C29: Tx zone | D29: Voltage | E29: Billcode | K29: VAT incl | M29: VAT incl | O29: VAT incl | T29: VAT incl
A30: Megaflex | B30: Me | C30: 0 | D30: 1 | E30: =B30&C30&D30&IF($A$2="Non-municipal","N",IF($A$2="Municiple","Y","error")) -> Me01Y | H30: < 500V | J30: 15.54 | K30: =ROUND(J30 * (1 + VAT), 2) -> 17.72 | L30: 29.45 | M30: =ROUND(L30 * (1 + VAT), 2) -> 33.57 | N30: 0 | O30: =ROUND(N30 * (1 + VAT), 2) -> 0 | Q30: < 500V | S30: 0.36 | T30: =ROUND(S30 * (1 + VAT), 2) -> 0.41
A31: Megaflex | B31: Me | C31: 0 | D31: 2 | E31: =B31&C31&D31&IF($A$2="Non-municipal","N",IF($A$2="Municiple","Y","error")) -> Me02Y | H31: ≥ 500V & < 66kV | J31: 14.25 | K31: =ROUND(J31 * (1 + VAT), 2) -> 16.25 | L31: 27.01 | M31: =ROUND(L31 * (1 + VAT), 2) -> 30.79 | N31: 0 | O31: =ROUND(N31 * (1 + VAT), 2) -> 0 | Q31: ≥ 500V & < 66kV | S31: 0.35 | T31: =ROUND(S31 * (1 + VAT), 2) -> 0.4
A32: Megaflex | B32: Me | C32: 0 | D32: 3 | E32: Me03Y | H32: ≥ 66kV & ≤ 132kV | J32: 5.1 | K32: =ROUND(J32 * (1 + VAT), 2) -> 5.81 | L32: 9.42 | M32: =ROUND(L32 * (1 + VAT), 2) -> 10.74 | N32: 12.48 | O32: =ROUND(N32 * (1 + VAT), 2) -> 14.23 | Q32: ≥ 66kV & ≤ 132kV | S32: 0.33 | T32: =ROUND(S32 * (1 + VAT), 2) -> 0.38
A33: Megaflex | B33: Me | C33: 0 | D33: 4 | E33: Me04Y | H33: > 132kV / Transmission connected | J33: 0 | K33: =ROUND(J33 * (1 + VAT), 2) -> 0 | L33: 0 | M33: =ROUND(L33 * (1 + VAT), 2) -> 0 | N33: 12.48 | O33: =ROUND(N33 * (1 + VAT), 2) -> 14.23 | Q33: > 132kV / Transmission connected | S33: 0.31 | T33: =ROUND(S33 * (1 + VAT), 2) -> 0.35
H36: Customer categories | J36: Service charge [R/account/day] | L36: Administration charge [R/POD/day] | Q36: Reactive energy charge [c/kVArh]
Q37: High season | S37: Low season
A38: Tariff | B38: Tariff nameBillcode | C38: Tx zone | D38: Voltage | E38: Billcode | K38: VAT incl | M38: VAT incl | R38: VAT incl | T38: VAT incl
A39: Megaflex | B39: Me | C39: 0 | D39: 1 | E39: =B39&C39&D39&IF($A$2="Non-municipal","N",IF($A$2="Municiple","Y","error")) -> Me01Y | H39: > 1 MVA | J39: 177.48 | K39: =ROUND(J39 * (1 + VAT), 2) -> 202.33 | L39: 80 | M39: =ROUND(L39 * (1 + VAT), 2) -> 91.2 | Q39: 12.49 | R39: =ROUND(Q39 * (1 + VAT), 2) -> 14.24 | S39: 0 | T39: =ROUND(S39 * (1 + VAT), 2) -> 0
A40: Megaflex | B40: Me | C40: 0 | D40: 1 | E40: =B40&C40&D40&IF($A$2="Non-municipal","N",IF($A$2="Municiple","Y","error")) -> Me01Y | H40: Key customers | J40: 3477.93 | K40: =ROUND(J40 * (1 + VAT), 2) -> 3964.84 | L40: 111.07 | M40: =ROUND(L40 * (1 + VAT), 2) -> 126.62
H42: Electrification and rural network subsidy charge [c/kWh]
A45: Tariff | B45: Tariff nameBillcode | C45: Tx zone | D45: Voltage | E45: Billcode | I45: VAT incl
A46: Megaflex | B46: Me | C46: 0 | D46: 1 | E46: =B46&C46&D46&IF($A$2="Non-municipal","N",IF($A$2="Municiple","Y","error")) -> Me01Y | H46: 6.91 | I46: =ROUND(H46 * (1 + VAT), 2) -> 7.88

Sheet Megaflex Gen inc
G1: Back to menu
A2: Non-municipal | G2: Megaflex Gen tariff | R2: =Menu!$H$7 -> Non-local authority
J4: Active energy charge for loads [c/kWh] | V4: Transmission network charges [R/kVA/m]
H5: Transmission zone | J5: High demand season [Jun - Aug] | P5: Low demand season [Sep - May]
I6: Voltage | J6: Peak | L6: Standard | N6: Off Peak | P6: Peak | R6: Standard | T6: Off Peak
A7: Tariff | B7: Tariff nameBillcode | C7: Tx zone | D7: Voltage | E7: Billcode | K7: VAT incl | M7: VAT incl | O7: VAT incl | Q7: VAT incl | S7: VAT incl | U7: VAT incl | W7: VAT incl
A8: Genflex urban loads | B8: GU | C8: 0 | D8: 1 | E8: =B8&C8&D8&IF($A$2="Non-municipal","N",IF($A$2="Municiple","Y","error")) -> GU01N | H8: ≤ 300km | I8: < 500V | J8: 278.33 | K8: =ROUND(J8 * (1 + VAT), 2) -> 317.3 | L8: 84.68 | M8: =ROUND(L8 * (1 + VAT), 2) -> 96.54 | N8: 46.24 | O8: =ROUND(N8 * (1 + VAT), 2) -> 52.71 | P8: 91.14 | Q8: =ROUND(P8 * (1 + VAT), 2) -> 103.9 | R8: 62.89 | S8: =ROUND(R8 * (1 + VAT), 2) -> 71.69 | T8: 40.09 | U8: =ROUND(T8 * (1 + VAT), 2) -> 45.7 | V8: 7.96 | W8: =ROUND(V8 * (1 + VAT), 2) -> 9.07
A9: Genflex urban loads | B9: GU | C9: 0 | D9: 2 | E9: =B9&C9&D9&IF($A$2="Non-municipal","N",IF($A$2="Municiple","Y","error")) -> GU02N | I9: ≥ 500V & < 66kV | J9: 273.96 | K9: 312.31 | L9: 83 | M9: 94.62 | N9: 45.07 | O9: 51.38 | P9: 89.36 | Q9: 101.87 | R9: 61.51 | S9: 70.12 | T9: 39.02 | U9: 44.48 | V9: 7.28 | W9: 8.3
A10: Genflex urban loads | B10: GU | C10: 0 | D10: 3 | E10: GU03N | I10: ≥ 66kV & ≤ 132kV | J10: 265.29 | K10: 302.43 | L10: 80.36 | M10: 91.61 | N10: 43.65 | O10: 49.76 | P10: 86.55 | Q10: 98.67 | R10: 59.56 | S10: 67.9 | T10: 37.79 | U10: 43.08 | V10: 7.09 | W10: 8.08
A11: Genflex urban loads | B11: GU | C11: 0 | D11: 4 | E11: GU04N | I11: > 132kV* | J11: 250.03 | K11: 285.03 | L11: 75.74 | M11: 86.34 | N11: 41.14 | O11: 46.9 | P11: 81.58 | Q11: 93 | R11: 56.13 | S11: 63.99 | T11: 35.62 | U11: 40.61 | V11: 8.95 | W11: 10.2
A12: Genflex urban loads | B12: GU | C12: 1 | D12: 1 | E12: GU11N | H12: > 300km and ≤ 600km | I12: < 500V | J12: 280.6 | K12: 319.88 | L12: 85.02 | M12: 96.92 | N12: 46.16 | O12: 52.62 | P12: 91.54 | Q12: 104.36 | R12: 63.02 | S12: 71.84 | T12: 39.98 | U12: 45.58 | V12: 8.02 | W12: 9.14
A13: Genflex urban loads | B13: GU | C13: 1 | D13: 2 | E13: GU12N | I13: ≥ 500V & < 66kV | J13: 276.7 | K13: 315.44 | L13: 83.82 | M13: 95.55 | N13: 45.52 | O13: 51.89 | P13: 90.27 | Q13: 102.91 | R13: 62.12 | S13: 70.82 | T13: 39.41 | U13: 44.93 | V13: 7.35 | W13: 8.38
A14: Genflex urban loads | B14: GU | C14: 1 | D14: 3 | E14: GU13N | I14: ≥ 66kV & ≤ 132kV | J14: 267.9 | K14: 305.41 | L14: 81.15 | M14: 92.51 | N14: 44.06 | O14: 50.23 | P14: 87.39 | Q14: 99.62 | R14: 60.14 | S14: 68.56 | T14: 38.15 | U14: 43.49 | V14: 7.14 | W14: 8.14
A15: Genflex urban loads | B15: GU | C15: 1 | D15: 4 | E15: GU14N | I15: > 132kV* | J15: 252.53 | K15: 287.88 | L15: 76.51 | M15: 87.22 | N15: 41.52 | O15: 47.33 | P15: 82.36 | Q15: 93.89 | R15: 56.69 | S15: 64.63 | T15: 35.95 | U15: 40.98 | V15: 9.04 | W15: 10.31
A16: Genflex urban loads | B16: GU | C16: 2 | D16: 1 | E16: GU21N | H16: > 600km and ≤ 900km | I16: < 500V | J16: 283.4 | K16: 323.08 | L16: 85.85 | M16: 97.87 | N16: 46.6 | O16: 53.12 | P16: 92.45 | Q16: 105.39 | R16: 63.63 | S16: 72.54 | T16: 40.35 | U16: 46 | V16: 8.12 | W16: 9.26
A17: Genflex urban loads | B17: GU | C17: 2 | D17: 2 | E17: GU22N | I17: ≥ 500V & < 66kV | J17: 279.48 | K17: 318.61 | L17: 84.67 | M17: 96.52 | N17: 45.98 | O17: 52.42 | P17: 91.16 | Q17: 103.92 | R17: 62.75 | S17: 71.54 | T17: 39.81 | U17: 45.38 | V17: 7.41 | W17: 8.45
A18: Genflex urban loads | B18: GU | C18: 2 | D18: 3 | E18: GU23N | I18: ≥ 66kV & ≤ 132kV | J18: 270.63 | K18: 308.52 | L18: 81.98 | M18: 93.46 | N18: 44.51 | O18: 50.74 | P18: 88.27 | Q18: 100.63 | R18: 60.76 | S18: 69.27 | T18: 38.54 | U18: 43.94 | V18: 7.18 | W18: 8.19
A19: Genflex urban loads | B19: GU | C19: 2 | D19: 4 | E19: GU24N | I19: > 132kV* | J19: 255.08 | K19: 290.79 | L19: 77.26 | M19: 88.08 | N19: 41.97 | O19: 47.85 | P19: 83.21 | Q19: 94.86 | R19: 57.26 | S19: 65.28 | T19: 36.34 | U19: 41.43 | V19: 9.17 | W19: 10.45
A20: Genflex urban loads | B20: GU | C20: 3 | D20: 1 | E20: GU31N | H20: > 900km | I20: < 500V | J20: 286.25 | K20: 326.33 | L20: 86.74 | M20: 98.88 | N20: 47.09 | O20: 53.68 | P20: 93.39 | Q20: 106.46 | R20: 64.26 | S20: 73.26 | T20: 40.79 | U20: 46.5 | V20: 8.16 | W20: 9.3
A21: Genflex urban loads | B21: GU | C21: 3 | D21: 2 | E21: GU32N | I21: ≥ 500V & < 66kV | J21: 282.26 | K21: 321.78 | L21: 85.5 | M21: 97.47 | N21: 46.41 | O21: 52.91 | P21: 92.06 | Q21: 104.95 | R21: 63.35 | S21: 72.22 | T21: 40.2 | U21: 45.83 | V21: 7.5 | W21: 8.55
A22: Genflex urban loads | B22: GU | C22: 3 | D22: 3 | E22: GU33N | I22: ≥ 66kV & ≤ 132kV | J22: 273.34 | K22: 311.61 | L22: 82.8 | M22: 94.39 | N22: 44.96 | O22: 51.25 | P22: 89.16 | Q22: 101.64 | R22: 61.37 | S22: 69.96 | T22: 38.93 | U22: 44.38 | V22: 7.25 | W22: 8.27
A23: Genflex urban loads | B23: GU | C23: 3 | D23: 4 | E23: GU34N | I23: > 132kV* | J23: 257.56 | K23: 293.62 | L23: 78.06 | M23: 88.99 | N23: 42.41 | O23: 48.35 | P23: 84.07 | Q23: 95.84 | R23: 57.88 | S23: 65.98 | T23: 36.74 | U23: 41.88 | V23: 9.24 | W23: 10.53
A24: Gen-purchase | B24: NLPurchADJ | C24: 0 | D24: 4 | E24: NLPurchADJ04N | H24: WEPS energy rate excluding losses | J24: 247.3830019 | K24: 282.02 | L24: 74.93816167 | M24: =ROUND(L24 * (1 + VAT), 2) -> 85.43 | N24: 40.70446225 | O24: =ROUND(N24 * (1 + VAT), 2) -> 46.4 | P24: 80.71633521 | Q24: =ROUND(P24 * (1 + VAT), 2) -> 92.02 | R24: 55.53576729 | S24: =ROUND(R24 * (1 + VAT), 2) -> 63.31 | T24: 35.24290096 | U24: =ROUND(T24 * (1 + VAT), 2) -> 40.18
A25: TUoS network charges for Transmission connected generators | B25: GenTUOS | C25: Cape | D25: 4 | E25: GenTUOSCape4N | I25: * 132 kV or Transmission connected
A26: TUoS network charges for Transmission connected generators | B26: GenTUOS | C26: Karoo | D26: 4 | E26: GenTUOSKaroo4N
A27: TUoS network charges for Transmission connected generators | B27: GenTUOS | C27: Kwazulu-Natal | D27: 4 | E27: GenTUOSKwazulu-Natal4N | H27: Distribution network charges for loads | Q27: Transmission network charges for generators | U27: Distribution network charges for generators*
A28: TUoS network charges for Transmission connected generators | B28: GenTUOS | C28: Vaal | D28: 4 | E28: GenTUOSVaal4N | J28: Network capacity charge [R/kVA/m] | L28: Network demand charge [R/kVA/m] | N28: Urban low voltage subsidy charge [R/kVA/m]
A29: TUoS network charges for Transmission connected generators | B29: GenTUOS | C29: Waterburg | D29: 4 | E29: GenTUOSWaterburg4N | H29: Voltage | Q29: TUoS [ > 132kV] | S29: Network charge [R/kW] | U29: Voltage | W29: Network capacity charge [R/kW/m]
A30: TUoS network charges for Transmission connected generators | B30: GenTUOS | C30: Mpumalanga | D30: 4 | E30: GenTUOSMpumalanga4N | H30: Voltage | K30: VAT incl | M30: VAT incl | O30: VAT incl | T30: VAT incl
A31: Genflex urban loads | B31: GU | C31: 0 | D31: 1 | E31: =B31&C31&D31&IF($A$2="Non-municipal","N",IF($A$2="Municiple","Y","error")) -> GU01N | H31: < 500V | J31: 15.82 | K31: =ROUND(J31 * (1 + VAT), 2) -> 18.03 | L31: 30 | M31: =ROUND(L31 * (1 + VAT), 2) -> 34.2 | N31: 0 | O31: =ROUND(N31 * (1 + VAT), 2) -> 0 | Q31: Cape | S31: 0 | T31: =ROUND(S31 * (1 + VAT), 2) -> 0 | X31: VAT incl
A32: Genflex urban loads | B32: GU | C32: 0 | D32: 2 | E32: =B32&C32&D32&IF($A$2="Non-municipal","N",IF($A$2="Municiple","Y","error")) -> GU02N | H32: ≥ 500V & < 66kV | J32: 14.51 | K32: =ROUND(J32 * (1 + VAT), 2) -> 16.54 | L32: 27.52 | M32: =ROUND(L32 * (1 + VAT), 2) -> 31.37 | N32: 0 | O32: =ROUND(N32 * (1 + VAT), 2) -> 0 | Q32: Karoo | S32: 0 | T32: 0 | U32: < 500V
A33: Genflex urban loads | B33: GU | C33: 0 | D33: 3 | E33: GU03N | H33: ≥ 66kV & ≤ 132kV | J33: 5.18 | K33: =ROUND(J33 * (1 + VAT), 2) -> 5.91 | L33: 9.6 | M33: =ROUND(L33 * (1 + VAT), 2) -> 10.94 | N33: 12.78 | O33: =ROUND(N33 * (1 + VAT), 2) -> 14.57 | Q33: Kwazulu-Natal | S33: 1.88 | T33: 2.14 | U33: ≥ 500V & < 66kV
A34: Genflex urban loads | B34: GU | C34: 0 | D34: 4 | E34: GU04N | H34: > 132kV / Transmission connected | J34: 0 | K34: =ROUND(J34 * (1 + VAT), 2) -> 0 | L34: 0 | M34: =ROUND(L34 * (1 + VAT), 2) -> 0 | N34: 12.78 | O34: =ROUND(N34 * (1 + VAT), 2) -> 14.57 | Q34: Vaal | S34: 6.26 | T34: 7.14 | U34: ≥ 66kV & ≤ 132kV | W34: 12.8 | X34: =ROUND(W34 * (1 + VAT), 2) -> 14.59
A35: Gen-DUoS urban | B35: NEGenDUoSU | C35: 0 | D35: 3 | E35: NEGenDUoSU03N | Q35: Waterberg | S35: 8.02 | T35: 9.14 | U35: * The Distribution network charge will be rebated by the Losses charge, but not beyond extintion
Q36: Mpumalanga | S36: 7.44 | T36: 8.48
H37: Customer categories | J37: Service charge [R/account/day] | L37: Administration charge [R/POD/day]
H38: [kVA or MVA = loads] | Q38: Ancillary service charge for loads and generators
A39: Tariff | B39: Tariff nameBillcode | C39: Tx zone | D39: Voltage | E39: Billcode | H39: [kW or MW = generators] | K39: VAT incl | M39: VAT incl
A40: Genflex urban loads | B40: GU | C40: 0 | D40: 1 | E40: =B40&C40&D40&IF($A$2="Non-municipal","N",IF($A$2="Municiple","Y","error")) -> GU01N | H40: ≤ 100 KVA/ kW | J40: 12.92 | K40: =ROUND(J40 * (1 + VAT), 2) -> 14.73 | L40: 2.84 | M40: =ROUND(L40 * (1 + VAT), 2) -> 3.24 | Q40: Voltage | S40: Ancillary service charge [c/kWh]
A41: Genflex urban loads | B41: GU | C41: 0 | D41: 1 | E41: =B41&C41&D41&IF($A$2="Non-municipal","N",IF($A$2="Municiple","Y","error")) -> GU01N | H41: > 100 kVA/ kW & ≤ 500 kVA/ kW | J41: 59.03 | K41: =ROUND(J41 * (1 + VAT), 2) -> 67.29 | L41: 16.55 | M41: =ROUND(L41 * (1 + VAT), 2) -> 18.87 | T41: VAT incl
A42: Genflex urban loads | B42: GU | C42: 0 | D42: 1 | E42: GU01N | H42: > 500 kVA/ kW & ≤ 1 MVA/MW | J42: 181.66 | K42: =ROUND(J42 * (1 + VAT), 2) -> 207.09 | L42: 32.88 | M42: =ROUND(L42 * (1 + VAT), 2) -> 37.48 | Q42: < 500V | S42: 0.37 | T42: =ROUND(S42 * (1 + VAT), 2) -> 0.42
A43: Genflex urban loads | B43: GU | C43: 0 | D43: 1 | E43: GU01N | H43: > 1 MVA/MW | J43: 181.66 | K43: =ROUND(J43 * (1 + VAT), 2) -> 207.09 | L43: 81.87 | M43: =ROUND(L43 * (1 + VAT), 2) -> 93.33 | Q43: ≥ 500V & < 66kV | S43: 0.36 | T43: =ROUND(S43 * (1 + VAT), 2) -> 0.41
A44: Genflex urban loads | B44: GU | C44: 0 | D44: 1 | E44: =B44&C44&D44&IF($A$2="Non-municipal","N",IF($A$2="Municiple","Y","error")) -> GU01N | H44: Key customers or Transmission connected generators | J44: 3559.79 | K44: =ROUND(J44 * (1 + VAT), 2) -> 4058.16 | L44: 113.69 | M44: =ROUND(L44 * (1 + VAT), 2) -> 129.61 | Q44: ≥ 66kV & ≤ 132kV | S44: 0.34 | T44: =ROUND(S44 * (1 + VAT), 2) -> 0.39
Q45: > 132kV / Transmission connected | S45: 0.32 | T45: =ROUND(S45 * (1 + VAT), 2) -> 0.36 | Y45: ='Loss Factors'!R10 -> 0
H46: Applicable to loads
H47: Electrification and rural network subsidy charge [c/kWh] | J47: Affordability subsidy charge [c/kWh] Only payable by non-local authority tariffs | Q47: Reactive energy charge [c/kVArh] (loads)
Q48: High season | S48: Low season
R49: VAT incl | T49: VAT incl
A50: Tariff | B50: Tariff nameBillcode | C50: Tx zone | D50: Voltage | E50: Billcode | I50: VAT incl | K50: VAT incl | Q50: 12.8 | R50: =ROUND(Q50 * (1 + VAT), 2) -> 14.59 | S50: 0 | T50: =ROUND(S50 * (1 + VAT), 2) -> 0
A51: Genflex urban loads | B51: GU | C51: 0 | D51: 1 | E51: =B51&C51&D51&IF($A$2="Non-municipal","N",IF($A$2="Municiple","Y","error")) -> GU01N | H51: 7.08 | I51: =ROUND(H51 * (1 + VAT), 2) -> 8.07 | J51: 2.87 | K51: =ROUND(J51 * (1 + VAT), 2) -> 3.27
H54: Losses charge for generators
H55: Distribution connected generators | M55: Transmission connected generators
H56: Formula | M56: Formula
H57: Distribution = - ((Energy produced x WEPS rate excluding losses) x (Distribution loss factor x Transmission loss factor-1)) in each TOU period | M57: Transmission = (Energy produced x WEPS rate excluding losses) x (Transmission loss factor-1/Transmission loss factor) in each TOU period
H58: Transmission loss factors for Distribution connected | K58: Distribution loss factors | M58: Generator loss factor
H59: ='Loss Factors'!R5 -> Distance from Johannesburg | J59: ='Loss Factors'!S5 -> Zone | K59: ='Loss Factors'!N5 -> Voltage | M59: =TUoS!I38 -> Cape | O59: =TUoS!J38 -> 0.971
H60: ='Loss Factors'!R6 -> ≤ 300km | J60: ='Loss Factors'!S6 -> 0 | K60: ='Loss Factors'!N6 -> < 500V | L60: ='Loss Factors'!O6 -> 1.1111 | M60: =TUoS!I39 -> Karoo | O60: =TUoS!J39 -> 0.995
H61: ='Loss Factors'!R7 -> > 300km & ≤ 600km | J61: ='Loss Factors'!S7 -> 1 | K61: ='Loss Factors'!N7 -> ≥ 500V & < 66kV | L61: ='Loss Factors'!O7 -> 1.0957 | M61: =TUoS!I40 -> Kwazulu-Natal | O61: =TUoS!J40 -> 1.004
H62: ='Loss Factors'!R8 -> > 600km & ≤ 900km | J62: ='Loss Factors'!S8 -> 2 | K62: ='Loss Factors'!N8 -> ≥ 66kV & ≤ 132kV | L62: ='Loss Factors'!O8 -> 1.0611 | M62: =TUoS!I41 -> Vaal | O62: =TUoS!J41 -> 1.02
H63: ='Loss Factors'!R9 -> > 900km | J63: ='Loss Factors'!S9 -> 3 | K63: ='Loss Factors'!N9 -> > 132kV/Transmission connected | L63: ='Loss Factors'!O9 -> 1 | M63: =TUoS!I42 -> Waterberg | O63: =TUoS!J42 -> 1.023
M64: =TUoS!I43 -> Mpumalanga | O64: =TUoS!J43 -> 1.021

Sheet Miniflex inc
G1: Back to menu
A2: Non-municipal | G2: Miniflex tariff | T2: Non-local authority
J4: Active energy charge [c/kWh] | V4: Network capacity charge [R/kVA/m]
H5: Transmission zone | J5: High demand season [Jun - Aug] | P5: Low demand season [Sep - May]
I6: Voltage | J6: Peak | L6: Standard | N6: Off Peak | P6: Peak | R6: Standard | T6: Off Peak
A7: Tariff | B7: Tariff nameBillcode | C7: Tx zone | D7: Voltage | E7: Billcode | K7: VAT incl | M7: VAT incl | O7: VAT incl | Q7: VAT incl | S7: VAT incl | U7: VAT incl | W7: VAT incl
A8: Miniflex | B8: Mi | C8: 0 | D8: 1 | E8: =B8&C8&D8&IF($A$2="Non-municipal","N",IF($A$2="Municiple","Y","error")) -> Mi01N | H8: ≤ 300km | I8: < 500V | J8: 278.33 | K8: =ROUND(J8 * (1 + VAT), 2) -> 317.3 | L8: 84.68 | M8: =ROUND(L8 * (1 + VAT), 2) -> 96.54 | N8: 46.24 | O8: =ROUND(N8 * (1 + VAT), 2) -> 52.71 | P8: 91.14 | Q8: =ROUND(P8 * (1 + VAT), 2) -> 103.9 | R8: 62.89 | S8: =ROUND(R8 * (1 + VAT), 2) -> 71.69 | T8: 40.09 | U8: =ROUND(T8 * (1 + VAT), 2) -> 45.7 | V8: 23.76 | W8: =ROUND(V8 * (1 + VAT), 2) -> 27.09
A9: Miniflex | B9: Mi | C9: 0 | D9: 2 | E9: =B9&C9&D9&IF($A$2="Non-municipal","N",IF($A$2="Municiple","Y","error")) -> Mi02N | I9: ≥ 500V & < 66kV | J9: 273.96 | K9: 312.31 | L9: 83 | M9: 94.62 | N9: 45.07 | O9: 51.38 | P9: 89.36 | Q9: 101.87 | R9: 61.51 | S9: 70.12 | T9: 39.02 | U9: 44.48 | V9: 21.77 | W9: 24.82
A10: Miniflex | B10: Mi | C10: 0 | D10: 3 | E10: Mi03N | I10: ≥ 66kV & ≤ 132kV | J10: 265.29 | K10: 302.43 | L10: 80.36 | M10: 91.61 | N10: 43.65 | O10: 49.76 | P10: 86.55 | Q10: 98.67 | R10: 59.56 | S10: 67.9 | T10: 37.79 | U10: 43.08 | V10: 12.23 | W10: 13.94
A11: Miniflex | B11: Mi | C11: 0 | D11: 4 | E11: Mi04N | I11: > 132kV* | J11: 250.03 | K11: 285.03 | L11: 75.74 | M11: 86.34 | N11: 41.14 | O11: 46.9 | P11: 81.58 | Q11: 93 | R11: 56.13 | S11: 63.99 | T11: 35.62 | U11: 40.61 | V11: 8.91 | W11: 10.16
A12: Miniflex | B12: Mi | C12: 1 | D12: 1 | E12: Mi11N | H12: > 300km and ≤ 600km | I12: < 500V | J12: 280.6 | K12: 319.88 | L12: 85.02 | M12: 96.92 | N12: 46.16 | O12: 52.62 | P12: 91.54 | Q12: 104.36 | R12: 63.02 | S12: 71.84 | T12: 39.98 | U12: 45.58 | V12: 23.81 | W12: 27.14
A13: Miniflex | B13: Mi | C13: 1 | D13: 2 | E13: Mi12N | I13: ≥ 500V & < 66kV | J13: 276.7 | K13: 315.44 | L13: 83.82 | M13: 95.55 | N13: 45.52 | O13: 51.89 | P13: 90.27 | Q13: 102.91 | R13: 62.12 | S13: 70.82 | T13: 39.41 | U13: 44.93 | V13: 21.84 | W13: 24.9
A14: Miniflex | B14: Mi | C14: 1 | D14: 3 | E14: Mi13N | I14: ≥ 66kV & ≤ 132kV | J14: 267.9 | K14: 305.41 | L14: 81.15 | M14: 92.51 | N14: 44.06 | O14: 50.23 | P14: 87.39 | Q14: 99.62 | R14: 60.14 | S14: 68.56 | T14: 38.15 | U14: 43.49 | V14: 12.28 | W14: 14
A15: Miniflex | B15: Mi | C15: 1 | D15: 4 | E15: Mi14N | I15: > 132kV* | J15: 252.53 | K15: 287.88 | L15: 76.51 | M15: 87.22 | N15: 41.52 | O15: 47.33 | P15: 82.36 | Q15: 93.89 | R15: 56.69 | S15: 64.63 | T15: 35.95 | U15: 40.98 | V15: 9.01 | W15: 10.27
A16: Miniflex | B16: Mi | C16: 2 | D16: 1 | E16: Mi21N | H16: > 600km and ≤ 900km | I16: < 500V | J16: 283.4 | K16: 323.08 | L16: 85.85 | M16: 97.87 | N16: 46.6 | O16: 53.12 | P16: 92.45 | Q16: 105.39 | R16: 63.63 | S16: 72.54 | T16: 40.35 | U16: 46 | V16: 23.93 | W16: 27.28
A17: Miniflex | B17: Mi | C17: 2 | D17: 2 | E17: Mi22N | I17: ≥ 500V & < 66kV | J17: 279.48 | K17: 318.61 | L17: 84.67 | M17: 96.52 | N17: 45.98 | O17: 52.42 | P17: 91.16 | Q17: 103.92 | R17: 62.75 | S17: 71.54 | T17: 39.81 | U17: 45.38 | V17: 21.9 | W17: 24.97
A18: Miniflex | B18: Mi | C18: 2 | D18: 3 | E18: Mi23N | I18: ≥ 66kV & ≤ 132kV | J18: 270.63 | K18: 308.52 | L18: 81.98 | M18: 93.46 | N18: 44.51 | O18: 50.74 | P18: 88.27 | Q18: 100.63 | R18: 60.76 | S18: 69.27 | T18: 38.54 | U18: 43.94 | V18: 12.35 | W18: 14.08
A19: Miniflex | B19: Mi | C19: 2 | D19: 4 | E19: Mi24N | I19: > 132kV* | J19: 255.08 | K19: 290.79 | L19: 77.26 | M19: 88.08 | N19: 41.97 | O19: 47.85 | P19: 83.21 | Q19: 94.86 | R19: 57.26 | S19: 65.28 | T19: 36.34 | U19: 41.43 | V19: 9.14 | W19: 10.42
A20: Miniflex | B20: Mi | C20: 3 | D20: 1 | E20: Mi31N | H20: > 900km | I20: < 500V | J20: 286.25 | K20: 326.33 | L20: 86.74 | M20: 98.88 | N20: 47.09 | O20: 53.68 | P20: 93.39 | Q20: 106.46 | R20: 64.26 | S20: 73.26 | T20: 40.79 | U20: 46.5 | V20: 23.95 | W20: 27.3
A21: Miniflex | B21: Mi | C21: 3 | D21: 2 | E21: Mi32N | I21: ≥ 500V & < 66kV | J21: 282.26 | K21: 321.78 | L21: 85.5 | M21: 97.47 | N21: 46.41 | O21: 52.91 | P21: 92.06 | Q21: 104.95 | R21: 63.35 | S21: 72.22 | T21: 40.2 | U21: 45.83 | V21: 21.98 | W21: 25.06
A22: Miniflex | B22: Mi | C22: 3 | D22: 3 | E22: Mi33N | I22: ≥ 66kV & ≤ 132kV | J22: 273.34 | K22: 311.61 | L22: 82.8 | M22: 94.39 | N22: 44.96 | O22: 51.25 | P22: 89.16 | Q22: 101.64 | R22: 61.37 | S22: 69.96 | T22: 38.93 | U22: 44.38 | V22: 12.4 | W22: 14.14
A23: Miniflex | B23: Mi | C23: 3 | D23: 4 | E23: Mi34N | I23: > 132kV* | J23: 257.56 | K23: 293.62 | L23: 78.06 | M23: 88.99 | N23: 42.41 | O23: 48.35 | P23: 84.07 | Q23: 95.84 | R23: 57.88 | S23: 65.98 | T23: 36.74 | U23: 41.88 | V23: 9.2 | W23: 10.49
I24: * 132 kV or Transmission connected
H26: Customer categories | J26: Service charge [R/account/day] | L26: Administration charge [R/POD/day]
A28: Tariff | B28: Tariff nameBillcode | C28: Tx zone | D28: Voltage | E28: Billcode | K28: VAT incl | M28: VAT incl | P28: Ancillary service charge [c/kWh] | R28: Network demand charge [c/kWh] [Peak & Standard] | U28: Urban low voltage subsidy charge [R/kVA/m]
A29: Miniflex | B29: Mi | C29: 0 | D29: 1 | E29: =B29&C29&D29&IF($A$2="Non-municipal","N",IF($A$2="Municiple","Y","error")) -> Mi01N | H29: ≤ 100 kVA | J29: 12.92 | K29: =ROUND(J29 * (1 + VAT), 2) -> 14.73 | L29: 2.84 | M29: =ROUND(L29 * (1 + VAT), 2) -> 3.24 | O29: Voltage | Q29: VAT incl | S29: VAT incl | W29: VAT incl
A30: Miniflex | B30: Mi | C30: 0 | D30: 1 | E30: =B30&C30&D30&IF($A$2="Non-municipal","N",IF($A$2="Municiple","Y","error")) -> Mi01N | H30: > 100 kVA & ≤ 500 kVA | J30: 59.03 | K30: =ROUND(J30 * (1 + VAT), 2) -> 67.29 | L30: 16.55 | M30: =ROUND(L30 * (1 + VAT), 2) -> 18.87 | O30: < 500V | P30: 0.37 | Q30: =ROUND(P30 * (1 + VAT), 2) -> 0.42 | R30: 14.7 | S30: =ROUND(R30 * (1 + VAT), 2) -> 16.76 | U30: < 500V | V30: 0 | W30: =ROUND(V30 * (1 + VAT), 2) -> 0
A31: Miniflex | B31: Mi | C31: 0 | D31: 1 | E31: =B31&C31&D31&IF($A$2="Non-municipal","N",IF($A$2="Municiple","Y","error")) -> Mi01N | H31: > 500 kVA & ≤ 1 MVA | J31: 181.66 | K31: =ROUND(J31 * (1 + VAT), 2) -> 207.09 | L31: 32.88 | M31: =ROUND(L31 * (1 + VAT), 2) -> 37.48 | O31: ≥ 500V & < 66kV | P31: 0.36 | Q31: =ROUND(P31 * (1 + VAT), 2) -> 0.41 | R31: 6.16 | S31: =ROUND(R31 * (1 + VAT), 2) -> 7.02 | U31: ≥ 500V & < 66kV | V31: 0 | W31: =ROUND(V31 * (1 + VAT), 2) -> 0
A32: Miniflex | B32: Mi | C32: 0 | D32: 1 | E32: =B32&C32&D32&IF($A$2="Non-municipal","N",IF($A$2="Municiple","Y","error")) -> Mi01N | H32: > 1 MVA | J32: 181.66 | K32: =ROUND(J32 * (1 + VAT), 2) -> 207.09 | L32: 81.87 | M32: =ROUND(L32 * (1 + VAT), 2) -> 93.33 | O32: ≥ 66kV & ≤ 132kV | P32: 0.34 | Q32: =ROUND(P32 * (1 + VAT), 2) -> 0.39 | R32: 2.15 | S32: =ROUND(R32 * (1 + VAT), 2) -> 2.45 | U32: ≥ 66kV & ≤ 132kV | V32: 12.78 | W32: =ROUND(V32 * (1 + VAT), 2) -> 14.57
A33: Miniflex | B33: Mi | C33: 0 | D33: 1 | E33: =B33&C33&D33&IF($A$2="Non-municipal","N",IF($A$2="Municiple","Y","error")) -> Mi01N | H33: Key customers | J33: 3559.79 | K33: =ROUND(J33 * (1 + VAT), 2) -> 4058.16 | L33: 113.69 | M33: =ROUND(L33 * (1 + VAT), 2) -> 129.61 | O33: > 132kV* | P33: 0.32 | Q33: =ROUND(P33 * (1 + VAT), 2) -> 0.36 | R33: 0 | S33: =ROUND(R33 * (1 + VAT), 2) -> 0 | U33: > 132kV* | V33: 12.78 | W33: =ROUND(V33 * (1 + VAT), 2) -> 14.57
O34: * 132 kV or Transmission connected | U34: * 132 kV or Transmission connected
H36: Electrification and rural network subsidy charge [c/kWh] | J36: Affordability subsidy charge [c/kWh] Only payable by non-local authority tariffs | O36: Reactive energy charge [c/kVArh]
O38: High season | Q38: Low season
A39: Tariff | B39: Tariff nameBillcode | C39: Tx zone | D39: Voltage | E39: Billcode | I39: VAT incl | K39: VAT incl | P39: VAT incl | R39: VAT incl
A40: Miniflex | B40: Mi | C40: 0 | D40: 1 | E40: =B40&C40&D40&IF($A$2="Non-municipal","N",IF($A$2="Municiple","Y","error")) -> Mi01N | H40: 7.08 | I40: =ROUND(H40 * (1 + VAT), 2) -> 8.07 | J40: 2.87 | K40: =ROUND(J40 * (1 + VAT), 2) -> 3.27 | O40: 5.58 | P40: =ROUND(O40 * (1 + VAT), 2) -> 6.36 | Q40: 0 | R40: =ROUND(Q40 * (1 + VAT), 2) -> 0
A42: Miniflex | B42: Mi | C42: 0 | D42: 1 | E42: =B42&C42&D42&IF($A$2="Non-municipal","N",IF($A$2="Municiple","Y","error")) -> Mi01N
A43: Miniflex | B43: Mi | C43: 1 | D43: 2 | E43: =B43&C43&D43&IF($A$2="Non-municipal","N",IF($A$2="Municiple","Y","error")) -> Mi12N
A44: Miniflex | B44: Mi | C44: 2 | D44: 3 | E44: Mi23N
A45: Miniflex | B45: Mi | C45: 3 | D45: 4 | E45: Mi34N

Sheet Miniflex Munic inc
G1: Back to menu
A2: Municiple | G2: Miniflex tariff | T2: Local authority
J4: Active energy charge [c/kWh] | V4: Network capacity charge [R/kVA/m]
H5: Transmission zone | J5: High demand season [Jun - Aug] | P5: Low demand season [Sep - May]
I6: Voltage | J6: Peak | L6: Standard | N6: Off Peak | P6: Peak | R6: Standard | T6: Off Peak
A7: Tariff | B7: Tariff nameBillcode | C7: Tx zone | D7: Voltage | E7: Billcode | K7: VAT incl | M7: VAT incl | O7: VAT incl | Q7: VAT incl | S7: VAT incl | U7: VAT incl | W7: VAT incl
A8: Miniflex | B8: Mi | C8: 0 | D8: 1 | E8: =B8&C8&D8&IF($A$2="Non-municipal","N",IF($A$2="Municiple","Y","error")) -> Mi01Y | H8: ≤ 300km | I8: < 500V | J8: 279.71 | K8: =ROUND(J8 * (1 + VAT), 2) -> 318.87 | L8: 85.11 | M8: =ROUND(L8 * (1 + VAT), 2) -> 97.03 | N8: 46.44 | O8: =ROUND(N8 * (1 + VAT), 2) -> 52.94 | P8: 91.58 | Q8: =ROUND(P8 * (1 + VAT), 2) -> 104.4 | R8: 63.2 | S8: =ROUND(R8 * (1 + VAT), 2) -> 72.05 | T8: 40.28 | U8: =ROUND(T8 * (1 + VAT), 2) -> 45.92 | V8: 23.32 | W8: =ROUND(V8 * (1 + VAT), 2) -> 26.58
A9: Miniflex | B9: Mi | C9: 0 | D9: 2 | E9: =B9&C9&D9&IF($A$2="Non-municipal","N",IF($A$2="Municiple","Y","error")) -> Mi02Y | I9: ≥ 500V & < 66kV | J9: 275.3 | K9: 313.84 | L9: 83.41 | M9: 95.09 | N9: 45.29 | O9: 51.63 | P9: 89.81 | Q9: 102.38 | R9: 61.81 | S9: 70.46 | T9: 39.22 | U9: 44.71 | V9: 21.37 | W9: 24.36
A10: Miniflex | B10: Mi | C10: 0 | D10: 3 | E10: Mi03Y | I10: ≥ 66kV & ≤ 132kV | J10: 266.61 | K10: 303.94 | L10: 80.76 | M10: 92.07 | N10: 43.86 | O10: 50 | P10: 86.97 | Q10: 99.15 | R10: 59.87 | S10: 68.25 | T10: 37.97 | U10: 43.29 | V10: 12 | W10: 13.68
A11: Miniflex | B11: Mi | C11: 0 | D11: 4 | E11: Mi04Y | I11: > 132kV* | J11: 251.27 | K11: 286.45 | L11: 76.12 | M11: 86.78 | N11: 41.33 | O11: 47.12 | P11: 81.96 | Q11: 93.43 | R11: 56.41 | S11: 64.31 | T11: 35.79 | U11: 40.8 | V11: 8.76 | W11: 9.99
A12: Miniflex | B12: Mi | C12: 1 | D12: 1 | E12: Mi11Y | H12: > 300km and ≤ 600km | I12: < 500V | J12: 281.99 | K12: 321.47 | L12: 85.43 | M12: 97.39 | N12: 46.38 | O12: 52.87 | P12: 91.99 | Q12: 104.87 | R12: 63.33 | S12: 72.2 | T12: 40.17 | U12: 45.79 | V12: 23.37 | W12: 26.64
A13: Miniflex | B13: Mi | C13: 1 | D13: 2 | E13: Mi12Y | I13: ≥ 500V & < 66kV | J13: 278.05 | K13: 316.98 | L13: 84.23 | M13: 96.02 | N13: 45.74 | O13: 52.14 | P13: 90.71 | Q13: 103.41 | R13: 62.43 | S13: 71.17 | T13: 39.6 | U13: 45.14 | V13: 21.44 | W13: 24.44
A14: Miniflex | B14: Mi | C14: 1 | D14: 3 | E14: Mi13Y | I14: ≥ 66kV & ≤ 132kV | J14: 269.22 | K14: 306.91 | L14: 81.55 | M14: 92.97 | N14: 44.28 | O14: 50.48 | P14: 87.82 | Q14: 100.11 | R14: 60.44 | S14: 68.9 | T14: 38.33 | U14: 43.7 | V14: 12.07 | W14: 13.76
A15: Miniflex | B15: Mi | C15: 1 | D15: 4 | E15: Mi14Y | I15: > 132kV* | J15: 253.77 | K15: 289.3 | L15: 76.89 | M15: 87.65 | N15: 41.74 | O15: 47.58 | P15: 82.77 | Q15: 94.36 | R15: 56.98 | S15: 64.96 | T15: 36.14 | U15: 41.2 | V15: 8.84 | W15: 10.08
A16: Miniflex | B16: Mi | C16: 2 | D16: 1 | E16: Mi21Y | H16: > 600km and ≤ 900km | I16: < 500V | J16: 284.8 | K16: 324.67 | L16: 86.28 | M16: 98.36 | N16: 46.84 | O16: 53.4 | P16: 92.9 | Q16: 105.91 | R16: 63.95 | S16: 72.9 | T16: 40.57 | U16: 46.25 | V16: 23.49 | W16: 26.78
A17: Miniflex | B17: Mi | C17: 2 | D17: 2 | E17: Mi22Y | I17: ≥ 500V & < 66kV | J17: 280.85 | K17: 320.17 | L17: 85.07 | M17: 96.98 | N17: 46.2 | O17: 52.67 | P17: 91.63 | Q17: 104.46 | R17: 63.03 | S17: 71.85 | T17: 40 | U17: 45.6 | V17: 21.5 | W17: 24.51
A18: Miniflex | B18: Mi | C18: 2 | D18: 3 | E18: Mi23Y | I18: ≥ 66kV & ≤ 132kV | J18: 271.96 | K18: 310.03 | L18: 82.37 | M18: 93.9 | N18: 44.73 | O18: 50.99 | P18: 88.69 | Q18: 101.11 | R18: 61.04 | S18: 69.59 | T18: 38.72 | U18: 44.14 | V18: 12.12 | W18: 13.82
A19: Miniflex | B19: Mi | C19: 2 | D19: 4 | E19: Mi24Y | I19: > 132kV* | J19: 256.32 | K19: 292.2 | L19: 77.66 | M19: 88.53 | N19: 42.16 | O19: 48.06 | P19: 83.62 | Q19: 95.33 | R19: 57.55 | S19: 65.61 | T19: 36.51 | U19: 41.62 | V19: 8.96 | W19: 10.21
A20: Miniflex | B20: Mi | C20: 3 | D20: 1 | E20: Mi31Y | H20: > 900km | I20: < 500V | J20: 287.66 | K20: 327.93 | L20: 87.15 | M20: 99.35 | N20: 47.33 | O20: 53.96 | P20: 93.84 | Q20: 106.98 | R20: 64.58 | S20: 73.62 | T20: 40.98 | U20: 46.72 | V20: 23.51 | W20: 26.8
A21: Miniflex | B21: Mi | C21: 3 | D21: 2 | E21: Mi32Y | I21: ≥ 500V & < 66kV | J21: 283.66 | K21: 323.37 | L21: 85.92 | M21: 97.95 | N21: 46.66 | O21: 53.19 | P21: 92.52 | Q21: 105.47 | R21: 63.68 | S21: 72.6 | T21: 40.38 | U21: 46.03 | V21: 21.59 | W21: 24.61
A22: Miniflex | B22: Mi | C22: 3 | D22: 3 | E22: Mi33Y | I22: ≥ 66kV & ≤ 132kV | J22: 274.7 | K22: 313.16 | L22: 83.22 | M22: 94.87 | N22: 45.19 | O22: 51.52 | P22: 89.6 | Q22: 102.14 | R22: 61.66 | S22: 70.29 | T22: 39.12 | U22: 44.6 | V22: 12.16 | W22: 13.86
A23: Miniflex | B23: Mi | C23: 3 | D23: 4 | E23: Mi34Y | I23: > 132kV* | J23: 258.84 | K23: 295.08 | L23: 78.45 | M23: 89.43 | N23: 42.63 | O23: 48.6 | P23: 84.48 | Q23: 96.31 | R23: 58.15 | S23: 66.29 | T23: 36.91 | U23: 42.08 | V23: 9.03 | W23: 10.29
I24: * 132 kV or Transmission connected
H26: Customer categories | J26: Service charge [R/account/day] | L26: Administration charge [R/POD/day]
A28: Tariff | B28: Tariff nameBillcode | C28: Tx zone | D28: Voltage | E28: Billcode | K28: VAT incl | M28: VAT incl | P28: Ancillary service charge [c/kWh] | R28: Network demand charge [c/kWh] [Peak & Standard] | U28: Urban low voltage subsidy charge [R/kVA/m]
A29: Miniflex | B29: Mi | C29: 0 | D29: 1 | E29: =B29&C29&D29&IF($A$2="Non-municipal","N",IF($A$2="Municiple","Y","error")) -> Mi01Y | H29: ≤ 100 kVA | J29: 12.62 | K29: =ROUND(J29 * (1 + VAT), 2) -> 14.39 | L29: 2.77 | M29: =ROUND(L29 * (1 + VAT), 2) -> 3.16 | O29: Voltage | Q29: VAT incl | S29: VAT incl | W29: VAT incl
A30: Miniflex | B30: Mi | C30: 0 | D30: 1 | E30: =B30&C30&D30&IF($A$2="Non-municipal","N",IF($A$2="Municiple","Y","error")) -> Mi01Y | H30: > 100 kVA & ≤ 500 kVA | J30: 57.67 | K30: =ROUND(J30 * (1 + VAT), 2) -> 65.74 | L30: 16.16 | M30: =ROUND(L30 * (1 + VAT), 2) -> 18.42 | O30: < 500V | P30: 0.36 | Q30: =ROUND(P30 * (1 + VAT), 2) -> 0.41 | R30: 14.42 | S30: =ROUND(R30 * (1 + VAT), 2) -> 16.44 | U30: < 500V | V30: 0 | W30: =ROUND(V30 * (1 + VAT), 2) -> 0
A31: Miniflex | B31: Mi | C31: 0 | D31: 1 | E31: =B31&C31&D31&IF($A$2="Non-municipal","N",IF($A$2="Municiple","Y","error")) -> Mi01Y | H31: > 500 kVA & ≤ 1 MVA | J31: 177.48 | K31: =ROUND(J31 * (1 + VAT), 2) -> 202.33 | L31: 32.13 | M31: =ROUND(L31 * (1 + VAT), 2) -> 36.63 | O31: ≥ 500V & < 66kV | P31: 0.35 | Q31: =ROUND(P31 * (1 + VAT), 2) -> 0.4 | R31: 6.06 | S31: =ROUND(R31 * (1 + VAT), 2) -> 6.91 | U31: ≥ 500V & < 66kV | V31: 0 | W31: =ROUND(V31 * (1 + VAT), 2) -> 0
A32: Miniflex | B32: Mi | C32: 0 | D32: 1 | E32: =B32&C32&D32&IF($A$2="Non-municipal","N",IF($A$2="Municiple","Y","error")) -> Mi01Y | H32: > 1 MVA | J32: 177.48 | K32: =ROUND(J32 * (1 + VAT), 2) -> 202.33 | L32: 80 | M32: =ROUND(L32 * (1 + VAT), 2) -> 91.2 | O32: ≥ 66kV & ≤ 132kV | P32: 0.33 | Q32: =ROUND(P32 * (1 + VAT), 2) -> 0.38 | R32: 2.1 | S32: =ROUND(R32 * (1 + VAT), 2) -> 2.39 | U32: ≥ 66kV & ≤ 132kV | V32: 12.48 | W32: =ROUND(V32 * (1 + VAT), 2) -> 14.23
A33: Miniflex | B33: Mi | C33: 0 | D33: 1 | E33: =B33&C33&D33&IF($A$2="Non-municipal","N",IF($A$2="Municiple","Y","error")) -> Mi01Y | H33: Key customers | J33: 3477.93 | K33: =ROUND(J33 * (1 + VAT), 2) -> 3964.84 | L33: 111.07 | M33: =ROUND(L33 * (1 + VAT), 2) -> 126.62 | O33: > 132kV* | P33: 0.31 | Q33: =ROUND(P33 * (1 + VAT), 2) -> 0.35 | R33: 0 | S33: =ROUND(R33 * (1 + VAT), 2) -> 0 | U33: > 132kV* | V33: 12.48 | W33: =ROUND(V33 * (1 + VAT), 2) -> 14.23
O34: * 132 kV or Transmission connected | U34: * 132 kV or Transmission connected
H36: Electrification and rural network subsidy charge [c/kWh] | L36: Reactive energy charge [c/kVArh]
L38: High season | N38: Low season
A39: Tariff | B39: Tariff nameBillcode | C39: Tx zone | D39: Voltage | E39: Billcode | I39: VAT incl | M39: VAT incl | O39: VAT incl
A40: Miniflex | B40: Mi | C40: 0 | D40: 1 | E40: =B40&C40&D40&IF($A$2="Non-municipal","N",IF($A$2="Municiple","Y","error")) -> Mi01Y | H40: 6.91 | I40: =ROUND(H40 * (1 + VAT), 2) -> 7.88 | L40: 5.47 | M40: =ROUND(L40 * (1 + VAT), 2) -> 6.24 | N40: 0 | O40: =ROUND(N40 * (1 + VAT), 2) -> 0
A42: Miniflex | B42: Mi | C42: 0 | D42: 1 | E42: =B42&C42&D42&IF($A$2="Non-municipal","N",IF($A$2="Municiple","Y","error")) -> Mi01Y
A43: Miniflex | B43: Mi | C43: 1 | D43: 2 | E43: =B43&C43&D43&IF($A$2="Non-municipal","N",IF($A$2="Municiple","Y","error")) -> Mi12Y
A44: Miniflex | B44: Mi | C44: 2 | D44: 3 | E44: Mi23Y
A45: Miniflex | B45: Mi | C45: 3 | D45: 4 | E45: Mi34Y

Sheet Businessrate inc
H1: Back to menu
A2: Non-municipal | H2: Businessrate tariffs | P2: Non-local authority
J4: Energy charge [c/kWh] | L4: Ancillary service charge [c/kWh] | N4: Network demand charge [c/kWh] | P4: Network capacity charge [R/POD/day] | R4: Service and administration charge [R/POD/day] | Z4: Electrification and rural network subsidy charge [c/kWh] | AB4: Affordability subsidy charge [c/kWh] payable by non-local authority tariffs
Z6: All seasons | AB6: All seasons
A7: Tariff | B7: Tariff nameBillcode | C7: Tx zone | D7: Voltage | E7: Billcode | K7: VAT incl | M7: VAT incl | O7: VAT incl | Q7: VAT incl | S7: VAT incl | AA7: VAT incl | AC7: VAT incl
A8: Businessrate 1 | B8: B1 | C8: 0 | D8: 1 | E8: =B8&C8&D8&IF($A$2="Non-municipal","N",IF($A$2="Municiple","Y","error")) -> B101N | H8: Businessrate 1 | J8: 95.3 | K8: =ROUND(J8 * (1 + VAT), 2) -> 108.64 | L8: 0.37 | M8: =ROUND(L8 * (1 + VAT), 2) -> 0.42 | N8: 13.46 | O8: =ROUND(N8 * (1 + VAT), 2) -> 15.34 | P8: 19.32 | Q8: =ROUND(P8 * (1 + VAT), 2) -> 22.02 | R8: 16.69 | S8: =ROUND(R8 * (1 + VAT), 2) -> 19.03 | Z8: 0 | AA8: =ROUND(Z8 * (1 + VAT), 2) -> 0 | AB8: 0 | AC8: =ROUND(AB8 * (1 + VAT), 2) -> 0
A9: Businessrate 2 | B9: B2 | C9: 0 | D9: 1 | E9: =B9&C9&D9&IF($A$2="Non-municipal","N",IF($A$2="Municiple","Y","error")) -> B201N | H9: Businessrate 2 | J9: 95.3 | K9: =ROUND(J9 * (1 + VAT), 2) -> 108.64 | L9: 0.37 | M9: =ROUND(L9 * (1 + VAT), 2) -> 0.42 | N9: 13.46 | O9: =ROUND(N9 * (1 + VAT), 2) -> 15.34 | P9: 32.55 | Q9: =ROUND(P9 * (1 + VAT), 2) -> 37.11 | R9: 16.69 | S9: =ROUND(R9 * (1 + VAT), 2) -> 19.03 | Z9: =Z8 -> 0 | AA9: =ROUND(Z9 * (1 + VAT), 2) -> 0 | AB9: =AB8 -> 0 | AC9: =ROUND(AB9 * (1 + VAT), 2) -> 0
A10: Businessrate 3 | B10: B3 | C10: 0 | D10: 1 | E10: B301N | H10: Businessrate 3 | J10: 95.3 | K10: =ROUND(J10 * (1 + VAT), 2) -> 108.64 | L10: 0.37 | M10: =ROUND(L10 * (1 + VAT), 2) -> 0.42 | N10: 13.46 | O10: =ROUND(N10 * (1 + VAT), 2) -> 15.34 | P10: 56.24 | Q10: =ROUND(P10 * (1 + VAT), 2) -> 64.11 | R10: 16.69 | S10: =ROUND(R10 * (1 + VAT), 2) -> 19.03 | Z10: =Z8 -> 0 | AA10: =ROUND(Z10 * (1 + VAT), 2) -> 0 | AB10: =AB8 -> 0 | AC10: =ROUND(AB10 * (1 + VAT), 2) -> 0
A11: Businessrate 4 | B11: B4 | C11: 0 | D11: 1 | E11: B401N | H11: Businessrate 4 | J11: 256.45 | K11: =ROUND(J11 * (1 + VAT), 2) -> 292.35 | L11: 0.37 | M11: =ROUND(L11 * (1 + VAT), 2) -> 0.42 | N11: 13.46 | O11: =ROUND(N11 * (1 + VAT), 2) -> 15.34 | Z11: =Z9 -> 0 | AA11: =ROUND(Z11 * (1 + VAT), 2) -> 0 | AB11: =AB9 -> 0 | AC11: =ROUND(AB11 * (1 + VAT), 2) -> 0

Sheet Businessrate Munic inc
H1: Back to menu
A2: Municiple | H2: Businessrate tariffs | P2: Local authority
J4: Energy charge [c/kWh] | L4: Ancillary service charge [c/kWh] | N4: Network demand charge [c/kWh] | P4: Network capacity charge [R/POD/day] | R4: Service and administration charge [R/POD/day] | Z4: Electrification and rural network subsidy charge [c/kWh] | AB4: Affordability subsidy charge [c/kWh] payable by non-local authority tariffs
Z6: All seasons | AB6: All seasons
A7: Tariff | B7: Tariff nameBillcode | C7: Tx zone | D7: Voltage | E7: Billcode | K7: VAT incl | M7: VAT incl | O7: VAT incl | Q7: VAT incl | S7: VAT incl | AA7: VAT incl | AC7: VAT incl
A8: Businessrate 1 | B8: B1 | C8: 0 | D8: 1 | E8: =B8&C8&D8&IF($A$2="Non-municipal","N",IF($A$2="Municiple","Y","error")) -> B101Y | H8: Businessrate 1 | J8: 95.77 | K8: =ROUND(J8 * (1 + VAT), 2) -> 109.18 | L8: 0.36 | M8: =ROUND(L8 * (1 + VAT), 2) -> 0.41 | N8: 13.27 | O8: =ROUND(N8 * (1 + VAT), 2) -> 15.13 | P8: 19.04 | Q8: =ROUND(P8 * (1 + VAT), 2) -> 21.71 | R8: 16.3 | S8: =ROUND(R8 * (1 + VAT), 2) -> 18.58 | Z8: 0 | AA8: =ROUND(Z8 * (1 + VAT), 2) -> 0 | AB8: 0 | AC8: =ROUND(AB8 * (1 + VAT), 2) -> 0
A9: Businessrate 2 | B9: B2 | C9: 0 | D9: 1 | E9: =B9&C9&D9&IF($A$2="Non-municipal","N",IF($A$2="Municiple","Y","error")) -> B201Y | H9: Businessrate 2 | J9: 95.77 | K9: =ROUND(J9 * (1 + VAT), 2) -> 109.18 | L9: 0.36 | M9: =ROUND(L9 * (1 + VAT), 2) -> 0.41 | N9: 13.27 | O9: =ROUND(N9 * (1 + VAT), 2) -> 15.13 | P9: 32.1 | Q9: =ROUND(P9 * (1 + VAT), 2) -> 36.59 | R9: 16.3 | S9: =ROUND(R9 * (1 + VAT), 2) -> 18.58 | Z9: =Z8 -> 0 | AA9: =ROUND(Z9 * (1 + VAT), 2) -> 0 | AB9: =AB8 -> 0 | AC9: =ROUND(AB9 * (1 + VAT), 2) -> 0
A10: Businessrate 3 | B10: B3 | C10: 0 | D10: 1 | E10: B301Y | H10: Businessrate 3 | J10: 95.77 | K10: =ROUND(J10 * (1 + VAT), 2) -> 109.18 | L10: 0.36 | M10: =ROUND(L10 * (1 + VAT), 2) -> 0.41 | N10: 13.27 | O10: =ROUND(N10 * (1 + VAT), 2) -> 15.13 | P10: 55.47 | Q10: =ROUND(P10 * (1 + VAT), 2) -> 63.24 | R10: 16.3 | S10: =ROUND(R10 * (1 + VAT), 2) -> 18.58 | Z10: =Z8 -> 0 | AA10: =ROUND(Z10 * (1 + VAT), 2) -> 0 | AB10: =AB8 -> 0 | AC10: =ROUND(AB10 * (1 + VAT), 2) -> 0
A11: Businessrate 4 | B11: B4 | C11: 0 | D11: 1 | E11: B401Y | H11: Businessrate 4 | J11: 257.71 | K11: =ROUND(J11 * (1 + VAT), 2) -> 293.79 | L11: 0.36 | M11: =ROUND(L11 * (1 + VAT), 2) -> 0.41 | N11: 13.27 | O11: =ROUND(N11 * (1 + VAT), 2) -> 15.13 | Z11: =Z9 -> 0 | AA11: =ROUND(Z11 * (1 + VAT), 2) -> 0 | AB11: =AB9 -> 0 | AC11: =ROUND(AB11 * (1 + VAT), 2) -> 0

Sheet Public Lighting inc
H1: Back to menu
A2: Non-municipal | H2: Public Lighting tariffs Non-local authority
K4: All Night | M4: 24 Hours
A5: Tariff | B5: Tariff nameBillcode | C5: Tx zone | D5: Voltage | E5: Billcode | L5: VAT incl | N5: VAT incl
A6: Public lighting 24 hours | B6: Pu | C6: 0 | D6: 1 | E6: =B6&C6&D6&IF($A$2="Non-municipal","N",IF($A$2="Municiple","Y","error")) -> Pu01N | H6: Public Lighting | I6: Energy charge [c/kWh] | K6: 75.83 | L6: =ROUND(K6 * (1 + VAT), 2) -> 86.45 | M6: 101.54 | N6: =ROUND(M6 * (1 + VAT), 2) -> 115.76
A7: Public lighting All Night | B7: Pa | C7: 0 | D7: 1 | E7: =B7&C7&D7&IF($A$2="Non-municipal","N",IF($A$2="Municiple","Y","error")) -> Pa01N | I7: Energy charge [R/100W/month] | K7: 23.73 | L7: =ROUND(K7 * (1 + VAT), 2) -> 27.05 | M7: 68.39 | N7: =ROUND(M7 * (1 + VAT), 2) -> 77.96
A9: Public lighting Urban fixed | B9: Pt | C9: 0 | D9: 1 | E9: =B9&C9&D9&IF($A$2="Non-municipal","N",IF($A$2="Municiple","Y","error")) -> Pt01N | H9: Public Lighting - Urban Fixed | I9: Fixed charge [R/POD/day] | K9: 4.99 | L9: =ROUND(K9 * (1 + VAT), 2) -> 5.69
H11: Maintenance charges | K11: R/month
L12: VAT incl
A13: Public Lighting - Maintenance charge - per lumanaire | B13: Plu | C13: 0 | D13: 1 | E13: =B13&C13&D13&IF($A$2="Non-municipal","N",IF($A$2="Municiple","Y","error")) -> Plu01N | J13: Per lumanaire | K13: 40.22 | L13: =ROUND(K13 * (1 + VAT), 2) -> 45.85
A14: Public Lighting - Maintenance charge - per high-mast lumanaire | B14: Plhm | C14: 0 | D14: 1 | E14: =B14&C14&D14&IF($A$2="Non-municipal","N",IF($A$2="Municiple","Y","error")) -> Plhm01N | J14: Per high-mast lumanaire | K14: 936.11 | L14: =ROUND(K14 * (1 + VAT), 2) -> 1067.17

Sheet Public Lighting Munic inc
H1: Back to menu
A2: Municipal | H2: Public Lighting tariffs Local authority | AB2: =SUM(#REF!) ->  | AC2: check value
K4: All Night | M4: 24 Hours
A5: Tariff | B5: Tariff nameBillcode | C5: Tx zone | D5: Voltage | E5: Billcode | L5: VAT incl | N5: VAT incl
A6: Public lighting 24 hours | B6: Pu | C6: 0 | D6: 1 | E6: =B6&C6&D6&IF($A$2="Non-municipal","N",IF($A$2="Municipal","Y","error")) -> Pu01Y | H6: Public Lighting | I6: Energy charge [c/kWh] | K6: 77.3 | L6: =ROUND(K6 * (1 + VAT), 2) -> 88.12 | M6: 103.51 | N6: =ROUND(M6 * (1 + VAT), 2) -> 118
A7: Public lighting All Night | B7: Pa | C7: 0 | D7: 1 | E7: =B7&C7&D7&IF($A$2="Non-municipal","N",IF($A$2="Municipal","Y","error")) -> Pa01Y | I7: Energy charge [R/100W/month] | K7: 23.61 | L7: =ROUND(K7 * (1 + VAT), 2) -> 26.92 | M7: 68.05 | N7: =ROUND(M7 * (1 + VAT), 2) -> 77.58
A9: Public lighting Urban fixed | B9: Pt | C9: 0 | D9: 1 | E9: =B9&C9&D9&IF($A$2="Non-municipal","N",IF($A$2="Municipal","Y","error")) -> Pt01Y | H9: Public Lighting - Urban Fixed | I9: Fixed charge [R/POD/day] | K9: 5.082734156 | L9: =ROUND(K9 * (1 + VAT), 2) -> 5.79
H11: Maintenance charges | K11: R/month
L12: VAT incl
A13: Public Lighting - Maintenance charge - per lumanaire | B13: Plu | C13: 0 | D13: 1 | E13: =B13&C13&D13&IF($A$2="Non-municipal","N",IF($A$2="Municipal","Y","error")) -> Plu01Y | J13: Per lumanaire | K13: 40.79 | L13: =ROUND(K13 * (1 + VAT), 2) -> 46.5
A14: Public Lighting - Maintenance charge - per high-mast lumanaire | B14: Plhm | C14: 0 | D14: 1 | E14: =B14&C14&D14&IF($A$2="Non-municipal","N",IF($A$2="Municipal","Y","error")) -> Plhm01Y | J14: Per high-mast lumanaire | K14: 952.62 | L14: =ROUND(K14 * (1 + VAT), 2) -> 1085.99

Sheet Homepower inc
H1: Back to menu
A2: Non-municipal | H2: Homepower tariffs | O2: Non-local authority
J5: Energy charge [c/kWh] | N5: Network capacity charge [R/POD/day]
A6: Tariff | B6: Tariff nameBillcode | C6: Tx zone | D6: Voltage | E6: Billcode | J6: Block 1 [>0 - 600 kWh] | K6: VAT incl | L6: Block 2 [>600 kWh] | M6: VAT incl | O6: VAT incl
A7: Homepower 1 | B7: H1 | C7: 0 | D7: 1 | E7: =B7&C7&D7&IF($A$2="Non-municipal","N",IF($A$2="Municiple","Y","error")) -> H101N | H7: Homepower 1 | J7: 111.69 | K7: =ROUND(J7 * (1 + VAT), 2) -> 127.33 | L7: 176.36 | M7: =ROUND(L7 * (1 + VAT), 2) -> 201.05 | N7: 4.78 | O7: =ROUND(N7 * (1 + VAT), 2) -> 5.45
A8: Homepower 2 | B8: H2 | C8: 0 | D8: 1 | E8: =B8&C8&D8&IF($A$2="Non-municipal","N",IF($A$2="Municiple","Y","error")) -> H201N | H8: Homepower 2 | J8: 111.69 | K8: =ROUND(J8 * (1 + VAT), 2) -> 127.33 | L8: 171.95 | M8: =ROUND(L8 * (1 + VAT), 2) -> 196.02 | N8: 8.96 | O8: =ROUND(N8 * (1 + VAT), 2) -> 10.21
A9: Homepower 3 | B9: H3 | C9: 0 | D9: 1 | E9: H301N | H9: Homepower 3 | J9: 111.69 | K9: =ROUND(J9 * (1 + VAT), 2) -> 127.33 | L9: 171.95 | M9: =ROUND(L9 * (1 + VAT), 2) -> 196.02 | N9: 18.51 | O9: =ROUND(N9 * (1 + VAT), 2) -> 21.1
A10: Homepower 4 | B10: H4 | C10: 0 | D10: 1 | E10: H401N | H10: Homepower 4 | J10: 111.69 | K10: =ROUND(J10 * (1 + VAT), 2) -> 127.33 | L10: 179.61 | M10: =ROUND(L10 * (1 + VAT), 2) -> 204.76 | N10: 2.92 | O10: =ROUND(N10 * (1 + VAT), 2) -> 3.33
J12: Energy charge [c/kWh] | L12: Network capacity charge [R/kVA]
K13: VAT incl | M13: VAT incl
A14: Homepower Bulk < 500V | B14: HB | C14: 0 | D14: 1 | E14: =B14&C14&D14&IF($A$2="Non-municipal","N",IF($A$2="Municiple","Y","error")) -> HB01N | H14: Homepower Bulk | J14: 146.64 | K14: =ROUND(J14 * (1 + VAT), 2) -> 167.17 | L14: 30.34 | M14: =ROUND(L14 * (1 + VAT), 2) -> 34.59
H15: * The Network capacity charge is based on the NMD or on the maximum demand if measured.

Sheet Homepower Munic inc
H1: Back to menu
A2: Municiple | H2: Homepower tariffs | N2: Local authority
J4: Energy charge [c/kWh] | L4: Energy charge [c/kWh] | N4: Network capacity charge [R/POD/day]
A5: Tariff | B5: Tariff nameBillcode | C5: Tx zone | D5: Voltage | E5: Billcode | J5: Block 1 [>0 - 600 kWh] | K5: VAT incl | L5: Block 2 [>600 kWh] | M5: VAT incl | O5: VAT incl
A6: Homepower 1 | B6: H1 | C6: 0 | D6: 1 | E6: =B6&C6&D6&IF($A$2="Non-municipal","N",IF($A$2="Municiple","Y","error")) -> H101Y | H6: Homepower 1 | J6: 109.63 | K6: =ROUND(J6 * (1 + VAT), 2) -> 124.98 | L6: 173.1 | M6: =ROUND(L6 * (1 + VAT), 2) -> 197.33 | N6: 4.69 | O6: =ROUND(N6 * (1 + VAT), 2) -> 5.35
A7: Homepower 2 | B7: H2 | C7: 0 | D7: 1 | E7: =B7&C7&D7&IF($A$2="Non-municipal","N",IF($A$2="Municiple","Y","error")) -> H201Y | H7: Homepower 2 | J7: 109.63 | K7: =ROUND(J7 * (1 + VAT), 2) -> 124.98 | L7: 168.76 | M7: =ROUND(L7 * (1 + VAT), 2) -> 192.39 | N7: 8.8 | O7: =ROUND(N7 * (1 + VAT), 2) -> 10.03
A8: Homepower 3 | B8: H3 | C8: 0 | D8: 1 | E8: H301Y | H8: Homepower 3 | J8: 109.63 | K8: =ROUND(J8 * (1 + VAT), 2) -> 124.98 | L8: 168.76 | M8: =ROUND(L8 * (1 + VAT), 2) -> 192.39 | N8: 18.17 | O8: =ROUND(N8 * (1 + VAT), 2) -> 20.71
A9: Homepower 4 | B9: H4 | C9: 0 | D9: 1 | E9: H401Y | H9: Homepower 4 | J9: 109.63 | K9: =ROUND(J9 * (1 + VAT), 2) -> 124.98 | L9: 176.29 | M9: =ROUND(L9 * (1 + VAT), 2) -> 200.97 | N9: 2.87 | O9: =ROUND(N9 * (1 + VAT), 2) -> 3.27

Sheet Homelight inc
H1: Back to menu
A2: Non-municipal | H2: Homelight tariffs Non-local authority
H4: Homelight 60A | J4: Energy charge [c/kWh]
A5: Tariff | B5: Tariff nameBillcode | C5: Tx zone | D5: Voltage | E5: Billcode | K5: VAT incl
A6: Homelight 1 60A | B6: HL16 | C6: 0 | D6: 1 | E6: =B6&C6&D6&IF($A$2="Non-municipal","N",IF($A$2="Municiple","Y","error")) -> HL1601N | H6: Block 1 [> 0 - 600 kWh] | J6: 105.66 | K6: =ROUND(J6 * (1 + VAT), 2) -> 120.45
A7: Homelight 2 60A | B7: HL26 | C7: 0 | D7: 1 | E7: =B7&C7&D7&IF($A$2="Non-municipal","N",IF($A$2="Municiple","Y","error")) -> HL2601N | H7: Block 2 [>600 kWh] | J7: 179.61 | K7: =ROUND(J7 * (1 + VAT), 2) -> 204.76
H10: Homelight 20A | J10: Energy charge [c/kWh]
K11: VAT incl
A12: Homelight 1 20A | B12: HL12 | C12: 0 | D12: 1 | E12: =B12&C12&D12&IF($A$2="Non-municipal","N",IF($A$2="Municiple","Y","error")) -> HL1201N | H12: Block 1 [> 0 - 350 kWh] | J12: 93.47 | K12: =ROUND(J12 * (1 + VAT), 2) -> 106.56
A13: Homelight 2 20A | B13: HL22 | C13: 0 | D13: 1 | E13: =B13&C13&D13&IF($A$2="Non-municipal","N",IF($A$2="Municiple","Y","error")) -> HL2201N | H13: Block 2 [>350 kWh] | J13: 105.79 | K13: =ROUND(J13 * (1 + VAT), 2) -> 120.6

Sheet Nightsave Rural inc
G1: Back to menu
A2: Non-municipal | G2: Nightsave Rural tariff | R2: Non-local authority | AF2: =SUM(#REF!,#REF!,#REF!,#REF!,#REF!,#REF!,#REF!,#REF!,#REF!,#REF!,#REF!,#REF!,#REF!,#REF!,#REF!) ->  | AG2: check value
J4: Active energy charge [c/kWh] | N4: Energy demand charges [R/kVA/m] | R4: Network capacity charges [R/kVA/m]
H5: Transmission zone | J5: High demand season [Jun - Aug] | L5: Low demand season [Sep - May] | N5: High demand season [Jun - Aug] | P5: Low demand season [Sep - May]
I6: Voltage
A7: Tariff | B7: Tariff nameBillcode | C7: Tx zone | D7: Voltage | E7: Billcode | K7: VAT incl | M7: VAT incl | O7: VAT incl | Q7: VAT incl | S7: VAT incl
A8: Nightsave Rural | B8: NR | C8: 0 | D8: 1 | E8: =B8&C8&D8&IF($A$2="Non-municipal","N",IF($A$2="Municiple","Y","error")) -> NR01N | H8: ≤ 300km | I8: < 500V | J8: 70.29 | K8: =ROUND(J8 * (1 + VAT), 2) -> 80.13 | L8: 54.62 | M8: =ROUND(L8 * (1 + VAT), 2) -> 62.27 | N8: 235.53 | O8: =ROUND(N8 * (1 + VAT), 2) -> 268.5 | P8: 124.66 | Q8: =ROUND(P8 * (1 + VAT), 2) -> 142.11 | R8: 11.91 | S8: =ROUND(R8 * (1 + VAT), 2) -> 13.58
A9: Nightsave Rural | B9: NR | C9: 0 | D9: 2 | E9: =B9&C9&D9&IF($A$2="Non-municipal","N",IF($A$2="Municiple","Y","error")) -> NR02N | I9: ≥ 500V & ≤ 22kV | J9: 69.47 | K9: 79.2 | L9: 54.01 | M9: 61.57 | N9: 228.23 | O9: 260.18 | P9: 120.23 | Q9: 137.06 | R9: 10.94 | S9: 12.47
A10: Nightsave Rural | B10: NR | E10: NRN | J10: 0 | L10: 0 | N10: 0 | O10: 0 | P10: 0 | Q10: 0 | R10: 0
A11: Nightsave Rural | B11: NR | E11: NRN | J11: 0 | L11: 0 | N11: 0 | O11: 0 | P11: 0 | Q11: 0 | R11: 0
A12: Nightsave Rural | B12: NR | C12: 1 | D12: 1 | E12: NR11N | H12: > 300km and ≤ 600km | I12: < 500V | J12: 70.99 | K12: 80.93 | L12: 55.17 | M12: 62.89 | N12: 238.37 | O12: 271.74 | P12: 126.39 | Q12: 144.08 | R12: 11.94 | S12: 13.61
A13: Nightsave Rural | B13: NR | C13: 1 | D13: 2 | E13: NR12N | I13: ≥ 500V & ≤ 22kV | J13: 70.18 | K13: 80.01 | L13: 54.55 | M13: 62.19 | N13: 231.02 | O13: 263.36 | P13: 121.9 | Q13: 138.97 | R13: 10.99 | S13: 12.53
A14: Nightsave Rural | B14: NR | E14: NRN | J14: 0 | L14: 0 | N14: 0 | O14: 0 | P14: 0 | Q14: 0 | R14: 0
A15: Nightsave Rural | B15: NR | E15: NRN | J15: 0 | L15: 0 | N15: 0 | O15: 0 | P15: 0 | Q15: 0 | R15: 0
A16: Nightsave Rural | B16: NR | C16: 2 | D16: 1 | E16: NR21N | H16: > 600km and ≤ 900km | I16: < 500V | J16: 71.7 | K16: 81.74 | L16: 55.71 | M16: 63.51 | N16: 241.23 | O16: 275 | P16: 128.09 | Q16: 146.02 | R16: 12.05 | S16: 13.74
A17: Nightsave Rural | B17: NR | C17: 2 | D17: 2 | E17: NR22N | I17: ≥ 500V & ≤ 22kV | J17: 70.87 | K17: 80.79 | L17: 55.1 | M17: 62.81 | N17: 233.79 | O17: 266.52 | P17: 123.59 | Q17: 140.89 | R17: 11.06 | S17: 12.61
A18: Nightsave Rural | B18: NR | E18: NRN | J18: 0 | L18: 0 | N18: 0 | O18: 0 | P18: 0 | Q18: 0 | R18: 0
A19: Nightsave Rural | B19: NR | E19: NRN | J19: 0 | L19: 0 | N19: 0 | O19: 0 | P19: 0 | Q19: 0 | R19: 0
A20: Nightsave Rural | B20: NR | C20: 3 | D20: 1 | E20: NR31N | H20: > 900km | I20: < 500V | J20: 72.41 | K20: 82.55 | L20: 56.27 | M20: 64.15 | N20: 244.16 | O20: =ROUND(N20 * (1 + VAT), 2) -> 278.34 | P20: 129.86 | Q20: =ROUND(P20 * (1 + VAT), 2) -> 148.04 | R20: 12.08 | S20: 13.77
A21: Nightsave Rural | B21: NR | C21: 3 | D21: 2 | E21: NR32N | I21: ≥ 500V & ≤ 22kV | J21: 71.56 | K21: 81.58 | L21: 55.63 | M21: 63.42 | N21: 236.64 | O21: 269.77 | P21: 125.32 | Q21: 142.86 | R21: 11.08 | S21: 12.63
H26: Customer categories | J26: Service charge [R/account/day] | L26: Administration charge [R/POD/day]
A28: Tariff | B28: Tariff nameBillcode | C28: Tx zone | D28: Voltage | E28: Billcode | K28: VAT incl | M28: VAT incl
A29: Nightsave Rural | B29: NR | C29: 0 | D29: 1 | E29: =B29&C29&D29&IF($A$2="Non-municipal","N",IF($A$2="Municiple","Y","error")) -> NR01N | H29: ≤ 100 kVA | J29: 16.37 | K29: =ROUND(J29 * (1 + VAT), 2) -> 18.66 | L29: 4.65 | M29: =ROUND(L29 * (1 + VAT), 2) -> 5.3
A30: Nightsave Rural | B30: NR | C30: 0 | D30: 1 | E30: NR01N | H30: > 100 kVA & ≤ 500 kVA | J30: 55.83 | K30: =ROUND(J30 * (1 + VAT), 2) -> 63.65 | L30: 25.89 | M30: =ROUND(L30 * (1 + VAT), 2) -> 29.51 | P30: Ancillary service charge [c/kWh] | R30: Network demand charge [c/kWh] in all time-of-use periods
A31: Nightsave Rural | B31: NR | C31: 0 | D31: 1 | E31: NR01N | H31: > 500 kVA & ≤ 1 MVA | J31: 171.77 | K31: =ROUND(J31 * (1 + VAT), 2) -> 195.82 | L31: 39.73 | M31: =ROUND(L31 * (1 + VAT), 2) -> 45.29 | O31: Voltage | Q31: VAT incl | S31: VAT incl
A32: Nightsave Rural | B32: NR | C32: 0 | D32: 1 | E32: NR01N | H32: > 1 MVA | J32: 171.77 | K32: =ROUND(J32 * (1 + VAT), 2) -> 195.82 | L32: 73.72 | M32: =ROUND(L32 * (1 + VAT), 2) -> 84.04 | O32: < 500V | P32: 0.37 | Q32: =ROUND(P32 * (1 + VAT), 2) -> 0.42 | R32: 23.69 | S32: =ROUND(R32 * (1 + VAT), 2) -> 27.01
A33: Nightsave Rural | B33: NR | C33: 0 | D33: 1 | E33: NR01N | H33: Key customers | J33: 3366.46 | K33: =ROUND(J33 * (1 + VAT), 2) -> 3837.76 | L33: 73.72 | M33: =ROUND(L33 * (1 + VAT), 2) -> 84.04 | O33: ≥ 500V & ≤ 22kV | P33: 0.37 | Q33: =ROUND(P33 * (1 + VAT), 2) -> 0.42 | R33: 20.77 | S33: =ROUND(R33 * (1 + VAT), 2) -> 23.68
A34: Nightsave Rural | B34: NR | C34: 0 | D34: 2 | E34: NR02N

Sheet Nightsave Rural Munic inc
G1: Back to menu
A2: Municiple | G2: Nightsave Rural tariff | R2: Local authority | AF2: =SUM(#REF!,#REF!,#REF!,#REF!,#REF!,#REF!,#REF!,#REF!,#REF!,#REF!,#REF!,#REF!,#REF!,#REF!,#REF!) ->  | AG2: check value
J4: Active energy charge [c/kWh] | N4: Energy demand charges [R/kVA/m] | R4: Network capacity charges [R/kVA/m]
H5: Transmission zone | J5: High demand season [Jun - Aug] | L5: Low demand season [Sep - May] | N5: High demand season [Jun - Aug] | P5: Low demand season [Sep - May]
I6: Voltage
A7: Tariff | B7: Tariff nameBillcode | C7: Tx zone | D7: Voltage | E7: Billcode | K7: VAT incl | M7: VAT incl | O7: VAT incl | Q7: VAT incl | S7: VAT incl
A8: Nightsave Rural | B8: NR | C8: 0 | D8: 1 | E8: =B8&C8&D8&IF($A$2="Non-municipal","N",IF($A$2="Municiple","Y","error")) -> NR01Y | H8: ≤ 300km | I8: < 500V | J8: 70.64 | K8: =ROUND(J8 * (1 + VAT), 2) -> 80.53 | L8: 54.89 | M8: =ROUND(L8 * (1 + VAT), 2) -> 62.57 | N8: 231.17 | O8: =ROUND(N8 * (1 + VAT), 2) -> 263.53 | P8: 122.36 | Q8: =ROUND(P8 * (1 + VAT), 2) -> 139.49 | R8: 11.81 | S8: =ROUND(R8 * (1 + VAT), 2) -> 13.46
A9: Nightsave Rural | B9: NR | C9: 0 | D9: 2 | E9: =B9&C9&D9&IF($A$2="Non-municipal","N",IF($A$2="Municiple","Y","error")) -> NR02Y | I9: ≥ 500V & ≤ 22kV | J9: 69.81 | K9: 79.58 | L9: 54.28 | M9: 61.88 | N9: 224.01 | O9: 255.37 | P9: 117.99 | Q9: 134.51 | R9: 10.84 | S9: 12.36
A10: Nightsave Rural | B10: NR | E10: NRY | J10: 0 | L10: 0 | N10: 0 | O10: 0 | P10: 0 | Q10: 0 | R10: 0
A11: Nightsave Rural | B11: NR | E11: NRY | J11: 0 | L11: 0 | N11: 0 | O11: 0 | P11: 0 | Q11: 0 | R11: 0
A12: Nightsave Rural | B12: NR | C12: 1 | D12: 1 | E12: NR11Y | H12: > 300km and ≤ 600km | I12: < 500V | J12: 71.35 | K12: 81.34 | L12: 55.45 | M12: 63.21 | N12: 233.98 | O12: 266.74 | P12: 124.05 | Q12: 141.42 | R12: 11.83 | S12: 13.49
A13: Nightsave Rural | B13: NR | C13: 1 | D13: 2 | E13: NR12Y | I13: ≥ 500V & ≤ 22kV | J13: 70.5 | K13: 80.37 | L13: 54.82 | M13: 62.49 | N13: 226.75 | O13: 258.5 | P13: 119.64 | Q13: 136.39 | R13: 10.88 | S13: 12.4
A14: Nightsave Rural | B14: NR | E14: NRY | J14: 0 | L14: 0 | N14: 0 | O14: 0 | P14: 0 | Q14: 0 | R14: 0
A15: Nightsave Rural | B15: NR | E15: NRY | J15: 0 | L15: 0 | N15: 0 | O15: 0 | P15: 0 | Q15: 0 | R15: 0
A16: Nightsave Rural | B16: NR | C16: 2 | D16: 1 | E16: NR21Y | H16: > 600km and ≤ 900km | I16: < 500V | J16: 72.04 | K16: 82.13 | L16: 55.98 | M16: 63.82 | N16: 236.78 | O16: 269.93 | P16: 125.72 | Q16: 143.32 | R16: 11.95 | S16: 13.62
A17: Nightsave Rural | B17: NR | C17: 2 | D17: 2 | E17: NR22Y | I17: ≥ 500V & ≤ 22kV | J17: 71.2 | K17: 81.17 | L17: 55.36 | M17: 63.11 | N17: 229.48 | O17: 261.61 | P17: 121.3 | Q17: 138.28 | R17: 10.95 | S17: 12.48
A18: Nightsave Rural | B18: NR | E18: NRY | J18: 0 | L18: 0 | N18: 0 | O18: 0 | P18: 0 | Q18: 0 | R18: 0
A19: Nightsave Rural | B19: NR | E19: NRY | J19: 0 | L19: 0 | N19: 0 | O19: 0 | P19: 0 | Q19: 0 | R19: 0
A20: Nightsave Rural | B20: NR | C20: 3 | D20: 1 | E20: NR31Y | H20: > 900km | I20: < 500V | J20: 72.76 | K20: 82.95 | L20: 56.53 | M20: 64.44 | N20: 239.65 | O20: 273.2 | P20: 127.45 | Q20: 145.29 | R20: 11.96 | S20: 13.63
A21: Nightsave Rural | B21: NR | C21: 3 | D21: 2 | E21: NR32Y | I21: ≥ 500V & ≤ 22kV | J21: 71.9 | K21: 81.97 | L21: 55.89 | M21: 63.71 | N21: 232.28 | O21: 264.8 | P21: 123 | Q21: 140.22 | R21: 10.96 | S21: 12.49
H26: Customer categories | J26: Service charge [R/account/day] | L26: Administration charge [R/POD/day]
A28: Tariff | B28: Tariff nameBillcode | C28: Tx zone | D28: Voltage | E28: Billcode | K28: VAT incl | M28: VAT incl
A29: Nightsave Rural | B29: NR | C29: 0 | D29: 1 | E29: =B29&C29&D29&IF($A$2="Non-municipal","N",IF($A$2="Municiple","Y","error")) -> NR01Y | H29: ≤ 100 kVA | J29: 16 | K29: =ROUND(J29 * (1 + VAT), 2) -> 18.24 | L29: 4.54 | M29: =ROUND(L29 * (1 + VAT), 2) -> 5.18
A30: Nightsave Rural | B30: NR | C30: 0 | D30: 1 | E30: =B30&C30&D30&IF($A$2="Non-municipal","N",IF($A$2="Municiple","Y","error")) -> NR01Y | H30: > 100 kVA & ≤ 500 kVA | J30: 54.56 | K30: =ROUND(J30 * (1 + VAT), 2) -> 62.2 | L30: 25.29 | M30: =ROUND(L30 * (1 + VAT), 2) -> 28.83 | P30: Ancillary service charge [c/kWh] | R30: Network demand charge [c/kWh] in all time-of-use periods
A31: Nightsave Rural | B31: NR | C31: 0 | D31: 1 | E31: =B31&C31&D31&IF($A$2="Non-municipal","N",IF($A$2="Municiple","Y","error")) -> NR01Y | H31: > 500 kVA & ≤ 1 MVA | J31: 167.83 | K31: =ROUND(J31 * (1 + VAT), 2) -> 191.33 | L31: 38.81 | M31: =ROUND(L31 * (1 + VAT), 2) -> 44.24 | O31: Voltage | Q31: VAT incl | S31: VAT incl
A32: Nightsave Rural | B32: NR | C32: 0 | D32: 1 | E32: =B32&C32&D32&IF($A$2="Non-municipal","N",IF($A$2="Municiple","Y","error")) -> NR01Y | H32: > 1 MVA | J32: 167.83 | K32: =ROUND(J32 * (1 + VAT), 2) -> 191.33 | L32: 72.03 | M32: =ROUND(L32 * (1 + VAT), 2) -> 82.11 | O32: < 500V | P32: 0.36 | Q32: =ROUND(P32 * (1 + VAT), 2) -> 0.41 | R32: 23.49 | S32: =ROUND(R32 * (1 + VAT), 2) -> 26.78
A33: Nightsave Rural | B33: NR | C33: 0 | D33: 1 | E33: =B33&C33&D33&IF($A$2="Non-municipal","N",IF($A$2="Municiple","Y","error")) -> NR01Y | H33: Key customers | J33: 3289.03 | K33: =ROUND(J33 * (1 + VAT), 2) -> 3749.49 | L33: 72.03 | M33: =ROUND(L33 * (1 + VAT), 2) -> 82.11 | O33: ≥ 500V & ≤ 22kV | P33: 0.36 | Q33: =ROUND(P33 * (1 + VAT), 2) -> 0.41 | R33: 20.56 | S33: =ROUND(R33 * (1 + VAT), 2) -> 23.44

Sheet Ruraflex inc
G1: Back to menu
A2: Non-municipal | G2: Ruraflex tariff | T2: Non-local authority | AF2: =SUM(#REF!,#REF!,#REF!,#REF!,#REF!,#REF!,#REF!,#REF!,#REF!,#REF!,#REF!,#REF!) ->  | AG2: check value
J4: Active energy charge [c/kWh] | V4: Network capacity charges [R/kVA/m]
H5: Transmission zone | J5: High demand season [Jun - Aug] | P5: Low demand season [Sep - May]
I6: Voltage | J6: Peak | L6: Standard | N6: Off Peak | P6: Peak | R6: Standard | T6: Off Peak
A7: Tariff | B7: Tariff nameBillcode | C7: Tx zone | D7: Voltage | E7: Billcode | K7: VAT incl | M7: VAT incl | O7: VAT incl | Q7: VAT incl | S7: VAT incl | U7: VAT incl | W7: VAT incl
A8: Ruraflex | B8: Ru | C8: 0 | D8: 1 | E8: =B8&C8&D8&IF($A$2="Non-municipal","N",IF($A$2="Municiple","Y","error")) -> Ru01N | H8: ≤ 300km | I8: < 500V | J8: 288.2 | K8: =ROUND(J8 * (1 + VAT), 2) -> 328.55 | L8: 87.31 | M8: =ROUND(L8 * (1 + VAT), 2) -> 99.53 | N8: 47.42 | O8: =ROUND(N8 * (1 + VAT), 2) -> 54.06 | P8: 94.01 | Q8: =ROUND(P8 * (1 + VAT), 2) -> 107.17 | R8: 64.7 | S8: =ROUND(R8 * (1 + VAT), 2) -> 73.76 | T8: 41.04 | U8: =ROUND(T8 * (1 + VAT), 2) -> 46.79 | V8: 16.64 | W8: =ROUND(V8 * (1 + VAT), 2) -> 18.97
A9: Ruraflex | B9: Ru | C9: 0 | D9: 2 | E9: =B9&C9&D9&IF($A$2="Non-municipal","N",IF($A$2="Municiple","Y","error")) -> Ru02N | I9: ≥ 500V & ≤ 22kV | J9: 285.35 | K9: 325.3 | L9: 86.45 | M9: 98.55 | N9: 46.94 | O9: 53.51 | P9: 93.09 | Q9: 106.12 | R9: 64.06 | S9: 73.03 | T9: 40.63 | U9: 46.32 | V9: 15.25 | W9: 17.39
A10: Ruraflex | B10: Ru | E10: RuN | J10: 0 | L10: 0 | N10: 0 | P10: 0 | R10: 0 | T10: 0 | V10: 0
A11: Ruraflex | B11: Ru | E11: RuN | J11: 0 | L11: 0 | N11: 0 | P11: 0 | R11: 0 | T11: 0 | V11: 0
A12: Ruraflex | B12: Ru | C12: 1 | D12: 1 | E12: Ru11N | H12: > 300km and ≤ 600km | I12: < 500V | J12: 291.09 | K12: 331.84 | L12: 88.18 | M12: 100.53 | N12: 47.89 | O12: 54.59 | P12: 94.94 | Q12: 108.23 | R12: 65.35 | S12: 74.5 | T12: 41.47 | U12: 47.28 | V12: 16.69 | W12: 19.03
A13: Ruraflex | B13: Ru | C13: 1 | D13: 2 | E13: Ru12N | I13: ≥ 500V & ≤ 22kV | J13: 288.19 | K13: 328.54 | L13: 87.3 | M13: 99.52 | N13: 47.42 | O13: 54.06 | P13: 94.01 | Q13: 107.17 | R13: 64.69 | S13: 73.75 | T13: 41.04 | U13: 46.79 | V13: 15.35 | W13: 17.5
A14: Ruraflex | B14: Ru | E14: RuN | J14: 0 | L14: 0 | N14: 0 | P14: 0 | R14: 0 | T14: 0 | V14: 0
A15: Ruraflex | B15: Ru | E15: RuN | J15: 0 | L15: 0 | N15: 0 | P15: 0 | R15: 0 | T15: 0 | V15: 0
A16: Ruraflex | B16: Ru | C16: 2 | D16: 1 | E16: Ru21N | H16: > 600km and ≤ 900km | I16: < 500V | J16: 294 | K16: 335.16 | L16: 89.07 | M16: 101.54 | N16: 48.36 | O16: 55.13 | P16: 95.9 | Q16: 109.33 | R16: 66 | S16: 75.24 | T16: 41.88 | U16: 47.74 | V16: 16.78 | W16: 19.13
A17: Ruraflex | B17: Ru | C17: 2 | D17: 2 | E17: Ru22N | I17: ≥ 500V & ≤ 22kV | J17: 291.08 | K17: 331.83 | L17: 88.17 | M17: 100.51 | N17: 47.89 | O17: 54.59 | P17: 94.94 | Q17: 108.23 | R17: 65.35 | S17: 74.5 | T17: 41.47 | U17: 47.28 | V17: 15.41 | W17: 17.57
A18: Ruraflex | B18: Ru | E18: RuN | J18: 0 | L18: 0 | N18: 0 | P18: 0 | R18: 0 | T18: 0 | V18: 0
A19: Ruraflex | B19: Ru | E19: RuN | J19: 0 | L19: 0 | N19: 0 | P19: 0 | R19: 0 | T19: 0 | V19: 0
A20: Ruraflex | B20: Ru | C20: 3 | D20: 1 | E20: Ru31N | H20: > 900km | I20: < 500V | J20: 296.93 | K20: 338.5 | L20: 89.96 | M20: 102.55 | N20: 48.84 | O20: 55.68 | P20: 96.84 | Q20: 110.4 | R20: 66.65 | S20: 75.98 | T20: 42.3 | U20: 48.22 | V20: 16.85 | W20: 19.21
A21: Ruraflex | B21: Ru | C21: 3 | D21: 2 | E21: Ru32N | I21: ≥ 500V & ≤ 22kV | J21: 293.99 | K21: 335.15 | L21: 89.07 | M21: 101.54 | N21: 48.36 | O21: 55.13 | P21: 95.9 | Q21: 109.33 | R21: 66 | S21: 75.24 | T21: 41.88 | U21: 47.74 | V21: 15.42 | W21: 17.58
N22: 0
N23: 0
H26: Customer categories | J26: Service charge [R/account/day] | L26: Administration charge [R/POD/day] | Q26: Ancillary service charge [c/kWh] | S26: Network demand charge [c/kWh] in all time-of-use periods
O27: Voltage | R27: VAT incl | T27: VAT incl
A28: Tariff | B28: Tariff nameBillcode | C28: Tx zone | D28: Voltage | E28: Billcode | K28: VAT incl | M28: VAT incl | O28: < 500V | Q28: 0.37 | R28: =ROUND(Q28 * (1 + VAT), 2) -> 0.42 | S28: 23.69 | T28: =ROUND(S28 * (1 + VAT), 2) -> 27.01
A29: Ruraflex | B29: Ru | C29: 0 | D29: 1 | E29: =B29&C29&D29&IF($A$2="Non-municipal","N",IF($A$2="Municiple","Y","error")) -> Ru01N | H29: ≤ 100 kVA | J29: 16.37 | K29: =ROUND(J29 * (1 + VAT), 2) -> 18.66 | L29: 4.65 | M29: =ROUND(L29 * (1 + VAT), 2) -> 5.3 | O29: ≥ 500V & < 22kV | Q29: 0.37 | R29: =ROUND(Q29 * (1 + VAT), 2) -> 0.42 | S29: 20.77 | T29: =ROUND(S29 * (1 + VAT), 2) -> 23.68
A30: Ruraflex | B30: Ru | C30: 0 | D30: 1 | E30: =B30&C30&D30&IF($A$2="Non-municipal","N",IF($A$2="Municiple","Y","error")) -> Ru01N | H30: > 100 kVA & ≤ 500 kVA | J30: 55.83 | K30: =ROUND(J30 * (1 + VAT), 2) -> 63.65 | L30: 25.89 | M30: =ROUND(L30 * (1 + VAT), 2) -> 29.51
A31: Ruraflex | B31: Ru | C31: 0 | D31: 1 | E31: =B31&C31&D31&IF($A$2="Non-municipal","N",IF($A$2="Municiple","Y","error")) -> Ru01N | H31: > 500 kVA & ≤ 1 MVA | J31: 171.77 | K31: =ROUND(J31 * (1 + VAT), 2) -> 195.82 | L31: 39.73 | M31: =ROUND(L31 * (1 + VAT), 2) -> 45.29 | O31: Reactive energy charge [c/kVArh]
A32: Ruraflex | B32: Ru | C32: 0 | D32: 1 | E32: =B32&C32&D32&IF($A$2="Non-municipal","N",IF($A$2="Municiple","Y","error")) -> Ru01N | H32: > 1 MVA | J32: 171.77 | K32: =ROUND(J32 * (1 + VAT), 2) -> 195.82 | L32: 73.72 | M32: =ROUND(L32 * (1 + VAT), 2) -> 84.04 | O32: High season | Q32: Low season
A33: Ruraflex | B33: Ru | C33: 0 | D33: 1 | E33: =B33&C33&D33&IF($A$2="Non-municipal","N",IF($A$2="Municiple","Y","error")) -> Ru01N | H33: Key customers | J33: 3366.46 | K33: =ROUND(J33 * (1 + VAT), 2) -> 3837.76 | L33: 73.72 | M33: =ROUND(L33 * (1 + VAT), 2) -> 84.04 | P33: VAT incl | R33: VAT incl
O34: 8 | P34: =ROUND(O34 * (1 + VAT), 2) -> 9.12 | Q34: 0 | R34: =ROUND(Q34 * (1 + VAT), 2) -> 0

Sheet Ruraflex Munic inc
G1: Back to menu
A2: Municiple | G2: Ruraflex tariff | T2: Local authority | AF2: =SUM(#REF!,#REF!,#REF!,#REF!,#REF!,#REF!,#REF!,#REF!,#REF!,#REF!,#REF!,#REF!) ->  | AG2: check value
J4: Active energy charge [c/kWh] | V4: Network capacity charges [R/kVA/m]
H5: Transmission zone | J5: High demand season [Jun - Aug] | P5: Low demand season [Sep - May]
I6: Voltage | J6: Peak | L6: Standard | N6: Off Peak | P6: Peak | R6: Standard | T6: Off Peak
A7: Tariff | B7: Tariff nameBillcode | C7: Tx zone | D7: Voltage | E7: Billcode | K7: VAT incl | M7: VAT incl | O7: VAT incl | Q7: VAT incl | S7: VAT incl | U7: VAT incl | W7: VAT incl
A8: Ruraflex | B8: Ru | C8: 0 | D8: 1 | E8: =B8&C8&D8&IF($A$2="Non-municipal","N",IF($A$2="Municiple","Y","error")) -> Ru01Y | H8: ≤ 300km | I8: < 500V | J8: 289.63 | K8: =ROUND(J8 * (1 + VAT), 2) -> 330.18 | L8: 87.73 | M8: =ROUND(L8 * (1 + VAT), 2) -> 100.01 | N8: 47.65 | O8: =ROUND(N8 * (1 + VAT), 2) -> 54.32 | P8: 94.48 | Q8: =ROUND(P8 * (1 + VAT), 2) -> 107.71 | R8: 65.02 | S8: =ROUND(R8 * (1 + VAT), 2) -> 74.12 | T8: 41.25 | U8: =ROUND(T8 * (1 + VAT), 2) -> 47.03 | V8: 16.47 | W8: =ROUND(V8 * (1 + VAT), 2) -> 18.78
A9: Ruraflex | B9: Ru | C9: 0 | D9: 2 | E9: =B9&C9&D9&IF($A$2="Non-municipal","N",IF($A$2="Municiple","Y","error")) -> Ru02Y | I9: ≥ 500V & ≤ 22kV | J9: 286.75 | K9: 326.9 | L9: 86.87 | M9: 99.03 | N9: 47.17 | O9: 53.77 | P9: 93.56 | Q9: 106.66 | R9: 64.36 | S9: 73.37 | T9: 40.83 | U9: 46.55 | V9: 15.11 | W9: 17.23
A10: Ruraflex | B10: Ru | E10: RuY | J10: 0 | L10: 0 | N10: 0 | P10: 0 | R10: 0 | T10: 0 | V10: 0
A11: Ruraflex | B11: Ru | E11: RuY | J11: 0 | L11: 0 | N11: 0 | P11: 0 | R11: 0 | T11: 0 | V11: 0
A12: Ruraflex | B12: Ru | C12: 1 | D12: 1 | E12: Ru11Y | H12: > 300km and ≤ 600km | I12: < 500V | J12: 292.51 | K12: 333.46 | L12: 88.62 | M12: 101.03 | N12: 48.1 | O12: 54.83 | P12: 95.41 | Q12: 108.77 | R12: 65.67 | S12: 74.86 | T12: 41.67 | U12: 47.5 | V12: 16.54 | W12: 18.86
A13: Ruraflex | B13: Ru | C13: 1 | D13: 2 | E13: Ru12Y | I13: ≥ 500V & ≤ 22kV | J13: 289.62 | K13: 330.17 | L13: 87.72 | M13: 100 | N13: 47.65 | O13: 54.32 | P13: 94.48 | Q13: 107.71 | R13: 65.01 | S13: 74.11 | T13: 41.25 | U13: 47.03 | V13: 15.2 | W13: 17.33
A14: Ruraflex | B14: Ru | E14: RuY | J14: 0 | L14: 0 | N14: 0 | P14: 0 | R14: 0 | T14: 0 | V14: 0
A15: Ruraflex | B15: Ru | E15: RuY | J15: 0 | L15: 0 | N15: 0 | P15: 0 | R15: 0 | T15: 0 | V15: 0
A16: Ruraflex | B16: Ru | C16: 2 | D16: 1 | E16: Ru21Y | H16: > 600km and ≤ 900km | I16: < 500V | J16: 295.44 | K16: 336.8 | L16: 89.49 | M16: 102.02 | N16: 48.6 | O16: 55.4 | P16: 96.37 | Q16: 109.86 | R16: 66.31 | S16: 75.59 | T16: 42.09 | U16: 47.98 | V16: 16.63 | W16: 18.96
A17: Ruraflex | B17: Ru | C17: 2 | D17: 2 | E17: Ru22Y | I17: ≥ 500V & ≤ 22kV | J17: 292.5 | K17: 333.45 | L17: 88.61 | M17: 101.02 | N17: 48.1 | O17: 54.83 | P17: 95.41 | Q17: 108.77 | R17: 65.67 | S17: 74.86 | T17: 41.67 | U17: 47.5 | V17: 15.27 | W17: 17.41
A18: Ruraflex | B18: Ru | E18: RuY | J18: 0 | L18: 0 | N18: 0 | P18: 0 | R18: 0 | T18: 0 | V18: 0
A19: Ruraflex | B19: Ru | E19: RuY | J19: 0 | L19: 0 | N19: 0 | P19: 0 | R19: 0 | T19: 0 | V19: 0
A20: Ruraflex | B20: Ru | C20: 3 | D20: 1 | E20: Ru31Y | H20: > 900km | I20: < 500V | J20: 298.4 | K20: 340.18 | L20: 90.41 | M20: 103.07 | N20: 49.06 | O20: 55.93 | P20: 97.32 | Q20: 110.94 | R20: 67 | S20: 76.38 | T20: 42.5 | U20: 48.45 | V20: 16.68 | W20: 19.02
A21: Ruraflex | B21: Ru | C21: 3 | D21: 2 | E21: Ru32Y | I21: ≥ 500V & ≤ 22kV | J21: 295.43 | K21: 336.79 | L21: 89.49 | M21: 102.02 | N21: 48.6 | O21: 55.4 | P21: 96.37 | Q21: 109.86 | R21: 66.31 | S21: 75.59 | T21: 42.09 | U21: 47.98 | V21: 15.28 | W21: 17.42
N22: 0
N23: 0
H26: Customer categories | J26: Service charge [R/account/day] | L26: Administration charge [R/POD/day] | Q26: Ancillary service charge [c/kWh] | S26: Network demand charge [c/kWh] in all time-of-use periods
O27: Voltage | R27: VAT incl | T27: VAT incl
A28: Tariff | B28: Tariff nameBillcode | C28: Tx zone | D28: Voltage | E28: Billcode | K28: VAT incl | M28: VAT incl | O28: < 500V | Q28: 0.36 | R28: =ROUND(Q28 * (1 + VAT), 2) -> 0.41 | S28: 23.49 | T28: =ROUND(S28 * (1 + VAT), 2) -> 26.78
A29: Ruraflex | B29: Ru | C29: 0 | D29: 1 | E29: =B29&C29&D29&IF($A$2="Non-municipal","N",IF($A$2="Municiple","Y","error")) -> Ru01Y | H29: ≤ 100 kVA | J29: 16 | K29: =ROUND(J29 * (1 + VAT), 2) -> 18.24 | L29: 4.54 | M29: =ROUND(L29 * (1 + VAT), 2) -> 5.18 | O29: ≥ 500V & < 22kV | Q29: 0.36 | R29: =ROUND(Q29 * (1 + VAT), 2) -> 0.41 | S29: 20.56 | T29: =ROUND(S29 * (1 + VAT), 2) -> 23.44
A30: Ruraflex | B30: Ru | C30: 0 | D30: 1 | E30: =B30&C30&D30&IF($A$2="Non-municipal","N",IF($A$2="Municiple","Y","error")) -> Ru01Y | H30: > 100 kVA & ≤ 500 kVA | J30: 54.56 | K30: =ROUND(J30 * (1 + VAT), 2) -> 62.2 | L30: 25.29 | M30: =ROUND(L30 * (1 + VAT), 2) -> 28.83
A31: Ruraflex | B31: Ru | C31: 0 | D31: 1 | E31: =B31&C31&D31&IF($A$2="Non-municipal","N",IF($A$2="Municiple","Y","error")) -> Ru01Y | H31: > 500 kVA & ≤ 1 MVA | J31: 167.83 | K31: =ROUND(J31 * (1 + VAT), 2) -> 191.33 | L31: 38.81 | M31: =ROUND(L31 * (1 + VAT), 2) -> 44.24 | O31: Reactive energy charge [c/kVArh]
A32: Ruraflex | B32: Ru | C32: 0 | D32: 1 | E32: =B32&C32&D32&IF($A$2="Non-municipal","N",IF($A$2="Municiple","Y","error")) -> Ru01Y | H32: > 1 MVA | J32: 167.83 | K32: =ROUND(J32 * (1 + VAT), 2) -> 191.33 | L32: 72.03 | M32: =ROUND(L32 * (1 + VAT), 2) -> 82.11 | O32: High season | Q32: Low season
A33: Ruraflex | B33: Ru | C33: 0 | D33: 1 | E33: =B33&C33&D33&IF($A$2="Non-municipal","N",IF($A$2="Municiple","Y","error")) -> Ru01Y | H33: Key customers | J33: 3289.03 | K33: =ROUND(J33 * (1 + VAT), 2) -> 3749.49 | L33: 72.03 | M33: =ROUND(L33 * (1 + VAT), 2) -> 82.11 | P33: VAT incl | R33: VAT incl
O34: 7.81 | P34: =ROUND(O34 * (1 + VAT), 2) -> 8.9 | Q34: 0 | R34: =ROUND(Q34 * (1 + VAT), 2) -> 0

Sheet Ruraflex Gen inc
G1: Back to menu
A2: Non-municipal | G2: Ruraflex Gen tariff | T2: Non-local authority | AF2: =SUM(#REF!,#REF!,#REF!,#REF!,#REF!,#REF!,#REF!,#REF!,#REF!,#REF!,#REF!,#REF!) ->  | AG2: check value
J4: Active energy charge for loads [c/kWh] | V4: Network capacity charges [R/kVA/m]
H5: Transmission zone | J5: High demand season [Jun - Aug] | P5: Low demand season [Sep - May]
I6: Voltage | J6: Peak | L6: Standard | N6: Off Peak | P6: Peak | R6: Standard | T6: Off Peak
A7: Tariff | B7: Tariff nameBillcode | C7: Tx zone | D7: Voltage | E7: Billcode | K7: VAT incl | M7: VAT incl | O7: VAT incl | Q7: VAT incl | S7: VAT incl | U7: VAT incl | W7: VAT incl
A8: Genflex rural | B8: GR | C8: 0 | D8: 1 | E8: =B8&C8&D8&IF($A$2="Non-municipal","N",IF($A$2="Municiple","Y","error")) -> GR01N | H8: ≤ 300km | I8: < 500V | J8: 288.2 | K8: =ROUND(J8 * (1 + VAT), 2) -> 328.55 | L8: 87.31 | M8: =ROUND(L8 * (1 + VAT), 2) -> 99.53 | N8: 47.42 | O8: =ROUND(N8 * (1 + VAT), 2) -> 54.06 | P8: 94.01 | Q8: =ROUND(P8 * (1 + VAT), 2) -> 107.17 | R8: 64.7 | S8: =ROUND(R8 * (1 + VAT), 2) -> 73.76 | T8: 41.04 | U8: =ROUND(T8 * (1 + VAT), 2) -> 46.79 | V8: 16.64 | W8: =ROUND(V8 * (1 + VAT), 2) -> 18.97
A9: Genflex rural | B9: GR | C9: 0 | D9: 2 | E9: =B9&C9&D9&IF($A$2="Non-municipal","N",IF($A$2="Municiple","Y","error")) -> GR02N | I9: ≥ 500V & ≤ 22kV | J9: 285.35 | K9: 325.3 | L9: 86.45 | M9: 98.55 | N9: 46.94 | O9: 53.51 | P9: 93.09 | Q9: 106.12 | R9: 64.06 | S9: 73.03 | T9: 40.63 | U9: 46.32 | V9: 15.25 | W9: 17.39
A10: Genflex rural | B10: GR | E10: GRN | J10: 0 | L10: 0 | N10: 0 | P10: 0 | R10: 0 | T10: 0 | V10: 0
A11: Genflex rural | B11: GR | E11: GRN | J11: 0 | L11: 0 | N11: 0 | P11: 0 | R11: 0 | T11: 0 | V11: 0
A12: Genflex rural | B12: GR | C12: 1 | D12: 1 | E12: GR11N | H12: > 300km and ≤ 600km | I12: < 500V | J12: 291.09 | K12: 331.84 | L12: 88.18 | M12: 100.53 | N12: 47.89 | O12: 54.59 | P12: 94.94 | Q12: 108.23 | R12: 65.35 | S12: 74.5 | T12: 41.47 | U12: 47.28 | V12: 16.69 | W12: 19.03
A13: Genflex rural | B13: GR | C13: 1 | D13: 2 | E13: GR12N | I13: ≥ 500V & ≤ 22kV | J13: 288.19 | K13: 328.54 | L13: 87.3 | M13: 99.52 | N13: 47.42 | O13: 54.06 | P13: 94.01 | Q13: 107.17 | R13: 64.69 | S13: 73.75 | T13: 41.04 | U13: 46.79 | V13: 15.35 | W13: 17.5
A14: Genflex rural | B14: GR | E14: GRN | J14: 0 | L14: 0 | N14: 0 | P14: 0 | R14: 0 | T14: 0 | V14: 0
A15: Genflex rural | B15: GR | E15: GRN | J15: 0 | L15: 0 | N15: 0 | P15: 0 | R15: 0 | T15: 0 | V15: 0
A16: Genflex rural | B16: GR | C16: 2 | D16: 1 | E16: GR21N | H16: > 600km and ≤ 900km | I16: < 500V | J16: 294 | K16: 335.16 | L16: 89.07 | M16: 101.54 | N16: 48.36 | O16: 55.13 | P16: 95.9 | Q16: 109.33 | R16: 66 | S16: 75.24 | T16: 41.88 | U16: 47.74 | V16: 16.78 | W16: 19.13
A17: Genflex rural | B17: GR | C17: 2 | D17: 2 | E17: GR22N | I17: ≥ 500V & ≤ 22kV | J17: 291.08 | K17: 331.83 | L17: 88.17 | M17: 100.51 | N17: 47.89 | O17: 54.59 | P17: 94.94 | Q17: 108.23 | R17: 65.35 | S17: 74.5 | T17: 41.47 | U17: 47.28 | V17: 15.41 | W17: 17.57
A18: Genflex rural | B18: GR | E18: GRN | J18: 0 | L18: 0 | N18: 0 | P18: 0 | R18: 0 | T18: 0 | V18: 0
A19: Genflex rural | B19: GR | E19: GRN | J19: 0 | L19: 0 | N19: 0 | P19: 0 | R19: 0 | T19: 0 | V19: 0
A20: Genflex rural | B20: GR | C20: 3 | D20: 1 | E20: GR31N | H20: > 900km | I20: < 500V | J20: 296.93 | K20: 338.5 | L20: 89.96 | M20: 102.55 | N20: 48.84 | O20: 55.68 | P20: 96.84 | Q20: 110.4 | R20: 66.65 | S20: 75.98 | T20: 42.3 | U20: 48.22 | V20: 16.85 | W20: 19.21
A21: Genflex rural | B21: GR | C21: 3 | D21: 2 | E21: GR32N | I21: ≥ 500V & ≤ 22kV | J21: 293.99 | K21: 335.15 | L21: 89.07 | M21: 101.54 | N21: 48.36 | O21: 55.13 | P21: 95.9 | Q21: 109.33 | R21: 66 | S21: 75.24 | T21: 41.88 | U21: 47.74 | V21: 15.42 | W21: 17.58
N22: 0
N23: 0
A24: Gen-purchase | B24: NLPurchADJ | C24: 0 | D24: 4 | E24: =B24&C24&D24&IF($A$2="Non-municipal","N",IF($A$2="Municiple","Y","error")) -> NLPurchADJ04N
Q26: Ancillary service charge for loads and generators
H28: Customer categories | J28: Service charge [R/account/day] | L28: Administration charge [R/POD/day] | O28: Voltage | Q28: Ancillary service charge [c/kWh]
H29: [kVA or MVA = loads] | R29: VAT incl
A30: Tariff | B30: Tariff nameBillcode | C30: Tx zone | D30: Voltage | E30: Billcode | H30: [kW or MW = generators] | K30: VAT incl | M30: VAT incl | O30: < 500V | Q30: 0.37 | R30: =ROUND(Q30 * (1 + VAT), 2) -> 0.42
A31: Genflex rural | B31: GR | C31: 0 | D31: 1 | E31: =B31&C31&D31&IF($A$2="Non-municipal","N",IF($A$2="Municiple","Y","error")) -> GR01N | H31: ≤ 100 kVA/kW | J31: 16.37 | K31: =ROUND(J31 * (1 + VAT), 2) -> 18.66 | L31: 4.65 | M31: =ROUND(L31 * (1 + VAT), 2) -> 5.3 | O31: ≥ 500V & < 22kV | Q31: 0.37 | R31: =ROUND(Q31 * (1 + VAT), 2) -> 0.42
A32: Genflex rural | B32: GR | C32: 0 | D32: 1 | E32: =B32&C32&D32&IF($A$2="Non-municipal","N",IF($A$2="Municiple","Y","error")) -> GR01N | H32: > 100 KVA/kW & ≤ 500 kVA/kW | J32: 55.83 | K32: =ROUND(J32 * (1 + VAT), 2) -> 63.65 | L32: 25.89 | M32: =ROUND(L32 * (1 + VAT), 2) -> 29.51
A33: Genflex rural | B33: GR | C33: 0 | D33: 1 | E33: =B33&C33&D33&IF($A$2="Non-municipal","N",IF($A$2="Municiple","Y","error")) -> GR01N | H33: > 500 kVA/kW & ≤ 1 MVA/MW | J33: 171.77 | K33: =ROUND(J33 * (1 + VAT), 2) -> 195.82 | L33: 39.73 | M33: =ROUND(L33 * (1 + VAT), 2) -> 45.29 | O33: Reactive energy charge [c/kVArh] | S33: Network demand charge [c/kWh] for loads in all time-of-use periods
A34: Genflex rural | B34: GR | C34: 0 | D34: 1 | E34: =B34&C34&D34&IF($A$2="Non-municipal","N",IF($A$2="Municiple","Y","error")) -> GR01N | H34: > 1 MVA/MW | J34: 171.77 | K34: =ROUND(J34 * (1 + VAT), 2) -> 195.82 | L34: 73.72 | M34: =ROUND(L34 * (1 + VAT), 2) -> 84.04 | O34: High season | Q34: Low season | T34: VAT incl
A35: Genflex rural | B35: GR | C35: 0 | D35: 1 | E35: =B35&C35&D35&IF($A$2="Non-municipal","N",IF($A$2="Municiple","Y","error")) -> GR01N | H35: Key customers | J35: 3366.46 | K35: =ROUND(J35 * (1 + VAT), 2) -> 3837.76 | L35: 73.72 | M35: =ROUND(L35 * (1 + VAT), 2) -> 84.04 | P35: VAT incl | R35: VAT incl | S35: 23.69 | T35: =ROUND(S35 * (1 + VAT), 2) -> 27.01
O36: 8 | P36: =ROUND(O36 * (1 + VAT), 2) -> 9.12 | Q36: 0 | R36: =ROUND(Q36 * (1 + VAT), 2) -> 0 | S36: 20.77 | T36: =ROUND(S36 * (1 + VAT), 2) -> 23.68

Sheet Landrate inc
H1: Back to menu
A2: Non-municipal | H2: Landrate tariffs | R2: Non-local authority
J4: Energy charge [c/kWh] | L4: Ancillary service charge [c/kWh] | N4: Network demand charge [c/kWh] | P4: Network capacity charge [R/POD/day] | R4: Service charge [R/POD/day]
A5: Tariff | B5: Tariff nameBillcode | C5: Tx zone | D5: Voltage | E5: Billcode | K5: VAT incl | M5: VAT incl | O5: VAT incl | Q5: VAT incl | S5: VAT incl
A6: Landrate 1 | B6: L1 | C6: 0 | D6: 1 | E6: =B6&C6&D6&IF($A$2="Non-municipal","N",IF($A$2="Municiple","Y","error")) -> L101N | H6: Landrate 1 | J6: 94.83 | K6: =ROUND(J6 * (1 + VAT), 2) -> 108.11 | L6: 0.37 | M6: =ROUND(L6 * (1 + VAT), 2) -> 0.42 | N6: 23.69 | O6: =ROUND(N6 * (1 + VAT), 2) -> 27.01 | P6: 25.33 | Q6: =ROUND(P6 * (1 + VAT), 2) -> 28.88 | R6: 21.03 | S6: =ROUND(R6 * (1 + VAT), 2) -> 23.97
A7: Landrate 2 | B7: L2 | C7: 0 | D7: 1 | E7: =B7&C7&D7&IF($A$2="Non-municipal","N",IF($A$2="Municiple","Y","error")) -> L201N | H7: Landrate 2 | J7: 94.83 | K7: 108.11 | L7: 0.37 | M7: =ROUND(L7 * (1 + VAT), 2) -> 0.42 | N7: 23.69 | O7: =ROUND(N7 * (1 + VAT), 2) -> 27.01 | P7: 38.93 | Q7: =ROUND(P7 * (1 + VAT), 2) -> 44.38 | R7: 21.03 | S7: =ROUND(R7 * (1 + VAT), 2) -> 23.97
A8: Landrate 3 | B8: L3 | C8: 0 | D8: 1 | E8: L301N | H8: Landrate 3 | J8: 94.83 | K8: 108.11 | L8: 0.37 | M8: =ROUND(L8 * (1 + VAT), 2) -> 0.42 | N8: 23.69 | O8: =ROUND(N8 * (1 + VAT), 2) -> 27.01 | P8: 62.24 | Q8: =ROUND(P8 * (1 + VAT), 2) -> 70.95 | R8: 21.03 | S8: =ROUND(R8 * (1 + VAT), 2) -> 23.97
A9: Landrate 4 | B9: L4 | C9: 0 | D9: 1 | E9: L401N | H9: Landrate 4 | J9: 204.82 | K9: 233.49 | L9: 0.37 | M9: =ROUND(L9 * (1 + VAT), 2) -> 0.42 | N9: 23.69 | O9: =ROUND(N9 * (1 + VAT), 2) -> 27.01 | P9: 20.17 | Q9: =ROUND(P9 * (1 + VAT), 2) -> 22.99 | R9: 0 | S9: =ROUND(R9 * (1 + VAT), 2) -> 0
A10: Landlight | B10: Lt | C10: 0 | D10: 1 | E10: =B10&C10&D10&IF($A$2="Non-municipal","N",IF($A$2="Municiple","Y","error")) -> Lt01N | H10: Landlight 20A | J10: 272.67 | K10: 310.84
B11: Lt60 | C11: 0 | D11: 1 | E11: =B11&C11&D11&IF($A$2="Non-municipal","N",IF($A$2="Municiple","Y","error")) -> Lt6001N | H11: Landlight 60A | J11: 351.51 | K11: 400.72
A12: Landrate Dx | B12: Ld | C12: 0 | D12: 1 | E12: Ld01N | H12: Landrate Dx* | R12: 45.1087 | S12: =ROUND(R12 * (1 + VAT), 2) -> 51.42
H14: *R/day fixed charge inclusive of the following charges; energy, anciallary service, network demand, betwork capacity and service charge.

Sheet Landrate Munic inc
H1: Back to menu
A2: Municiple | H2: Landrate tariffs | S2: Local authority
J4: Energy charge [c/kWh] | L4: Ancillary service charge [c/kWh] | N4: Network demand charge [c/kWh] | P4: Network capacity charge [R/POD/day] | R4: Service charge [R/POD/day]
A5: Tariff | B5: Tariff nameBillcode | C5: Tx zone | D5: Voltage | E5: Billcode | K5: VAT incl | M5: VAT incl | O5: VAT incl | Q5: VAT incl | S5: VAT incl
A6: Landrate 1 | B6: L1 | C6: 0 | D6: 1 | E6: =B6&C6&D6&IF($A$2="Non-municipal","N",IF($A$2="Municiple","Y","error")) -> L101Y | H6: Landrate 1 | J6: 95.29 | K6: =ROUND(J6 * (1 + VAT), 2) -> 108.63 | L6: 0.36 | M6: =ROUND(L6 * (1 + VAT), 2) -> 0.41 | N6: 23.49 | O6: =ROUND(N6 * (1 + VAT), 2) -> 26.78 | P6: 25.08 | Q6: =ROUND(P6 * (1 + VAT), 2) -> 28.59 | R6: 20.54 | S6: =ROUND(R6 * (1 + VAT), 2) -> 23.42
A7: Landrate 2 | B7: L2 | C7: 0 | D7: 1 | E7: =B7&C7&D7&IF($A$2="Non-municipal","N",IF($A$2="Municiple","Y","error")) -> L201Y | H7: Landrate 2 | J7: 95.29 | K7: =ROUND(J7 * (1 + VAT), 2) -> 108.63 | L7: 0.36 | M7: =ROUND(L7 * (1 + VAT), 2) -> 0.41 | N7: 23.49 | O7: =ROUND(N7 * (1 + VAT), 2) -> 26.78 | P7: 38.56 | Q7: =ROUND(P7 * (1 + VAT), 2) -> 43.96 | R7: 20.54 | S7: =ROUND(R7 * (1 + VAT), 2) -> 23.42
A8: Landrate 3 | B8: L3 | C8: 0 | D8: 1 | E8: L301Y | H8: Landrate 3 | J8: 95.29 | K8: =ROUND(J8 * (1 + VAT), 2) -> 108.63 | L8: 0.36 | M8: =ROUND(L8 * (1 + VAT), 2) -> 0.41 | N8: 23.49 | O8: =ROUND(N8 * (1 + VAT), 2) -> 26.78 | P8: 61.66 | Q8: =ROUND(P8 * (1 + VAT), 2) -> 70.29 | R8: 20.54 | S8: =ROUND(R8 * (1 + VAT), 2) -> 23.42
A9: Landrate 4 | B9: L4 | C9: 0 | D9: 1 | E9: L401Y | H9: Landrate 4 | J9: 205.82 | K9: =ROUND(J9 * (1 + VAT), 2) -> 234.63 | L9: 0.36 | M9: =ROUND(L9 * (1 + VAT), 2) -> 0.41 | N9: 23.49 | O9: =ROUND(N9 * (1 + VAT), 2) -> 26.78 | P9: 19.98 | Q9: =ROUND(P9 * (1 + VAT), 2) -> 22.78
A10: Landrate Dx | B10: Ld | C10: 0 | D10: 1 | E10: =B10&C10&D10&IF($A$2="Non-municipal","N",IF($A$2="Municiple","Y","error")) -> Ld01Y | H10: Landrate Dx | R10: 44.4369 | S10: =ROUND(R10 * (1 + VAT), 2) -> 50.66

Sheet Homeflex inc
C1: Back to menu
B2: Homeflex | O2: Non-local authority | AC2: =SUM(F6,J6:J16,L6:N16) -> 429.96 | AD2: check value
F4: Peak energy charge [c/kWh] | H4: Off peak energy charge [c/kWh] | J4: Service & administration charge [c/kWh] | L4: Network demand charge [c/kWh] | N4: Network capacity charge [R/POD/day]*
G5: VAT incl | I5: VAT incl | K5: VAT incl | M5: VAT incl | O5: VAT incl
D6: Homeflex 1 | E6: High Demand | F6: 293.52 | G6: =ROUND(F6 * (1 + VAT), 2) -> 334.61 | H6: 96.01 | I6: =ROUND(H6 * (1 + VAT), 2) -> 109.45 | J6: 4.89 | K6: 5.57 | L6: 0 | M6: 0 | N6: 6.07 | O6: 6.92
E7: Low Demand | F7: 113.75 | G7: =ROUND(F7 * (1 + VAT), 2) -> 129.68 | H7: 77.53 | I7: 88.38 | J7: 4.89 | K7: 5.57 | L7: 0 | M7: 0 | N7: 6.07 | O7: 6.92
D8: Homeflex 2 | E8: High Demand | F8: 293.52 | G8: 334.61 | H8: 96.01 | I8: 109.45 | J8: 4.89 | K8: 5.57 | L8: 0 | M8: 0 | N8: 13.1 | O8: 14.93
E9: Low Demand | F9: 113.75 | G9: 129.68 | H9: 77.53 | I9: 88.38 | J9: 4.89 | K9: 5.57 | L9: 0 | M9: 0 | N9: 13.1 | O9: 14.93
D10: Homeflex 3 | E10: High Demand | F10: 293.52 | G10: 334.61 | H10: 96.01 | I10: 109.45 | J10: 4.89 | K10: 5.57 | L10: 0 | M10: 0 | N10: 26.39 | O10: 30.08
E11: Low Demand | F11: 113.75 | G11: 129.68 | H11: 77.53 | I11: 88.38 | J11: 4.89 | K11: 5.57 | L11: 0 | M11: 0 | N11: 26.39 | O11: 30.08
D12: Homeflex 4 | E12: High Demand | F12: 293.52 | G12: 334.61 | H12: 96.01 | I12: 109.45 | J12: 4.89 | K12: 5.57 | L12: 0 | M12: 0 | N12: 3.1 | O12: 3.53
E13: Low Demand | F13: 113.75 | G13: 129.68 | H13: 77.53 | I13: 88.38 | J13: 4.89 | K13: 5.57 | L13: 0 | M13: 0 | N13: 3.1 | O13: 3.53
F14: *The Network capacity charge is based on the Notified Maximum Demand (NMD).

Sheet TOuS Original (hidden)
B4: Reliability service charge urban | D4: Charge [c/kWh]
E5: VAT incl
B6: < 500V | D6: 0.27 | E6: =ROUND(D6 * (1 + VAT), 2) -> 0.31
B7: ≥ 500V & < 66kV | D7: 0.26 | E7: =ROUND(D7 * (1 + VAT), 2) -> 0.3
B8: ≥ 66kV & ≤ 132kV | D8: 0.25 | E8: =ROUND(D8 * (1 + VAT), 2) -> 0.29
B9: > 132kV | D9: 0.23 | E9: =ROUND(D9 * (1 + VAT), 2) -> 0.26
B12: Reliability service charge rural | D12: Charge [c/kWh]
E13: VAT incl
B14: < 500V | D14: 0.27 | E14: =ROUND(D14 * (1 + VAT), 2) -> 0.31
B15: ≥ 500V & ≤ 22kV | D15: 0.27 | E15: =ROUND(D15 * (1 + VAT), 2) -> 0.31
C18: Transmission zone | D18: Voltage | E18: R/kVA
F19: VAT incl
B20: ETUoS urban | C20: ≤ 300km | D20: < 500V | E20: 11.36438596 | F20: =ROUND(E20 * (1 + VAT), 2) -> 12.96
D21: ≥ 500V & < 66kV | E21: 11.19400536 | F21: 12.76
D22: ≥ 66kV & ≤ 132kV | E22: 10.8362061 | F22: 12.35
C23: > 300km & ≤ 600km | D23: < 500V | E23: 11.46661432 | F23: 13.07
D24: ≥ 500V & < 66kV | E24: 11.31327178 | F24: 12.9
D25: ≥ 66kV & ≤ 132kV | E25: 10.95547252 | F25: 12.49
C26: > 600km & ≤ 900km | D26: < 500V | E26: 11.58588074 | F26: 13.21
D27: ≥ 500V & < 66kV | E27: 11.4325382 | F27: 13.03
D28: ≥ 66kV & ≤ 132kV | E28: 11.05770088 | F28: 12.61
C29: > 900km | D29: < 500V | E29: 11.70514716 | F29: 13.34
D30: ≥ 500V & < 66kV | E30: 11.55180462 | F30: 13.17
D31: ≥ 66kV & ≤ 132kV | E31: 11.1769673 | F31: 12.74
C34: Transmission zone | D34: Voltage | E34: R/kVA
F35: VAT incl
B36: ETUoS rural | C36: ≤ 300km | D36: < 500V | E36: 11.7732994 | F36: =ROUND(E36 * (1 + VAT), 2) -> 13.42
D37: ≥ 500V & < 66kV | E37: 11.67107104 | F37: 13.31
C38: > 300km & ≤ 600km | D38: < 500V | E38: 11.89256582 | F38: 13.56
D39: ≥ 500V & < 66kV | E39: 11.79033746 | F39: 13.44
C40: > 600km & ≤ 900km | D40: < 500V | E40: 12.01183224 | F40: 13.69
D41: ≥ 500V & < 66kV | E41: 11.90960388 | F41: 13.58
C42: > 900km | D42: < 500V | E42: 12.13109866 | F42: 13.83
D43: ≥ 500V & < 66kV | E43: 12.0288703 | F43: 13.71
B46: Distribution network charges urban
D47: Network access charge [R/kVA/m] | F47: Network demand charge [R/kVA/m] | H47: Urban low voltage subsidy charge [R/kVA/m]
B49: Voltage | E49: VAT incl | G49: VAT incl | I49: VAT incl
B50: < 500V | D50: =#REF! ->  | E50: =ROUND(D50 * (1 + VAT), 2) ->  | F50: =#REF! ->  | G50: =ROUND(F50 * (1 + VAT), 2) ->  | H50: =#REF! ->  | I50: =ROUND(H50 * (1 + VAT), 2) -> 
B51: ≥ 500V & < 66kV | D51: =#REF! ->  | E51: =ROUND(D51 * (1 + VAT), 2) ->  | F51: =#REF! ->  | G51: =ROUND(F51 * (1 + VAT), 2) ->  | H51: =#REF! ->  | I51: =ROUND(H51 * (1 + VAT), 2) -> 
B52: ≥ 66kV & ≤ 132kV | D52: =#REF! ->  | E52: =ROUND(D52 * (1 + VAT), 2) ->  | F52: =#REF! ->  | G52: =ROUND(F52 * (1 + VAT), 2) ->  | H52: =#REF! ->  | I52: =ROUND(H52 * (1 + VAT), 2) -> 
B53: > 132kV | D53: =#REF! ->  | E53: =ROUND(D53 * (1 + VAT), 2) ->  | F53: =#REF! ->  | G53: =ROUND(F53 * (1 + VAT), 2) ->  | H53: =#REF! ->  | I53: =ROUND(H53 * (1 + VAT), 2) -> 
B56: Distribution network charges rural
D57: Network access charge [R/kVA/m] | F57: Network demand charge [c/kWh]
B59: Voltage | E59: VAT incl | G59: VAT incl
B60: < 500V | D60: 6.201664795 | E60: =ROUND(D60 * (1 + VAT), 2) -> 7.07 | F60: 19.67324725 | G60: =ROUND(F60 * (1 + VAT), 2) -> 22.43
B61: ≥ 500V & ≤ 22kV | D61: 2.297555913 | E61: =ROUND(D61 * (1 + VAT), 2) -> 2.62 | F61: 17.23886725 | G61: =ROUND(F61 * (1 + VAT), 2) -> 19.65
B64: Distribution network charges for Generators
D65: Network access charge [R/MW/m]
B67: Voltage | E67: VAT incl
B68: < 500V
B69: ≥ 500V & < 66kV
B70: ≥ 66kV & ≤ 132kV | D70: 9.4 | E70: =ROUND(D70 * (1 + VAT), 2) -> 10.72
B73: Electrification and rural network subsidy charge [c/kWh]
D74: Rural network subsidy charge [c/kWh] | F74: Electrification networks subsidy charge [c/kWh] | H74: Total electrification and rural network subsidy charge [c/kWh]
B76: Tariff | E76: VAT incl | G76: VAT incl | I76: VAT incl
B77: Megaflex, Miniflex, Nightsave Urban Large, Nightsave Urban Small, Businessrate
D78: 2.68 | E78: =ROUND(D78 * (1 + VAT), 2) -> 3.06 | F78: 0.91 | G78: =ROUND(F78 * (1 + VAT), 2) -> 1.04 | H78: 3.59 | I78: =ROUND(H78 * (1 + VAT), 2) -> 4.09
B83: Service and admin charges
B84: Customer categories | D84: Service charge [R/account/day] | F84: Administration charge [R/POD/day]
E86: VAT incl | G86: VAT incl
B87: ≤ 100 kVA | D87: 9.49 | E87: =ROUND(D87 * (1 + VAT), 2) -> 10.82 | F87: 2.08 | G87: =ROUND(F87 * (1 + VAT), 2) -> 2.37
B88: > 100 kVA & ≤ 500 kVA | D88: 43.38 | E88: =ROUND(D88 * (1 + VAT), 2) -> 49.45 | F88: 12.16 | G88: =ROUND(F88 * (1 + VAT), 2) -> 13.86
B89: > 500 kVA & ≤ 1 MVA | D89: 133.5 | E89: =ROUND(D89 * (1 + VAT), 2) -> 152.19 | F89: 24.17 | G89: =ROUND(F89 * (1 + VAT), 2) -> 27.55
B90: > 1 MVA | D90: 133.5 | E90: =ROUND(D90 * (1 + VAT), 2) -> 152.19 | F90: 60.17 | G90: =ROUND(F90 * (1 + VAT), 2) -> 68.59
B91: Key customers | D91: 2616.06 | E91: =ROUND(D91 * (1 + VAT), 2) -> 2982.31 | F91: 83.55 | G91: =ROUND(F91 * (1 + VAT), 2) -> 95.25
B94: Distribution loss factors | F94: Transmission loss factors for loads
B95: Voltage | C95: Urban loss factor | D95: Rural loss factor | F95: Distance from Johannesburg | G95: Zone | H95: Loss factor
B96: < 500V | C96: ='Loss Factors'!O6 -> 1.1111 | D96: ='Loss Factors'!P6 -> 1.1527 | F96: 0 to 300 km | G96: 0 | H96: ='Loss Factors'!T6 -> 1.0107
B97: ≥ 500V & < 66kV | C97: ='Loss Factors'!O7 -> 1.0957 | D97: ='Loss Factors'!P7 -> 1.1412 | F97: 301 to 600 km | G97: 1 | H97: ='Loss Factors'!T7 -> 1.0208
B98: ≥ 66kV & ≤ 132kV | C98: ='Loss Factors'!O8 -> 1.0611 | F98: 601 to 900 km | G98: 2 | H98: ='Loss Factors'!T8 -> 1.031
B99: > 132kV | C99: ='Loss Factors'!O9 -> 1 | F99: > 900 km | G99: 3 | H99: ='Loss Factors'!T9 -> 1.0413
K104: TUoS [ > 132kV] | M104: Charge R/kVA
N105: VAT incl
L106: ≤ 300km | M106: =#REF! ->  | N106: =ROUND(M106 * (1 + VAT), 2) -> 
L107: > 300km & ≤ 600km | M107: =#REF! ->  | N107: =ROUND(M107 * (1 + VAT), 2) -> 
L108: > 600km & ≤ 900km | M108: =#REF! ->  | N108: =ROUND(M108 * (1 + VAT), 2) -> 
L109: > 900km | M109: =#REF! ->  | N109: =ROUND(M109 * (1 + VAT), 2) -> 

Sheet TUoS
H1: Back to menu
A2: Non-municipal
H3: TUoS (Transmission use of system) charges (> 132 KV or direct Transmission connected) network charge for loads
H6: Electrification and rural network subsidy charge [c/kWh]
J7: Electrification and rural network subsidy charge [c/kWh]
A9: Tariff | B9: Tariff nameBillcode | C9: Tx zone | D9: Voltage | E9: Billcode | H9: Tariff | K9: VAT incl
H10: Megaflex, Miniflex, Nightsave Urban Large, Nightsave Urban Small, Businessrate
A11: Megaflex | B11: Me | C11: 0 | D11: 1 | E11: =B11&C11&D11&IF($A$2="Non-municipal","N",IF($A$2="Municiple","Y","error")) -> Me01N | J11: ='Megaflex inc'!H46 -> 7.08 | K11: 8.07
H15: Service and admin charges
H16: Utilised capacity/maximum export capacity | J16: Service charge [R/account/day] | L16: Administration charge [R/POD/day]
H19: [kVA/MVA = loads]
A20: Tariff | B20: Tariff nameBillcode | C20: Tx zone | D20: Voltage | E20: Billcode | H20: [kW/MW = generators] | K20: VAT incl | M20: VAT incl
A21: Miniflex | B21: Mi | C21: 0 | D21: 1 | E21: =B21&C21&D21&IF($B$28="Non-municipal","N",IF($B$28="Municiple","Y","error")) -> Mi01N | H21: ≤ 100 kVA/kW | J21: 12.92 | K21: 14.73 | L21: 2.84 | M21: 3.24
A22: Miniflex | B22: Mi | C22: 0 | D22: 1 | E22: =B22&C22&D22&IF($B$28="Non-municipal","N",IF($B$28="Municiple","Y","error")) -> Mi01N | H22: > 100 kVA/kW & ≤ 500 kVA/kW | J22: 59.03 | K22: 67.29 | L22: 16.55 | M22: 18.87
A23: Miniflex | B23: Mi | C23: 0 | D23: 1 | E23: Mi01N | H23: > 500 kVA/kW & ≤ 1 MVA/MW | J23: 181.66 | K23: 207.09 | L23: 32.88 | M23: 37.48
A24: Miniflex | B24: Mi | C24: 0 | D24: 1 | E24: Mi01N | H24: > 1 MVA/MW | J24: 181.66 | K24: 207.09 | L24: 81.87 | M24: 93.33
A25: Miniflex | B25: Mi | C25: 0 | D25: 1 | E25: Mi01N | H25: Key customers or Transmission connected generators | J25: 3559.79 | K25: 4058.16 | L25: 113.69 | M25: 129.61
B28: Non-municipal | H28: Transmission loss factors for loads
A29: Tariff | B29: Tariff nameBillcode | C29: Tx zone | D29: Voltage | E29: Billcode | H29: Distance from Johannesburg | I29: Zone | J29: Loss factor
A30: Transmission loss factor | B30: TxLoss | C30: 0 | D30: 4 | E30: =B30&C30&D30&IF($B$28="Non-municipal","N",IF($B$28="Municiple","Y","error")) -> TxLoss04N | H30: ≤ 300km | I30: 0 | J30: 1.0107
A31: Transmission loss factor | B31: TxLoss | C31: 1 | D31: 4 | E31: =B31&C31&D31&IF($B$28="Non-municipal","N",IF($B$28="Municiple","Y","error")) -> TxLoss14N | H31: > 300km & ≤ 600km | I31: 1 | J31: 1.0208
A32: Transmission loss factor | B32: TxLoss | C32: 2 | D32: 4 | E32: =B32&C32&D32&IF($B$28="Non-municipal","N",IF($B$28="Municiple","Y","error")) -> TxLoss24N | H32: > 600km & ≤ 900km | I32: 2 | J32: 1.031
A33: Transmission loss factor | B33: TxLoss | C33: 3 | D33: 4 | E33: =B33&C33&D33&IF($B$28="Non-municipal","N",IF($B$28="Municiple","Y","error")) -> TxLoss34N | H33: > 900km | I33: 3 | J33: 1.0413
H36: Loss factors for Transmission connected generators | J36: Loss factor
A37: Tariff | B37: Tariff nameBillcode | C37: Tx zone | D37: Voltage | E37: Billcode
A38: TUoS network charges for Transmission connected generators | B38: GenTUOS | C38: Cape | D38: 4 | E38: =B38&C38&D38&IF($A$2="Non-municipal","N",IF($A$2="Municiple","Y","error")) -> GenTUOSCape4N | I38: Cape | J38: ='Loss Factors'!P14 -> 0.971
A39: TUoS network charges for Transmission connected generators | B39: GenTUOS | C39: Karoo | D39: 4 | E39: GenTUOSKaroo4N | I39: Karoo | J39: ='Loss Factors'!P15 -> 0.995
A40: TUoS network charges for Transmission connected generators | B40: GenTUOS | C40: Kwazulu-Natal | D40: 4 | E40: GenTUOSKwazulu-Natal4N | I40: Kwazulu-Natal | J40: ='Loss Factors'!P16 -> 1.004
A41: TUoS network charges for Transmission connected generators | B41: GenTUOS | C41: Vaal | D41: 4 | E41: GenTUOSVaal4N | I41: Vaal | J41: ='Loss Factors'!P17 -> 1.02
A42: TUoS network charges for Transmission connected generators | B42: GenTUOS | C42: Waterburg | D42: 4 | E42: GenTUOSWaterburg4N | I42: Waterberg | J42: ='Loss Factors'!P18 -> 1.023
A43: TUoS network charges for Transmission connected generators | B43: GenTUOS | C43: Mpumalanga | D43: 4 | E43: GenTUOSMpumalanga4N | I43: Mpumalanga | J43: ='Loss Factors'!P19 -> 1.021
H46: TUoS network charge for Transmission connected loads | J46: Network capacity charge [R/kVA]
A47: Tariff | B47: Tariff nameBillcode | C47: Tx zone | D47: Voltage | E47: Billcode | K47: VAT incl
A48: WEPS | B48: We | C48: 0 | D48: 1 | E48: =B48&C48&D48&IF($A$2="Non-municipal","N",IF($A$2="Municiple","Y","error")) -> We01N | I48: ≤ 300km | J48: ='WEPS inc'!V11 -> 8.95 | K48: 10.2
A49: WEPS | B49: We | C49: 0 | D49: 2 | E49: We02N | I49: > 300km & ≤ 600km | J49: ='WEPS inc'!V15 -> 9.04 | K49: 10.31
A50: WEPS | B50: We | C50: 0 | D50: 3 | E50: We03N | I50: > 600km & ≤ 900km | J50: ='WEPS inc'!V19 -> 9.17 | K50: 10.45
A51: WEPS | B51: We | C51: 0 | D51: 4 | E51: We04N | I51: > 900km | J51: ='WEPS inc'!V23 -> 9.24 | K51: 10.53
H54: TUoS network charges for Transmission connected generators | J54: Network charge [R/kW]
A55: Tariff | B55: Tariff nameBillcode | C55: Tx zone | D55: Voltage | E55: Billcode | K55: VAT incl
A56: TUoS network charges for Transmission connected generators | B56: GenTUOS | C56: Cape | D56: 4 | E56: =B56&C56&D56&IF($A$2="Non-municipal","N",IF($A$2="Municiple","Y","error")) -> GenTUOSCape4N | I56: Cape | J56: 0 | K56: 0
A57: TUoS network charges for Transmission connected generators | B57: GenTUOS | C57: Karoo | D57: 4 | E57: GenTUOSKaroo4N | I57: Karoo | J57: 0 | K57: 0
A58: TUoS network charges for Transmission connected generators | B58: GenTUOS | C58: Kwazulu-Natal | D58: 4 | E58: GenTUOSKwazulu-Natal4N | I58: Kwazulu-Natal | J58: 1.88 | K58: 2.14
A59: TUoS network charges for Transmission connected generators | B59: GenTUOS | C59: Vaal | D59: 4 | E59: GenTUOSVaal4N | I59: Vaal | J59: 6.26 | K59: 7.14
A60: TUoS network charges for Transmission connected generators | B60: GenTUOS | C60: Waterburg | D60: 4 | E60: GenTUOSWaterburg4N | I60: Waterberg | J60: 8.02 | K60: 9.14
A61: TUoS network charges for Transmission connected generators | B61: GenTUOS | C61: Mpumalanga | D61: 4 | E61: GenTUOSMpumalanga4N | I61: Mpumalanga | J61: 7.44 | K61: 8.48
H64: TUoS ancillary service charge for Transmission connected loads and generators | J64: Ancillary service charge [c/kWh]
A66: Tariff | B66: Tariff nameBillcode | C66: Tx zone | D66: Voltage | E66: Billcode | K66: VAT incl
A67: TUoS network charges for Transmission connected generators | B67: GenTUOS | C67: Cape | D67: 4 | E67: =B67&C67&D67&IF($A$2="Non-municipal","N",IF($A$2="Municiple","Y","error")) -> GenTUOSCape4N | H67: Generators | J67: 0.32 | K67: 0.36
A68: TUoS network charges for Transmission connected generators | B68: GenTUOS | C68: Cape | D68: 4 | E68: =B68&C68&D68&IF($A$2="Non-municipal","N",IF($A$2="Municiple","Y","error")) -> GenTUOSCape4N | H68: Loads | J68: 0.32 | K68: 0.36

Sheet DUoS
A2: Non-Municipal | H2: Back to menu
H4: DUoS (Distribution use of system) charges
H7: DuoS ancillary service charge Urbanp | J7: Charge [c/kWh]
A8: Tariff | B8: Tariff nameBillcode | C8: Tx zone | D8: Voltage | E8: Billcode | K8: VAT incl
A9: Gen-DUoS urban | B9: NEGenDUoSU | C9: 0 | D9: 1 | E9: =B9&C9&D9&IF($A$2="Non-municipal","N",IF($A$2="Municiple","Y","error")) -> NEGenDUoSU01N | H9: < 500V | J9: 0.37 | K9: =ROUND(J9 * (1 + VAT), 2) -> 0.42
A10: Gen-DUoS urban | B10: NEGenDUoSU | C10: 0 | D10: 2 | E10: =B10&C10&D10&IF($A$2="Non-municipal","N",IF($A$2="Municiple","Y","error")) -> NEGenDUoSU02N | H10: ≥ 500V & < 66kV | J10: 0.36 | K10: =ROUND(J10 * (1 + VAT), 2) -> 0.41
A11: Gen-DUoS urban | B11: NEGenDUoSU | C11: 0 | D11: 3 | E11: NEGenDUoSU03N | H11: ≥ 66kV & ≤ 132kV | J11: 0.34 | K11: =ROUND(J11 * (1 + VAT), 2) -> 0.39
H15: DUoS ancillary service charge Ruralp | J15: Charge [c/kWh]
A16: Tariff | B16: Tariff nameBillcode | C16: Tx zone | D16: Voltage | E16: Billcode | K16: VAT incl
A17: Gen-DUoS rural | B17: NEGenDUoSR | C17: 0 | D17: 1 | E17: =B17&C17&D17&IF($A$2="Non-municipal","N",IF($A$2="Municiple","Y","error")) -> NEGenDUoSR01N | H17: < 500V | J17: 0.37 | K17: =ROUND(J17 * (1 + VAT), 2) -> 0.42
A18: Gen-DUoS rural | B18: NEGenDUoSR | C18: 0 | D18: 2 | E18: =B18&C18&D18&IF($A$2="Non-municipal","N",IF($A$2="Municiple","Y","error")) -> NEGenDUoSR02N | H18: ≥ 500V & ≤ 22kV | J18: 0.37 | K18: =ROUND(J18 * (1 + VAT), 2) -> 0.42
I21: Transmission zone | J21: Voltage | K21: [R/kVA]
A22: Tariff | B22: Tariff nameBillcode | C22: Tx zone | D22: Voltage | E22: Billcode | L22: VAT incl
H23: ETUoS urban | I23: ≤ 300km | J23: < 500V | K23: ='Megaflex inc'!V8 -> 7.96 | L23: =ROUND(K23 * (1 + VAT), 2) -> 9.07
J24: ≥ 500V & < 66kV | K24: ='Megaflex inc'!V9 -> 7.28 | L24: 8.3
J25: ≥ 66kV & ≤ 132kV | K25: ='Megaflex inc'!V10 -> 7.09 | L25: 8.08
I26: > 300km & ≤ 600km | J26: < 500V | K26: ='Megaflex inc'!V12 -> 8.02 | L26: 9.14
J27: ≥ 500V & < 66kV | K27: ='Megaflex inc'!V13 -> 7.35 | L27: 8.38
J28: ≥ 66kV & ≤ 132kV | K28: ='Megaflex inc'!V14 -> 7.14 | L28: 8.14
I29: > 600km & ≤ 900km | J29: < 500V | K29: ='Megaflex inc'!V16 -> 8.12 | L29: 9.26
J30: ≥ 500V & < 66kV | K30: ='Megaflex inc'!V17 -> 7.41 | L30: 8.45
J31: ≥ 66kV & ≤ 132kV | K31: ='Megaflex inc'!V18 -> 7.18 | L31: 8.19
I32: > 900km | J32: < 500V | K32: ='Megaflex inc'!V20 -> 8.16 | L32: 9.3
J33: ≥ 500V & < 66kV | K33: ='Megaflex inc'!V21 -> 7.5 | L33: 8.55
J34: ≥ 66kV & ≤ 132kV | K34: ='Megaflex inc'!V22 -> 7.25 | L34: 8.27
I37: Transmission zone | J37: Voltage | K37: [R/kVA]
A38: Tariff | B38: Tariff nameBillcode | C38: Tx zone | D38: Voltage | E38: Billcode | L38: VAT incl
H39: ETUoS rural | I39: ≤ 300km | J39: < 500V | K39: ='Ruraflex inc'!V8 -> 16.64 | L39: =ROUND(K39 * (1 + VAT), 2) -> 18.97
J40: ≥ 500V & < 66kV | K40: ='Ruraflex inc'!V9 -> 15.25 | L40: 17.39
I41: > 300km & ≤ 600km | J41: < 500V | K41: ='Ruraflex inc'!V12 -> 16.69 | L41: 19.03
J42: ≥ 500V & < 66kV | K42: ='Ruraflex inc'!V13 -> 15.35 | L42: 17.5
I43: > 600km & ≤ 900km | J43: < 500V | K43: ='Ruraflex inc'!V16 -> 16.78 | L43: 19.13
J44: ≥ 500V & < 66kV | K44: ='Ruraflex inc'!V17 -> 15.41 | L44: 17.57
I45: > 900km | J45: < 500V | K45: ='Ruraflex inc'!V20 -> 16.85 | L45: 19.21
J46: ≥ 500V & < 66kV | K46: ='Ruraflex inc'!V21 -> 15.42 | L46: 17.58
H49: DUoS network charges for urbanp loads
J50: Network capacity charge [R/kVA/m] | L50: Network demand charge [R/kVA/m] | N50: Urban low voltage subsidy charge [R/kVA/m]
A52: Tariff | B52: Tariff nameBillcode | C52: Tx zone | D52: Voltage | E52: Billcode | H52: Voltage | K52: VAT incl | M52: VAT incl | O52: VAT incl
A53: Gen-DUoS urban | B53: NEGenDUoSU | C53: 0 | D53: 1 | E53: =B53&C53&D53&IF($A$2="Non-municipal","N",IF($A$2="Municiple","Y","error")) -> NEGenDUoSU01N | H53: < 500V | J53: ='Megaflex inc'!J30 -> 15.82 | K53: =ROUND(J53 * (1 + VAT), 2) -> 18.03 | L53: ='Megaflex inc'!L30 -> 30 | M53: =ROUND(L53 * (1 + VAT), 2) -> 34.2 | N53: ='Megaflex inc'!N30 -> 0 | O53: =ROUND(N53 * (1 + VAT), 2) -> 0
A54: Gen-DUoS urban | B54: NEGenDUoSU | C54: 0 | D54: 2 | E54: =B54&C54&D54&IF($A$2="Non-municipal","N",IF($A$2="Municiple","Y","error")) -> NEGenDUoSU02N | H54: ≥ 500V & < 66kV | J54: ='Megaflex inc'!J31 -> 14.51 | K54: =ROUND(J54 * (1 + VAT), 2) -> 16.54 | L54: ='Megaflex inc'!L31 -> 27.52 | M54: =ROUND(L54 * (1 + VAT), 2) -> 31.37 | N54: ='Megaflex inc'!N31 -> 0 | O54: =ROUND(N54 * (1 + VAT), 2) -> 0
A55: Gen-DUoS urban | B55: NEGenDUoSU | C55: 0 | D55: 3 | E55: NEGenDUoSU03N | H55: ≥ 66kV & ≤ 132kV | J55: ='Megaflex inc'!J32 -> 5.18 | K55: =ROUND(J55 * (1 + VAT), 2) -> 5.91 | L55: ='Megaflex inc'!L32 -> 9.6 | M55: =ROUND(L55 * (1 + VAT), 2) -> 10.94 | N55: ='Megaflex inc'!N32 -> 12.78 | O55: =ROUND(N55 * (1 + VAT), 2) -> 14.57
A56: Gen-DUoS urban | B56: NEGenDUoSU | C56: 0 | D56: 4 | E56: =B56&C56&D56&IF($A$2="Non-municipal","N",IF($A$2="Municiple","Y","error")) -> NEGenDUoSU04N | H56: > 132kV | J56: ='Megaflex inc'!J33 -> 0 | K56: =ROUND(J56 * (1 + VAT), 2) -> 0 | L56: ='Megaflex inc'!L33 -> 0 | M56: =ROUND(L56 * (1 + VAT), 2) -> 0 | N56: ='Megaflex inc'!N33 -> 12.78 | O56: =ROUND(N56 * (1 + VAT), 2) -> 14.57
H59: DUoS network charges ruralp loads
J60: Network capacity charge [R/kVA/m] | L60: Network demand charge [c/kWh]
A62: Tariff | B62: Tariff nameBillcode | C62: Tx zone | D62: Voltage | E62: Billcode | H62: Voltage | K62: VAT incl | M62: VAT incl
A63: Gen-DUoS rural | B63: NEGenDUoSR | C63: 0 | D63: 1 | E63: =B63&C63&D63&IF($A$2="Non-municipal","N",IF($A$2="Municiple","Y","error")) -> NEGenDUoSR01N | H63: < 500V | J63: ='Ruraflex inc'!V8 -> 16.64 | K63: =ROUND(J63 * (1 + VAT), 2) -> 18.97 | L63: ='Ruraflex inc'!S28 -> 23.69 | M63: =ROUND(L63 * (1 + VAT), 2) -> 27.01
A64: Gen-DUoS rural | B64: NEGenDUoSR | C64: 0 | D64: 2 | E64: =B64&C64&D64&IF($A$2="Non-municipal","N",IF($A$2="Municiple","Y","error")) -> NEGenDUoSR02N | H64: ≥ 500V & ≤ 22kV | J64: ='Ruraflex inc'!V9 -> 15.25 | K64: =ROUND(J64 * (1 + VAT), 2) -> 17.39 | L64: ='Ruraflex inc'!S29 -> 20.77 | M64: =ROUND(L64 * (1 + VAT), 2) -> 23.68
H67: DUoS network charges for generators
J68: Network capacity charge [R/kW/m]
A70: Tariff | B70: Tariff nameBillcode | C70: Tx zone | D70: Voltage | E70: Billcode | H70: Voltage | K70: VAT incl
A71: Gen-DUoS urban | B71: NEGenDUoSU | C71: 0 | D71: 1 | E71: =B71&C71&D71&IF($A$2="Non-municipal","N",IF($A$2="Municiple","Y","error")) -> NEGenDUoSU01N | H71: < 500V
A72: Gen-DUoS urban | B72: NEGenDUoSU | C72: 0 | D72: 2 | E72: =B72&C72&D72&IF($A$2="Non-municipal","N",IF($A$2="Municiple","Y","error")) -> NEGenDUoSU02N | H72: ≥ 500V & < 66kV
A73: Gen-DUoS urban | B73: NEGenDUoSU | C73: 0 | D73: 3 | E73: NEGenDUoSU03N | H73: ≥ 66kV & ≤ 132kV | J73: 12.8 | K73: =ROUND(J73 * (1 + VAT), 2) -> 14.59
H75: DUoS electrification and rural network subsidy charge [c/kWh] | R75: DUoS electrification and rural network subsidy charge [c/kWh]
J77: Rural network subsidy charge [c/kWh] | L77: Electrification networks subsidy charge [c/kWh] | N77: Total electrification and rural network subsidy charge [c/kWh] | R77: Tariff | T77: Electrification and rural network subsidy charge [c/kWh]
A79: Tariff | B79: Tariff nameBillcode | C79: Tx zone | D79: Voltage | E79: Billcode | H79: Tariff | K79: VAT incl | M79: VAT incl | O79: VAT incl | U79: VAT incl
H80: Megaflex, Miniflex, Nightsave Urban Large, Nightsave Urban Small, Businessrate | R80: Megaflex, Miniflex, Nightsave Urban Large, Nightsave Urban Small, Businessrate
A81: Megaflex | B81: Me | C81: 0 | D81: 1 | E81: =B81&C81&D81&IF($A$2="Non-municipal","N",IF($A$2="Municiple","Y","error")) -> Me01N | J81: 4.7 | K81: =ROUND(J81 * (1 + VAT), 2) -> 5.36 | L81: 2.38 | M81: =ROUND(L81 * (1 + VAT), 2) -> 2.71 | N81: =SUM(J81, L81) -> 7.08 | O81: =ROUND(N81 * (1 + VAT), 2) -> 8.07 | T81: 7.08 | U81: =ROUND(T81 * (1 + VAT), 2) -> 8.07
A82: 0.6637010676
A83: 0.3362989324
H86: DUoS service and administration charges (urbanp )
H87: Customer categories utilised capacity / maximum export capacity | J87: Service charge [R/account/day] | L87: Administration charge [R/POD/day]
H90: [kVA or MVA = loads]
A91: Tariff | B91: Tariff nameBillcode | C91: Tx zone | D91: Voltage | E91: Billcode | H91: [kW or MW = generators] | K91: VAT incl | M91: VAT incl
A92: Miniflex | B92: Mi | C92: 0 | D92: 1 | E92: =B92&C92&D92&IF($A$2="Non-municipal","N",IF($A$2="Municiple","Y","error")) -> Mi01N | H92: ≤ 100 kVA/kW | J92: 12.92 | K92: =ROUND(J92 * (1 + VAT), 2) -> 14.73 | L92: 2.84 | M92: =ROUND(L92 * (1 + VAT), 2) -> 3.24
A93: Miniflex | B93: Mi | C93: 0 | D93: 1 | E93: =B93&C93&D93&IF($A$2="Non-municipal","N",IF($A$2="Municiple","Y","error")) -> Mi01N | H93: > 100 kVA/kW & ≤ 500 kVA/kW | J93: 59.03 | K93: =ROUND(J93 * (1 + VAT), 2) -> 67.29 | L93: 16.55 | M93: =ROUND(L93 * (1 + VAT), 2) -> 18.87
A94: Miniflex | B94: Mi | C94: 0 | D94: 1 | E94: Mi01N | H94: > 500 kVA/kW & ≤ 1 MVA/MW | J94: 181.66 | K94: =ROUND(J94 * (1 + VAT), 2) -> 207.09 | L94: 32.88 | M94: =ROUND(L94 * (1 + VAT), 2) -> 37.48
A95: Miniflex | B95: Mi | C95: 0 | D95: 1 | E95: Mi01N | H95: > 1 MVA/MW | J95: 181.66 | K95: =ROUND(J95 * (1 + VAT), 2) -> 207.09 | L95: 81.87 | M95: =ROUND(L95 * (1 + VAT), 2) -> 93.33
A96: Miniflex | B96: Mi | C96: 0 | D96: 1 | E96: Mi01N | H96: Key customers or Transmission connected | J96: 3559.79 | K96: =ROUND(J96 * (1 + VAT), 2) -> 4058.16 | L96: 113.69 | M96: =ROUND(L96 * (1 + VAT), 2) -> 129.61
H99: DUoS service and administration charges (ruralp)
H100: Customer categories utilised capacity / maximum export capacity | J100: Service charge [R/account/day] | L100: Administration charge [R/POD/day]
H103: [kVA or MVA = loads]
A104: Tariff | B104: Tariff nameBillcode | C104: Tx zone | D104: Voltage | E104: Billcode | H104: [kW or MW = generators] | K104: VAT incl | M104: VAT incl
A105: Ruraflex | B105: Ru | C105: 0 | D105: 1 | E105: =B105&C105&D105&IF($A$2="Non-municipal","N",IF($A$2="Municiple","Y","error")) -> Ru01N | H105: ≤ 100 kVA/kW | J105: 16.37 | K105: =ROUND(J105 * (1 + VAT), 2) -> 18.66 | L105: 4.65 | M105: =ROUND(L105 * (1 + VAT), 2) -> 5.3
A106: Ruraflex | B106: Ru | C106: 0 | D106: 1 | E106: =B106&C106&D106&IF($A$2="Non-municipal","N",IF($A$2="Municiple","Y","error")) -> Ru01N | H106: > 100 kVA/kW & ≤ 500 kVA/kW | J106: 55.83 | K106: =ROUND(J106 * (1 + VAT), 2) -> 63.65 | L106: 25.89 | M106: =ROUND(L106 * (1 + VAT), 2) -> 29.51
A107: Ruraflex | B107: Ru | C107: 0 | D107: 1 | E107: Ru01N | H107: > 500 kVA/kW & ≤ 1 MVA/MW | J107: 171.77 | K107: =ROUND(J107 * (1 + VAT), 2) -> 195.82 | L107: 39.73 | M107: =ROUND(L107 * (1 + VAT), 2) -> 45.29
A108: Ruraflex | B108: Ru | C108: 0 | D108: 1 | E108: Ru01N | H108: > 1 MVA/MW | J108: 171.77 | K108: =ROUND(J108 * (1 + VAT), 2) -> 195.82 | L108: 73.72 | M108: =ROUND(L108 * (1 + VAT), 2) -> 84.04
A109: Ruraflex | B109: Ru | C109: 0 | D109: 1 | E109: Ru01N | H109: Key customers | J109: 3366.46 | K109: =ROUND(J109 * (1 + VAT), 2) -> 3837.76 | L109: 73.72 | M109: =ROUND(L109 * (1 + VAT), 2) -> 84.04
H111: Distribution loss factors | L111: Transmission loss factors for loads
A112: Tariff | B112: Tariff nameBillcode | C112: Tx zone | D112: Voltage | E112: Billcode | H112: Voltage | I112: Urbanp loss factor | J112: Ruralp loss factor | L112: Distance from Johannesburg | M112: Zone | N112: Loss factor
A113: Distribution loss factor - Urban | B113: DxLossUrb | C113: 0 | D113: 1 | E113: =B113&C113&D113&IF($A$2="Non-municipal","N",IF($A$2="Municiple","Y","error")) -> DxLossUrb01N | H113: < 500V | I113: 1.1111 | J113: 1.1527 | L113: ≤ 300km | M113: 0 | N113: 1.0107
A114: Distribution loss factor - Urban | B114: DxLossUrb | C114: 0 | D114: 2 | E114: =B114&C114&D114&IF($A$2="Non-municipal","N",IF($A$2="Municiple","Y","error")) -> DxLossUrb02N | H114: ≥ 500V & < 66kV | I114: 1.0957 | J114: 1.1412 | L114: > 300km & ≤ 600km | M114: 1 | N114: 1.0208
A115: Distribution loss factor - Urban | B115: DxLossUrb | C115: 0 | D115: 3 | E115: DxLossUrb03N | H115: ≥ 66kV & ≤ 132kV | I115: 1.0611 | L115: > 600km & ≤ 900km | M115: 2 | N115: 1.031
A116: Distribution loss factor - Urban | B116: DxLossUrb | C116: 0 | D116: 4 | E116: DxLossUrb04N | H116: > 132kV | I116: 1 | L116: > 900km | M116: 3 | N116: 1.0413
A118: Distribution loss factor - Rural | B118: DxLossRur | C118: 0 | D118: 1 | E118: =B118&C118&D118&IF($A$2="Non-municipal","N",IF($A$2="Municiple","Y","error")) -> DxLossRur01N
A119: Distribution loss factor - Rural | B119: DxLossRur | C119: 0 | D119: 2 | E119: =B119&C119&D119&IF($A$2="Non-municipal","N",IF($A$2="Municiple","Y","error")) -> DxLossRur02N
A122: Transmission loss factor | B122: TxLoss | C122: 0 | D122: 4 | E122: =B122&C122&D122&IF($A$2="Non-municipal","N",IF($A$2="Municiple","Y","error")) -> TxLoss04N
A123: Transmission loss factor | B123: TxLoss | C123: 1 | D123: 4 | E123: =B123&C123&D123&IF($A$2="Non-municipal","N",IF($A$2="Municiple","Y","error")) -> TxLoss14N
A124: Transmission loss factor | B124: TxLoss | C124: 2 | D124: 4 | E124: TxLoss24N
A125: Transmission loss factor | B125: TxLoss | C125: 3 | D125: 4 | E125: TxLoss34N

Sheet Loss Factors
N1: Back to menu | AL1: 0.14
N2: Loss factors
A3: Non-municipal
N4: Distribution loss factors | R4: Transmission loss factors for loads
A5: Tariff | B5: Tariff nameBillcode | C5: Tx zone | D5: Voltage | E5: Billcode | G5: Tariff | H5: Tariff nameBillcode | I5: Tx zone | J5: Voltage | K5: Billcode | N5: Voltage | O5: Urban loss factor | P5: Rural loss factor | R5: Distance from Johannesburg | S5: Zone | T5: Loss factor
A6: Distribution loss factor - Urban | B6: DxLossUrb | C6: 0 | D6: 1 | E6: =B6&C6&D6&IF($A$3="Non-municipal","N",IF($A$3="Municiple","Y","error")) -> DxLossUrb01N | G6: Transmission loss factor | H6: TxLoss | I6: 0 | J6: 4 | K6: =H6&I6&J6&IF($A$3="Non-municipal","N",IF($A$3="Municiple","Y","error")) -> TxLoss04N | N6: < 500V | O6: 1.1111 | P6: 1.1527 | R6: ≤ 300km | S6: 0 | T6: 1.0107
A7: Distribution loss factor - Urban | B7: DxLossUrb | C7: 0 | D7: 2 | E7: =B7&C7&D7&IF($A$3="Non-municipal","N",IF($A$3="Municiple","Y","error")) -> DxLossUrb02N | G7: Transmission loss factor | H7: TxLoss | I7: 1 | J7: 4 | K7: =H7&I7&J7&IF($A$3="Non-municipal","N",IF($A$3="Municiple","Y","error")) -> TxLoss14N | N7: ≥ 500V & < 66kV | O7: 1.0957 | P7: 1.1412 | R7: > 300km & ≤ 600km | S7: 1 | T7: 1.0208
A8: Distribution loss factor - Urban | B8: DxLossUrb | C8: 0 | D8: 3 | E8: =B8&C8&D8&IF($A$3="Non-municipal","N",IF($A$3="Municiple","Y","error")) -> DxLossUrb03N | G8: Transmission loss factor | H8: TxLoss | I8: 2 | J8: 4 | K8: =H8&I8&J8&IF($A$3="Non-municipal","N",IF($A$3="Municiple","Y","error")) -> TxLoss24N | N8: ≥ 66kV & ≤ 132kV | O8: 1.0611 | R8: > 600km & ≤ 900km | S8: 2 | T8: 1.031
A9: Distribution loss factor - Urban | B9: DxLossUrb | C9: 0 | D9: 4 | E9: =B9&C9&D9&IF($A$3="Non-municipal","N",IF($A$3="Municiple","Y","error")) -> DxLossUrb04N | G9: Transmission loss factor | H9: TxLoss | I9: 3 | J9: 4 | K9: =H9&I9&J9&IF($A$3="Non-municipal","N",IF($A$3="Municiple","Y","error")) -> TxLoss34N | N9: > 132kV/Transmission connected | O9: 1 | R9: > 900km | S9: 3 | T9: 1.0413
A11: Distribution loss factor - Rural | B11: DxLossRur | C11: 0 | D11: 1 | E11: =B11&C11&D11&IF($A$3="Non-municipal","N",IF($A$3="Municiple","Y","error")) -> DxLossRur01N | P11: 2012/13
A12: Distribution loss factor - Rural | B12: DxLossRur | C12: 0 | D12: 2 | E12: =B12&C12&D12&IF($A$3="Non-municipal","N",IF($A$3="Municiple","Y","error")) -> DxLossRur02N | N12: Loss factors for Transmission connected generators | P12: Loss factor
A13: Tariff | B13: Tariff nameBillcode | C13: Tx zone | D13: Voltage | E13: Billcode
A14: TUoS network charges for Transmission connected generators | B14: GenTUOS | C14: Cape | D14: 4 | E14: =B14&C14&D14&IF($A$3="Non-municipal","N",IF($A$3="Municiple","Y","error")) -> GenTUOSCape4N | O14: Cape | P14: 0.971
A15: TUoS network charges for Transmission connected generators | B15: GenTUOS | C15: Karoo | D15: 4 | E15: GenTUOSKaroo4N | O15: Karoo | P15: 0.995
A16: TUoS network charges for Transmission connected generators | B16: GenTUOS | C16: Kwazulu-Natal | D16: 4 | E16: GenTUOSKwazulu-Natal4N | O16: Kwazulu-Natal | P16: 1.004
A17: TUoS network charges for Transmission connected generators | B17: GenTUOS | C17: Vaal | D17: 4 | E17: GenTUOSVaal4N | O17: Vaal | P17: 1.02
A18: TUoS network charges for Transmission connected generators | B18: GenTUOS | C18: Waterburg | D18: 4 | E18: GenTUOSWaterburg4N | O18: Waterburg | P18: 1.023
A19: TUoS network charges for Transmission connected generators | B19: GenTUOS | C19: Mpumalanga | D19: 4 | E19: GenTUOSMpumalanga4N | O19: Mpumalanga | P19: 1.021

Sheet Excess NCC or MEC
S1: Back to menu
A2: Non-municipal | S2: Urban - Excess NCC Megaflex [non local authorities] | X2: Urban - Excess NCC Nightsave Urban Large [non local authorities] | AD2: Urban - Excess NCC Miniflex [non local authorities] | AK2: Urban - Excess NCC WEPS [non local authorities]
U4: Excess network charge [R/kVA/m] | AA4: Excess network charge [R/kVA/m] | AG4: Excess network charge [R/kVA/m] | AM4: Excess network charge [R/kVA/m]
S5: Transmission zone | Y5: Transmission zone | AE5: Transmission zone | AK5: Transmission zone
T6: Voltage | Z6: Voltage | AF6: Voltage | AL6: Voltage
A7: Tariff | B7: Tariff nameBillcode | C7: Tx zone | D7: Voltage | E7: Billcode | G7: Tariff | H7: Tariff nameBillcode | I7: Tx zone | J7: Voltage | K7: Billcode | M7: Tariff | N7: Tariff nameBillcode | O7: Tx zone | P7: Voltage | Q7: Billcode | V7: VAT incl | AB7: VAT incl | AH7: VAT incl | AN7: VAT incl
A8: Excess NAC Megaflex | B8: ExNACMe | C8: 0 | D8: 1 | E8: =B8&C8&D8&IF($A$2="Non-municipal","N",IF($A$2="Municiple","Y","error")) -> ExNACMe01N | G8: Excess NAC Nightsave Large | H8: ExNACNL | I8: 0 | J8: 1 | K8: =H8&I8&J8&IF($A$2="Non-municipal","N",IF($A$2="Municiple","Y","error")) -> ExNACNL01N | M8: Excess NAC Miniflex | N8: ExNACMi | O8: 0 | P8: 1 | Q8: =N8&O8&P8&IF($A$2="Non-municipal","N",IF($A$2="Municiple","Y","error")) -> ExNACMi01N | S8: ≤ 300km | T8: < 500V | U8: 23.78 | V8: =ROUND(U8 * (1 + VAT), 2) -> 27.11 | Y8: ≤ 300km | Z8: < 500V | AA8: 23.78 | AB8: =ROUND(AA8 * (1 + VAT), 2) -> 27.11 | AE8: ≤ 300km | AF8: < 500V | AG8: 23.76 | AH8: =ROUND(AG8 * (1 + VAT), 2) -> 27.09 | AK8: ≤ 300km | AL8: < 500V | AM8: 23.78 | AN8: =ROUND(AM8 * (1 + VAT), 2) -> 27.11
A9: Excess NAC Megaflex | B9: ExNACMe | C9: 0 | D9: 2 | E9: =B9&C9&D9&IF($A$2="Non-municipal","N",IF($A$2="Municiple","Y","error")) -> ExNACMe02N | G9: Excess NAC Nightsave Large | H9: ExNACNL | I9: 0 | J9: 2 | K9: =H9&I9&J9&IF($A$2="Non-municipal","N",IF($A$2="Municiple","Y","error")) -> ExNACNL02N | M9: Excess NAC Miniflex | N9: ExNACMi | O9: 0 | P9: 2 | Q9: =N9&O9&P9&IF($A$2="Non-municipal","N",IF($A$2="Municiple","Y","error")) -> ExNACMi02N | T9: ≥ 500V & < 66kV | U9: 21.79 | V9: 24.84 | Z9: ≥ 500V & < 66kV | AA9: 21.79 | AB9: 24.84 | AF9: ≥ 500V & < 66kV | AG9: 21.77 | AH9: 24.82 | AL9: ≥ 500V & < 66kV | AM9: 21.79 | AN9: 24.84
A10: Excess NAC Megaflex | B10: ExNACMe | C10: 0 | D10: 3 | E10: ExNACMe03N | G10: Excess NAC Nightsave Large | H10: ExNACNL | I10: 0 | J10: 3 | K10: ExNACNL03N | M10: Excess NAC Miniflex | N10: ExNACMi | O10: 0 | P10: 3 | Q10: ExNACMi03N | T10: ≥ 66kV & ≤ 132kV | U10: 25.05 | V10: 28.56 | Z10: ≥ 66kV & ≤ 132kV | AA10: 25.05 | AB10: 28.56 | AF10: ≥ 66kV & ≤ 132kV | AG10: 25.01 | AH10: 28.51 | AL10: ≥ 66kV & ≤ 132kV | AM10: 25.05 | AN10: 28.56
A11: Excess NAC Megaflex | B11: ExNACMe | C11: 0 | D11: 4 | E11: ExNACMe04N | G11: Excess NAC Nightsave Large | H11: ExNACNL | I11: 0 | J11: 4 | K11: ExNACNL04N | M11: Excess NAC Miniflex | N11: ExNACMi | O11: 0 | P11: 4 | Q11: ExNACMi04N | T11: > 132kV* | U11: 21.73 | V11: 24.77 | Z11: > 132kV* | AA11: 21.73 | AB11: 24.77 | AF11: > 132kV* | AG11: 21.69 | AH11: 24.73 | AL11: > 132kV* | AM11: 21.73 | AN11: 24.77
A12: Excess NAC Megaflex | B12: ExNACMe | C12: 1 | D12: 1 | E12: ExNACMe11N | G12: Excess NAC Nightsave Large | H12: ExNACNL | I12: 1 | J12: 1 | K12: ExNACNL11N | M12: Excess NAC Miniflex | N12: ExNACMi | O12: 1 | P12: 1 | Q12: ExNACMi11N | S12: > 300km and ≤ 600km | T12: < 500V | U12: 23.84 | V12: 27.18 | Y12: > 300km and ≤ 600km | Z12: < 500V | AA12: 23.84 | AB12: 27.18 | AE12: > 300km and ≤ 600km | AF12: < 500V | AG12: 23.81 | AH12: 27.14 | AK12: > 300km and ≤ 600km | AL12: < 500V | AM12: 23.84 | AN12: 27.18
A13: Excess NAC Megaflex | B13: ExNACMe | C13: 1 | D13: 2 | E13: ExNACMe12N | G13: Excess NAC Nightsave Large | H13: ExNACNL | I13: 1 | J13: 2 | K13: ExNACNL12N | M13: Excess NAC Miniflex | N13: ExNACMi | O13: 1 | P13: 2 | Q13: ExNACMi12N | T13: ≥ 500V & < 66kV | U13: 21.86 | V13: 24.92 | Z13: ≥ 500V & < 66kV | AA13: 21.86 | AB13: 24.92 | AF13: ≥ 500V & < 66kV | AG13: 21.84 | AH13: 24.9 | AL13: ≥ 500V & < 66kV | AM13: 21.86 | AN13: 24.92
A14: Excess NAC Megaflex | B14: ExNACMe | C14: 1 | D14: 3 | E14: ExNACMe13N | G14: Excess NAC Nightsave Large | H14: ExNACNL | I14: 1 | J14: 3 | K14: ExNACNL13N | M14: Excess NAC Miniflex | N14: ExNACMi | O14: 1 | P14: 3 | Q14: ExNACMi13N | T14: ≥ 66kV & ≤ 132kV | U14: 25.1 | V14: 28.61 | Z14: ≥ 66kV & ≤ 132kV | AA14: 25.1 | AB14: 28.61 | AF14: ≥ 66kV & ≤ 132kV | AG14: 25.06 | AH14: 28.57 | AL14: ≥ 66kV & ≤ 132kV | AM14: 25.1 | AN14: 28.61
A15: Excess NAC Megaflex | B15: ExNACMe | C15: 1 | D15: 4 | E15: ExNACMe14N | G15: Excess NAC Nightsave Large | H15: ExNACNL | I15: 1 | J15: 4 | K15: ExNACNL14N | M15: Excess NAC Miniflex | N15: ExNACMi | O15: 1 | P15: 4 | Q15: ExNACMi14N | T15: > 132kV* | U15: 21.82 | V15: 24.87 | Z15: > 132kV* | AA15: 21.82 | AB15: 24.87 | AF15: > 132kV* | AG15: 21.79 | AH15: 24.84 | AL15: > 132kV* | AM15: 21.82 | AN15: 24.87
A16: Excess NAC Megaflex | B16: ExNACMe | C16: 2 | D16: 1 | E16: ExNACMe21N | G16: Excess NAC Nightsave Large | H16: ExNACNL | I16: 2 | J16: 1 | K16: ExNACNL21N | M16: Excess NAC Miniflex | N16: ExNACMi | O16: 2 | P16: 1 | Q16: ExNACMi21N | S16: > 600km and ≤ 900km | T16: < 500V | U16: 23.94 | V16: 27.29 | Y16: > 600km and ≤ 900km | Z16: < 500V | AA16: 23.94 | AB16: 27.29 | AE16: > 600km and ≤ 900km | AF16: < 500V | AG16: 23.93 | AH16: 27.28 | AK16: > 600km and ≤ 900km | AL16: < 500V | AM16: 23.94 | AN16: 27.29
A17: Excess NAC Megaflex | B17: ExNACMe | C17: 2 | D17: 2 | E17: ExNACMe22N | G17: Excess NAC Nightsave Large | H17: ExNACNL | I17: 2 | J17: 2 | K17: ExNACNL22N | M17: Excess NAC Miniflex | N17: ExNACMi | O17: 2 | P17: 2 | Q17: ExNACMi22N | T17: ≥ 500V & < 66kV | U17: 21.92 | V17: 24.99 | Z17: ≥ 500V & < 66kV | AA17: 21.92 | AB17: 24.99 | AF17: ≥ 500V & < 66kV | AG17: 21.9 | AH17: 24.97 | AL17: ≥ 500V & < 66kV | AM17: 21.92 | AN17: 24.99
A18: Excess NAC Megaflex | B18: ExNACMe | C18: 2 | D18: 3 | E18: ExNACMe23N | G18: Excess NAC Nightsave Large | H18: ExNACNL | I18: 2 | J18: 3 | K18: ExNACNL23N | M18: Excess NAC Miniflex | N18: ExNACMi | O18: 2 | P18: 3 | Q18: ExNACMi23N | T18: ≥ 66kV & ≤ 132kV | U18: 25.14 | V18: 28.66 | Z18: ≥ 66kV & ≤ 132kV | AA18: 25.14 | AB18: 28.66 | AF18: ≥ 66kV & ≤ 132kV | AG18: 25.13 | AH18: 28.65 | AL18: ≥ 66kV & ≤ 132kV | AM18: 25.14 | AN18: 28.66
A19: Excess NAC Megaflex | B19: ExNACMe | C19: 2 | D19: 4 | E19: ExNACMe24N | G19: Excess NAC Nightsave Large | H19: ExNACNL | I19: 2 | J19: 4 | K19: ExNACNL24N | M19: Excess NAC Miniflex | N19: ExNACMi | O19: 2 | P19: 4 | Q19: ExNACMi24N | T19: > 132kV* | U19: 21.95 | V19: 25.02 | Z19: > 132kV* | AA19: 21.95 | AB19: 25.02 | AF19: > 132kV* | AG19: 21.92 | AH19: 24.99 | AL19: > 132kV* | AM19: 21.95 | AN19: 25.02
A20: Excess NAC Megaflex | B20: ExNACMe | C20: 3 | D20: 1 | E20: ExNACMe31N | G20: Excess NAC Nightsave Large | H20: ExNACNL | I20: 3 | J20: 1 | K20: ExNACNL31N | M20: Excess NAC Miniflex | N20: ExNACMi | O20: 3 | P20: 1 | Q20: ExNACMi31N | S20: > 900km | T20: < 500V | U20: 23.98 | V20: 27.34 | Y20: > 900km | Z20: < 500V | AA20: 23.98 | AB20: 27.34 | AE20: > 900km | AF20: < 500V | AG20: 23.95 | AH20: 27.3 | AK20: > 900km | AL20: < 500V | AM20: 23.98 | AN20: 27.34
A21: Excess NAC Megaflex | B21: ExNACMe | C21: 3 | D21: 2 | E21: ExNACMe32N | G21: Excess NAC Nightsave Large | H21: ExNACNL | I21: 3 | J21: 2 | K21: ExNACNL32N | M21: Excess NAC Miniflex | N21: ExNACMi | O21: 3 | P21: 2 | Q21: ExNACMi32N | T21: ≥ 500V & < 66kV | U21: 22.01 | V21: 25.09 | Z21: ≥ 500V & < 66kV | AA21: 22.01 | AB21: 25.09 | AF21: ≥ 500V & < 66kV | AG21: 21.98 | AH21: 25.06 | AL21: ≥ 500V & < 66kV | AM21: 22.01 | AN21: 25.09
A22: Excess NAC Megaflex | B22: ExNACMe | C22: 3 | D22: 3 | E22: ExNACMe33N | G22: Excess NAC Nightsave Large | H22: ExNACNL | I22: 3 | J22: 3 | K22: ExNACNL33N | M22: Excess NAC Miniflex | N22: ExNACMi | O22: 3 | P22: 3 | Q22: ExNACMi33N | T22: ≥ 66kV & ≤ 132kV | U22: 25.21 | V22: 28.74 | Z22: ≥ 66kV & ≤ 132kV | AA22: 25.21 | AB22: 28.74 | AF22: ≥ 66kV & ≤ 132kV | AG22: 25.18 | AH22: 28.71 | AL22: ≥ 66kV & ≤ 132kV | AM22: 25.21 | AN22: 28.74
A23: Excess NAC Megaflex | B23: ExNACMe | C23: 3 | D23: 4 | E23: ExNACMe34N | G23: Excess NAC Nightsave Large | H23: ExNACNL | I23: 3 | J23: 4 | K23: ExNACNL34N | M23: Excess NAC Miniflex | N23: ExNACMi | O23: 3 | P23: 4 | Q23: ExNACMi34N | T23: > 132kV* | U23: 22.02 | V23: 25.1 | Z23: > 132kV* | AA23: 22.02 | AB23: 25.1 | AF23: > 132kV* | AG23: 21.98 | AH23: 25.06 | AL23: > 132kV* | AM23: 22.02 | AN23: 25.1
T24: * 132 kV or Transmission connected | Z24: * 132 kV or Transmission connected | AF24: * 132 kV or Transmission connected
S25: Urban - Excess NCC Nightsave Urban Small [non local authorities] | X25: Rural - Excess NCC Nightsave Rural [non local authorities] | AD25: Rural - Excess NCC Ruraflex [non local authorities]
U27: Excess network charge [R/kVA/m] | AA27: Excess network charge [R/kVA/m] | AG27: Excess network charge [R/kVA/m]
S28: Transmission zone | Y28: Transmission zone | AE28: Transmission zone
T29: Voltage | Z29: Voltage | AF29: Voltage
A30: Tariff | B30: Tariff nameBillcode | C30: Tx zone | D30: Voltage | E30: Billcode | G30: Tariff | H30: Tariff nameBillcode | I30: Tx zone | J30: Voltage | K30: Billcode | M30: Tariff | N30: Tariff nameBillcode | O30: Tx zone | P30: Voltage | Q30: Billcode | V30: VAT incl | AB30: VAT incl | AH30: VAT incl
A31: Excess NAC Nightsave Small | B31: ExNACNS | C31: 0 | D31: 1 | E31: =B31&C31&D31&IF($A$2="Non-municipal","N",IF($A$2="Municiple","Y","error")) -> ExNACNS01N | G31: Excess NAC Nightsave Rural | H31: ExNACNR | I31: 0 | J31: 1 | K31: =H31&I31&J31&IF($A$2="Non-municipal","N",IF($A$2="Municiple","Y","error")) -> ExNACNR01N | M31: Excess NAC Ruraflex | N31: ExNACRu | O31: 0 | P31: 1 | Q31: =N31&O31&P31&IF($A$2="Non-municipal","N",IF($A$2="Municiple","Y","error")) -> ExNACRu01N | S31: ≤ 300km | T31: < 500V | U31: 23.78 | V31: =ROUND(U31 * (1 + VAT), 2) -> 27.11 | Y31: ≤ 300km | Z31: < 500V | AA31: 11.91 | AB31: =ROUND(AA31 * (1 + VAT), 2) -> 13.58 | AE31: ≤ 300km | AF31: < 500V | AG31: 16.64 | AH31: =ROUND(AG31 * (1 + VAT), 2) -> 18.97
A32: Excess NAC Nightsave Small | B32: ExNACNS | C32: 0 | D32: 2 | E32: =B32&C32&D32&IF($A$2="Non-municipal","N",IF($A$2="Municiple","Y","error")) -> ExNACNS02N | G32: Excess NAC Nightsave Rural | H32: ExNACNR | I32: 0 | J32: 2 | K32: =H32&I32&J32&IF($A$2="Non-municipal","N",IF($A$2="Municiple","Y","error")) -> ExNACNR02N | M32: Excess NAC Ruraflex | N32: ExNACRu | O32: 0 | P32: 2 | Q32: =N32&O32&P32&IF($A$2="Non-municipal","N",IF($A$2="Municiple","Y","error")) -> ExNACRu02N | T32: ≥ 500V & < 66kV | U32: 21.79 | V32: 24.84 | Z32: ≥ 500V & ≤ 22kV | AA32: 10.94 | AB32: 12.47 | AF32: ≥ 500V & ≤ 22kV | AG32: 15.25 | AH32: 17.39
A33: Excess NAC Nightsave Small | B33: ExNACNS | C33: 0 | D33: 3 | E33: ExNACNS03N | G33: Excess NAC Nightsave Rural | H33: ExNACNR | I33: 0 | J33: 3 | K33: ExNACNR03N | M33: Excess NAC Ruraflex | N33: ExNACRu | O33: 0 | P33: 3 | Q33: ExNACRu03N | T33: ≥ 66kV & ≤ 132kV | U33: 25.05 | V33: 28.56
A34: Excess NAC Nightsave Small | B34: ExNACNS | C34: 0 | D34: 4 | E34: ExNACNS04N | G34: Excess NAC Nightsave Rural | H34: ExNACNR | I34: 0 | J34: 4 | K34: ExNACNR04N | M34: Excess NAC Ruraflex | N34: ExNACRu | O34: 0 | P34: 4 | Q34: ExNACRu04N | T34: > 132kV* | U34: 21.73 | V34: 24.77
A35: Excess NAC Nightsave Small | B35: ExNACNS | C35: 1 | D35: 1 | E35: ExNACNS11N | G35: Excess NAC Nightsave Rural | H35: ExNACNR | I35: 1 | J35: 1 | K35: ExNACNR11N | M35: Excess NAC Ruraflex | N35: ExNACRu | O35: 1 | P35: 1 | Q35: ExNACRu11N | S35: > 300km and ≤ 600km | T35: < 500V | U35: 23.84 | V35: 27.18 | Y35: > 300km and ≤ 600km | Z35: < 500V | AA35: 11.94 | AB35: =ROUND(AA35 * (1 + VAT), 2) -> 13.61 | AE35: > 300km and ≤ 600km | AF35: < 500V | AG35: 16.69 | AH35: =ROUND(AG35 * (1 + VAT), 2) -> 19.03
A36: Excess NAC Nightsave Small | B36: ExNACNS | C36: 1 | D36: 2 | E36: ExNACNS12N | G36: Excess NAC Nightsave Rural | H36: ExNACNR | I36: 1 | J36: 2 | K36: ExNACNR12N | M36: Excess NAC Ruraflex | N36: ExNACRu | O36: 1 | P36: 2 | Q36: ExNACRu12N | T36: ≥ 500V & < 66kV | U36: 21.86 | V36: 24.92 | Z36: ≥ 500V & ≤ 22kV | AA36: 10.99 | AB36: 12.53 | AF36: ≥ 500V & ≤ 22kV | AG36: 15.35 | AH36: 17.5
A37: Excess NAC Nightsave Small | B37: ExNACNS | C37: 1 | D37: 3 | E37: ExNACNS13N | G37: Excess NAC Nightsave Rural | H37: ExNACNR | I37: 1 | J37: 3 | K37: ExNACNR13N | M37: Excess NAC Ruraflex | N37: ExNACRu | O37: 1 | P37: 3 | Q37: ExNACRu13N | T37: ≥ 66kV & ≤ 132kV | U37: 25.1 | V37: 28.61
A38: Excess NAC Nightsave Small | B38: ExNACNS | C38: 1 | D38: 4 | E38: ExNACNS14N | G38: Excess NAC Nightsave Rural | H38: ExNACNR | I38: 1 | J38: 4 | K38: ExNACNR14N | M38: Excess NAC Ruraflex | N38: ExNACRu | O38: 1 | P38: 4 | Q38: ExNACRu14N | T38: > 132kV* | U38: 21.82 | V38: 24.87
A39: Excess NAC Nightsave Small | B39: ExNACNS | C39: 2 | D39: 1 | E39: ExNACNS21N | G39: Excess NAC Nightsave Rural | H39: ExNACNR | I39: 2 | J39: 1 | K39: ExNACNR21N | M39: Excess NAC Ruraflex | N39: ExNACRu | O39: 2 | P39: 1 | Q39: ExNACRu21N | S39: > 600km and ≤ 900km | T39: < 500V | U39: 23.94 | V39: 27.29 | Y39: > 600km and ≤ 900km | Z39: < 500V | AA39: 12.05 | AB39: =ROUND(AA39 * (1 + VAT), 2) -> 13.74 | AE39: > 600km and ≤ 900km | AF39: < 500V | AG39: 16.78 | AH39: =ROUND(AG39 * (1 + VAT), 2) -> 19.13
A40: Excess NAC Nightsave Small | B40: ExNACNS | C40: 2 | D40: 2 | E40: ExNACNS22N | G40: Excess NAC Nightsave Rural | H40: ExNACNR | I40: 2 | J40: 2 | K40: ExNACNR22N | M40: Excess NAC Ruraflex | N40: ExNACRu | O40: 2 | P40: 2 | Q40: ExNACRu22N | T40: ≥ 500V & < 66kV | U40: 21.92 | V40: 24.99 | Z40: ≥ 500V & ≤ 22kV | AA40: 11.06 | AB40: 12.61 | AF40: ≥ 500V & ≤ 22kV | AG40: 15.41 | AH40: 17.57
A41: Excess NAC Nightsave Small | B41: ExNACNS | C41: 2 | D41: 3 | E41: ExNACNS23N | G41: Excess NAC Nightsave Rural | H41: ExNACNR | I41: 2 | J41: 3 | K41: ExNACNR23N | M41: Excess NAC Ruraflex | N41: ExNACRu | O41: 2 | P41: 3 | Q41: ExNACRu23N | T41: ≥ 66kV & ≤ 132kV | U41: 25.14 | V41: 28.66
A42: Excess NAC Nightsave Small | B42: ExNACNS | C42: 2 | D42: 4 | E42: ExNACNS24N | G42: Excess NAC Nightsave Rural | H42: ExNACNR | I42: 2 | J42: 4 | K42: ExNACNR24N | M42: Excess NAC Ruraflex | N42: ExNACRu | O42: 2 | P42: 4 | Q42: ExNACRu24N | T42: > 132kV* | U42: 21.95 | V42: 25.02
A43: Excess NAC Nightsave Small | B43: ExNACNS | C43: 3 | D43: 1 | E43: ExNACNS31N | G43: Excess NAC Nightsave Rural | H43: ExNACNR | I43: 3 | J43: 1 | K43: ExNACNR31N | M43: Excess NAC Ruraflex | N43: ExNACRu | O43: 3 | P43: 1 | Q43: ExNACRu31N | S43: > 900km | T43: < 500V | U43: 23.98 | V43: 27.34 | Y43: > 900km | Z43: < 500V | AA43: 12.08 | AB43: =ROUND(AA43 * (1 + VAT), 2) -> 13.77 | AE43: > 900km | AF43: < 500V | AG43: 16.85 | AH43: =ROUND(AG43 * (1 + VAT), 2) -> 19.21
A44: Excess NAC Nightsave Small | B44: ExNACNS | C44: 3 | D44: 2 | E44: ExNACNS32N | G44: Excess NAC Nightsave Rural | H44: ExNACNR | I44: 3 | J44: 2 | K44: ExNACNR32N | M44: Excess NAC Ruraflex | N44: ExNACRu | O44: 3 | P44: 2 | Q44: ExNACRu32N | T44: ≥ 500V & < 66kV | U44: 22.01 | V44: 25.09 | Z44: ≥ 500V & ≤ 22kV | AA44: 11.08 | AB44: 12.63 | AF44: ≥ 500V & ≤ 22kV | AG44: 15.42 | AH44: 17.58
A45: Excess NAC Nightsave Small | B45: ExNACNS | C45: 3 | D45: 3 | E45: ExNACNS33N | G45: Excess NAC Nightsave Rural | H45: ExNACNR | I45: 3 | J45: 3 | K45: ExNACNR33N | M45: Excess NAC Ruraflex | N45: ExNACRu | O45: 3 | P45: 3 | Q45: ExNACRu33N | T45: ≥ 66kV & ≤ 132kV | U45: 25.21 | V45: 28.74
A46: Excess NAC Nightsave Small | B46: ExNACNS | C46: 3 | D46: 4 | E46: ExNACNS34N | G46: Excess NAC Nightsave Rural | H46: ExNACNR | I46: 3 | J46: 4 | K46: ExNACNR34N | M46: Excess NAC Ruraflex | N46: ExNACRu | O46: 3 | P46: 4 | Q46: ExNACRu34N | T46: > 132kV* | U46: 22.02 | V46: 25.1
T47: * 132 kV or Transmission connected
S50: Excess MEC- Transmission connected generators | Y50: Excess MEC- Distribution connected Generators
T52: Excess Network capacity charge[R/kW/m] | Z52: Excess Network capacity charge[R/kW/m]
U53: VAT incl | AA53: VAT incl
S54: Cape | T54: =T55 -> 1.88 | U54: =ROUND(T54 * (1 + VAT), 2) -> 2.14 | Y54: Voltage
S55: Karoo | T55: =T56 -> 1.88 | U55: 2.14 | Y55: < 500V | Z55: 0 | AA55: =ROUND(Z55 * (1 + VAT), 2) -> 0
S56: Kwazulu-Natal | T56: =TUoS!J58 -> 1.88 | U56: 2.14 | Y56: ≥ 500V & < 66kV | Z56: =Z57 -> 12.8 | AA56: 14.59
S57: Vaal | T57: =TUoS!J59 -> 6.26 | U57: 7.14 | Y57: ≥ 66kV & ≤ 132kV | Z57: =DUoS!J73 -> 12.8 | AA57: 14.59
S58: Waterberg | T58: =TUoS!J60 -> 8.02 | U58: 9.14
S59: Mpumalanga | T59: =TUoS!J61 -> 7.44 | U59: 8.48

Sheet Excess NCC Munic
S1: Back to menu
A2: Municiple | S2: Urban - Excess NCC Megaflex [Local authorities] | X2: Urban - Excess NCC Nightsave Urban Large [Local authorities] | AD2: Urban - Excess NCC Miniflex [Local authorities] | AK2: Urban - Excess NCC WEPS [Local authorities]
U4: Excess network charge [R/kVA/m] | AA4: Excess network charge [R/kVA/m] | AG4: Excess network charge [R/kVA/m] | AM4: Excess network charge [R/kVA/m]
S5: Transmission zone | Y5: Transmission zone | AE5: Transmission zone | AK5: Transmission zone
T6: Voltage | Z6: Voltage | AF6: Voltage | AL6: Voltage
A7: Tariff | B7: Tariff nameBillcode | C7: Tx zone | D7: Voltage | E7: Billcode | G7: Tariff | H7: Tariff nameBillcode | I7: Tx zone | J7: Voltage | K7: Billcode | M7: Tariff | N7: Tariff nameBillcode | O7: Tx zone | P7: Voltage | Q7: Billcode | V7: VAT incl | AB7: VAT incl | AH7: VAT incl | AN7: VAT incl
A8: Excess NAC Megaflex | B8: ExNACMe | C8: 0 | D8: 1 | E8: =B8&C8&D8&IF($A$2="Non-municipal","N",IF($A$2="Municiple","Y","error")) -> ExNACMe01Y | G8: Excess NAC Nightsave Large | H8: ExNACNL | I8: 0 | J8: 1 | K8: =H8&I8&J8&IF($A$2="Non-municipal","N",IF($A$2="Municiple","Y","error")) -> ExNACNL01Y | M8: Excess NAC Miniflex | N8: ExNACMi | O8: 0 | P8: 1 | Q8: =N8&O8&P8&IF($A$2="Non-municipal","N",IF($A$2="Municiple","Y","error")) -> ExNACMi01Y | S8: ≤ 300km | T8: < 500V | U8: 23.33 | V8: =ROUND(U8 * (1 + VAT), 2) -> 26.6 | Y8: ≤ 300km | Z8: < 500V | AA8: 23.33 | AB8: =ROUND(AA8 * (1 + VAT), 2) -> 26.6 | AE8: ≤ 300km | AF8: < 500V | AG8: 23.32 | AH8: =ROUND(AG8 * (1 + VAT), 2) -> 26.58 | AK8: ≤ 300km | AL8: < 500V | AM8: 23.33 | AN8: =ROUND(AM8 * (1 + VAT), 2) -> 26.6
A9: Excess NAC Megaflex | B9: ExNACMe | C9: 0 | D9: 2 | E9: =B9&C9&D9&IF($A$2="Non-municipal","N",IF($A$2="Municiple","Y","error")) -> ExNACMe02Y | G9: Excess NAC Nightsave Large | H9: ExNACNL | I9: 0 | J9: 2 | K9: =H9&I9&J9&IF($A$2="Non-municipal","N",IF($A$2="Municiple","Y","error")) -> ExNACNL02Y | M9: Excess NAC Miniflex | N9: ExNACMi | O9: 0 | P9: 2 | Q9: =N9&O9&P9&IF($A$2="Non-municipal","N",IF($A$2="Municiple","Y","error")) -> ExNACMi02Y | T9: ≥ 500V & < 66kV | U9: 21.36 | V9: 24.35 | Z9: ≥ 500V & < 66kV | AA9: 21.36 | AB9: 24.35 | AF9: ≥ 500V & < 66kV | AG9: 21.37 | AH9: 24.36 | AL9: ≥ 500V & < 66kV | AM9: 21.36 | AN9: 24.35
A10: Excess NAC Megaflex | B10: ExNACMe | C10: 0 | D10: 3 | E10: ExNACMe03Y | G10: Excess NAC Nightsave Large | H10: ExNACNL | I10: 0 | J10: 3 | K10: ExNACNL03Y | M10: Excess NAC Miniflex | N10: ExNACMi | O10: 0 | P10: 3 | Q10: ExNACMi03Y | T10: ≥ 66kV & ≤ 132kV | U10: 24.5 | V10: 27.93 | Z10: ≥ 66kV & ≤ 132kV | AA10: 24.5 | AB10: 27.93 | AF10: ≥ 66kV & ≤ 132kV | AG10: 24.48 | AH10: 27.91 | AL10: ≥ 66kV & ≤ 132kV | AM10: 24.5 | AN10: 27.93
A11: Excess NAC Megaflex | B11: ExNACMe | C11: 0 | D11: 4 | E11: ExNACMe04Y | G11: Excess NAC Nightsave Large | H11: ExNACNL | I11: 0 | J11: 4 | K11: ExNACNL04Y | M11: Excess NAC Miniflex | N11: ExNACMi | O11: 0 | P11: 4 | Q11: ExNACMi04Y | T11: > 132kV* | U11: 21.24 | V11: 24.21 | Z11: > 132kV* | AA11: 21.24 | AB11: 24.21 | AF11: > 132kV* | AG11: 21.24 | AH11: 24.21 | AL11: > 132kV* | AM11: 21.24 | AN11: 24.21
A12: Excess NAC Megaflex | B12: ExNACMe | C12: 1 | D12: 1 | E12: ExNACMe11Y | G12: Excess NAC Nightsave Large | H12: ExNACNL | I12: 1 | J12: 1 | K12: ExNACNL11Y | M12: Excess NAC Miniflex | N12: ExNACMi | O12: 1 | P12: 1 | Q12: ExNACMi11Y | S12: > 300km and ≤ 600km | T12: < 500V | U12: 23.37 | V12: 26.64 | Y12: > 300km and ≤ 600km | Z12: < 500V | AA12: 23.37 | AB12: 26.64 | AE12: > 300km and ≤ 600km | AF12: < 500V | AG12: 23.37 | AH12: 26.64 | AK12: > 300km and ≤ 600km | AL12: < 500V | AM12: 23.37 | AN12: 26.64
A13: Excess NAC Megaflex | B13: ExNACMe | C13: 1 | D13: 2 | E13: ExNACMe12Y | G13: Excess NAC Nightsave Large | H13: ExNACNL | I13: 1 | J13: 2 | K13: ExNACNL12Y | M13: Excess NAC Miniflex | N13: ExNACMi | O13: 1 | P13: 2 | Q13: ExNACMi12Y | T13: ≥ 500V & < 66kV | U13: 21.43 | V13: 24.43 | Z13: ≥ 500V & < 66kV | AA13: 21.43 | AB13: 24.43 | AF13: ≥ 500V & < 66kV | AG13: 21.44 | AH13: 24.44 | AL13: ≥ 500V & < 66kV | AM13: 21.43 | AN13: 24.43
A14: Excess NAC Megaflex | B14: ExNACMe | C14: 1 | D14: 3 | E14: ExNACMe13Y | G14: Excess NAC Nightsave Large | H14: ExNACNL | I14: 1 | J14: 3 | K14: ExNACNL13Y | M14: Excess NAC Miniflex | N14: ExNACMi | O14: 1 | P14: 3 | Q14: ExNACMi13Y | T14: ≥ 66kV & ≤ 132kV | U14: 24.55 | V14: 27.99 | Z14: ≥ 66kV & ≤ 132kV | AA14: 24.55 | AB14: 27.99 | AF14: ≥ 66kV & ≤ 132kV | AG14: 24.55 | AH14: 27.99 | AL14: ≥ 66kV & ≤ 132kV | AM14: 24.55 | AN14: 27.99
A15: Excess NAC Megaflex | B15: ExNACMe | C15: 1 | D15: 4 | E15: ExNACMe14Y | G15: Excess NAC Nightsave Large | H15: ExNACNL | I15: 1 | J15: 4 | K15: ExNACNL14Y | M15: Excess NAC Miniflex | N15: ExNACMi | O15: 1 | P15: 4 | Q15: ExNACMi14Y | T15: > 132kV* | U15: 21.32 | V15: 24.3 | Z15: > 132kV* | AA15: 21.32 | AB15: 24.3 | AF15: > 132kV* | AG15: 21.32 | AH15: 24.3 | AL15: > 132kV* | AM15: 21.32 | AN15: 24.3
A16: Excess NAC Megaflex | B16: ExNACMe | C16: 2 | D16: 1 | E16: ExNACMe21Y | G16: Excess NAC Nightsave Large | H16: ExNACNL | I16: 2 | J16: 1 | K16: ExNACNL21Y | M16: Excess NAC Miniflex | N16: ExNACMi | O16: 2 | P16: 1 | Q16: ExNACMi21Y | S16: > 600km and ≤ 900km | T16: < 500V | U16: 23.47 | V16: 26.76 | Y16: > 600km and ≤ 900km | Z16: < 500V | AA16: 23.47 | AB16: 26.76 | AE16: > 600km and ≤ 900km | AF16: < 500V | AG16: 23.49 | AH16: 26.78 | AK16: > 600km and ≤ 900km | AL16: < 500V | AM16: 23.47 | AN16: 26.76
A17: Excess NAC Megaflex | B17: ExNACMe | C17: 2 | D17: 2 | E17: ExNACMe22Y | G17: Excess NAC Nightsave Large | H17: ExNACNL | I17: 2 | J17: 2 | K17: ExNACNL22Y | M17: Excess NAC Miniflex | N17: ExNACMi | O17: 2 | P17: 2 | Q17: ExNACMi22Y | T17: ≥ 500V & < 66kV | U17: 21.49 | V17: 24.5 | Z17: ≥ 500V & < 66kV | AA17: 21.49 | AB17: 24.5 | AF17: ≥ 500V & < 66kV | AG17: 21.5 | AH17: 24.51 | AL17: ≥ 500V & < 66kV | AM17: 21.49 | AN17: 24.5
A18: Excess NAC Megaflex | B18: ExNACMe | C18: 2 | D18: 3 | E18: ExNACMe23Y | G18: Excess NAC Nightsave Large | H18: ExNACNL | I18: 2 | J18: 3 | K18: ExNACNL23Y | M18: Excess NAC Miniflex | N18: ExNACMi | O18: 2 | P18: 3 | Q18: ExNACMi23Y | T18: ≥ 66kV & ≤ 132kV | U18: 24.61 | V18: 28.06 | Z18: ≥ 66kV & ≤ 132kV | AA18: 24.61 | AB18: 28.06 | AF18: ≥ 66kV & ≤ 132kV | AG18: 24.6 | AH18: 28.04 | AL18: ≥ 66kV & ≤ 132kV | AM18: 24.61 | AN18: 28.06
A19: Excess NAC Megaflex | B19: ExNACMe | C19: 2 | D19: 4 | E19: ExNACMe24Y | G19: Excess NAC Nightsave Large | H19: ExNACNL | I19: 2 | J19: 4 | K19: ExNACNL24Y | M19: Excess NAC Miniflex | N19: ExNACMi | O19: 2 | P19: 4 | Q19: ExNACMi24Y | T19: > 132kV* | U19: 21.44 | V19: 24.44 | Z19: > 132kV* | AA19: 21.44 | AB19: 24.44 | AF19: > 132kV* | AG19: 21.44 | AH19: 24.44 | AL19: > 132kV* | AM19: 21.44 | AN19: 24.44
A20: Excess NAC Megaflex | B20: ExNACMe | C20: 3 | D20: 1 | E20: ExNACMe31Y | G20: Excess NAC Nightsave Large | H20: ExNACNL | I20: 3 | J20: 1 | K20: ExNACNL31Y | M20: Excess NAC Miniflex | N20: ExNACMi | O20: 3 | P20: 1 | Q20: ExNACMi31Y | S20: > 900km | T20: < 500V | U20: 23.51 | V20: 26.8 | Y20: > 900km | Z20: < 500V | AA20: 23.51 | AB20: 26.8 | AE20: > 900km | AF20: < 500V | AG20: 23.51 | AH20: 26.8 | AK20: > 900km | AL20: < 500V | AM20: 23.51 | AN20: 26.8
A21: Excess NAC Megaflex | B21: ExNACMe | C21: 3 | D21: 2 | E21: ExNACMe32Y | G21: Excess NAC Nightsave Large | H21: ExNACNL | I21: 3 | J21: 2 | K21: ExNACNL32Y | M21: Excess NAC Miniflex | N21: ExNACMi | O21: 3 | P21: 2 | Q21: ExNACMi32Y | T21: ≥ 500V & < 66kV | U21: 21.56 | V21: 24.58 | Z21: ≥ 500V & < 66kV | AA21: 21.56 | AB21: 24.58 | AF21: ≥ 500V & < 66kV | AG21: 21.59 | AH21: 24.61 | AL21: ≥ 500V & < 66kV | AM21: 21.56 | AN21: 24.58
A22: Excess NAC Megaflex | B22: ExNACMe | C22: 3 | D22: 3 | E22: ExNACMe33Y | G22: Excess NAC Nightsave Large | H22: ExNACNL | I22: 3 | J22: 3 | K22: ExNACNL33Y | M22: Excess NAC Miniflex | N22: ExNACMi | O22: 3 | P22: 3 | Q22: ExNACMi33Y | T22: ≥ 66kV & ≤ 132kV | U22: 24.66 | V22: 28.11 | Z22: ≥ 66kV & ≤ 132kV | AA22: 24.66 | AB22: 28.11 | AF22: ≥ 66kV & ≤ 132kV | AG22: 24.64 | AH22: 28.09 | AL22: ≥ 66kV & ≤ 132kV | AM22: 24.66 | AN22: 28.11
A23: Excess NAC Megaflex | B23: ExNACMe | C23: 3 | D23: 4 | E23: ExNACMe34Y | G23: Excess NAC Nightsave Large | H23: ExNACNL | I23: 3 | J23: 4 | K23: ExNACNL34Y | M23: Excess NAC Miniflex | N23: ExNACMi | O23: 3 | P23: 4 | Q23: ExNACMi34Y | T23: > 132kV* | U23: 21.51 | V23: 24.52 | Z23: > 132kV* | AA23: 21.51 | AB23: 24.52 | AF23: > 132kV* | AG23: 21.51 | AH23: 24.52 | AL23: > 132kV* | AM23: 21.51 | AN23: 24.52
T24: * 132 kV or Transmission connected | Z24: * 132 kV or Transmission connected | AF24: * 132 kV or Transmission connected | AL24: * 132 kV or Transmission connected
S25: Urban - Excess NCC Nightsave Urban Small [Local authorities] | X25: Rural - Excess NCC Nightsave Rural [Local authorities] | AD25: Rural - Excess NCC Ruraflex [Local authorities]
U27: Excess network charge [R/kVA/m] | AA27: Excess network charge [R/kVA/m] | AG27: Excess network charge [R/kVA/m]
S28: Transmission zone | Y28: Transmission zone | AE28: Transmission zone
T29: Voltage | Z29: Voltage | AF29: Voltage
A30: Tariff | B30: Tariff nameBillcode | C30: Tx zone | D30: Voltage | E30: Billcode | G30: Tariff | H30: Tariff nameBillcode | I30: Tx zone | J30: Voltage | K30: Billcode | M30: Tariff | N30: Tariff nameBillcode | O30: Tx zone | P30: Voltage | Q30: Billcode | V30: VAT incl | AB30: VAT incl | AH30: VAT incl
A31: Excess NAC Nightsave Small | B31: ExNACNS | C31: 0 | D31: 1 | E31: =B31&C31&D31&IF($A$2="Non-municipal","N",IF($A$2="Municiple","Y","error")) -> ExNACNS01Y | G31: Excess NAC Nightsave Rural | H31: ExNACNR | I31: 0 | J31: 1 | K31: =H31&I31&J31&IF($A$2="Non-municipal","N",IF($A$2="Municiple","Y","error")) -> ExNACNR01Y | M31: Excess NAC Ruraflex | N31: ExNACRu | O31: 0 | P31: 1 | Q31: =N31&O31&P31&IF($A$2="Non-municipal","N",IF($A$2="Municiple","Y","error")) -> ExNACRu01Y | S31: ≤ 300km | T31: < 500V | U31: 23.33 | V31: =ROUND(U31 * (1 + VAT), 2) -> 26.6 | Y31: ≤ 300km | Z31: < 500V | AA31: 11.81 | AB31: =ROUND(AA31 * (1 + VAT), 2) -> 13.46 | AE31: ≤ 300km | AF31: < 500V | AG31: 16.47 | AH31: =ROUND(AG31 * (1 + VAT), 2) -> 18.78
A32: Excess NAC Nightsave Small | B32: ExNACNS | C32: 0 | D32: 2 | E32: =B32&C32&D32&IF($A$2="Non-municipal","N",IF($A$2="Municiple","Y","error")) -> ExNACNS02Y | G32: Excess NAC Nightsave Rural | H32: ExNACNR | I32: 0 | J32: 2 | K32: =H32&I32&J32&IF($A$2="Non-municipal","N",IF($A$2="Municiple","Y","error")) -> ExNACNR02Y | M32: Excess NAC Ruraflex | N32: ExNACRu | O32: 0 | P32: 2 | Q32: =N32&O32&P32&IF($A$2="Non-municipal","N",IF($A$2="Municiple","Y","error")) -> ExNACRu02Y | T32: ≥ 500V & < 66kV | U32: 21.36 | V32: 24.35 | Z32: ≥ 500V & ≤ 22kV | AA32: 10.84 | AB32: 12.36 | AF32: ≥ 500V & ≤ 22kV | AG32: 15.11 | AH32: 17.23
A33: Excess NAC Nightsave Small | B33: ExNACNS | C33: 0 | D33: 3 | E33: ExNACNS03Y | G33: Excess NAC Nightsave Rural | H33: ExNACNR | I33: 0 | J33: 3 | K33: ExNACNR03Y | M33: Excess NAC Ruraflex | N33: ExNACRu | O33: 0 | P33: 3 | Q33: ExNACRu03Y | T33: ≥ 66kV & ≤ 132kV | U33: 24.5 | V33: 27.93
A34: Excess NAC Nightsave Small | B34: ExNACNS | C34: 0 | D34: 4 | E34: ExNACNS04Y | G34: Excess NAC Nightsave Rural | H34: ExNACNR | I34: 0 | J34: 4 | K34: ExNACNR04Y | M34: Excess NAC Ruraflex | N34: ExNACRu | O34: 0 | P34: 4 | Q34: ExNACRu04Y | T34: > 132kV* | U34: 21.24 | V34: 24.21
A35: Excess NAC Nightsave Small | B35: ExNACNS | C35: 1 | D35: 1 | E35: ExNACNS11Y | G35: Excess NAC Nightsave Rural | H35: ExNACNR | I35: 1 | J35: 1 | K35: ExNACNR11Y | M35: Excess NAC Ruraflex | N35: ExNACRu | O35: 1 | P35: 1 | Q35: ExNACRu11Y | S35: > 300km and ≤ 600km | T35: < 500V | U35: 23.37 | V35: 26.64 | Y35: > 300km and ≤ 600km | Z35: < 500V | AA35: 11.83 | AB35: =ROUND(AA35 * (1 + VAT), 2) -> 13.49 | AE35: > 300km and ≤ 600km | AF35: < 500V | AG35: 16.54 | AH35: =ROUND(AG35 * (1 + VAT), 2) -> 18.86
A36: Excess NAC Nightsave Small | B36: ExNACNS | C36: 1 | D36: 2 | E36: ExNACNS12Y | G36: Excess NAC Nightsave Rural | H36: ExNACNR | I36: 1 | J36: 2 | K36: ExNACNR12Y | M36: Excess NAC Ruraflex | N36: ExNACRu | O36: 1 | P36: 2 | Q36: ExNACRu12Y | T36: ≥ 500V & < 66kV | U36: 21.43 | V36: 24.43 | Z36: ≥ 500V & ≤ 22kV | AA36: 10.88 | AB36: 12.4 | AF36: ≥ 500V & ≤ 22kV | AG36: 15.2 | AH36: 17.33
A37: Excess NAC Nightsave Small | B37: ExNACNS | C37: 1 | D37: 3 | E37: ExNACNS13Y | G37: Excess NAC Nightsave Rural | H37: ExNACNR | I37: 1 | J37: 3 | K37: ExNACNR13Y | M37: Excess NAC Ruraflex | N37: ExNACRu | O37: 1 | P37: 3 | Q37: ExNACRu13Y | T37: ≥ 66kV & ≤ 132kV | U37: 24.55 | V37: 27.99
A38: Excess NAC Nightsave Small | B38: ExNACNS | C38: 1 | D38: 4 | E38: ExNACNS14Y | G38: Excess NAC Nightsave Rural | H38: ExNACNR | I38: 1 | J38: 4 | K38: ExNACNR14Y | M38: Excess NAC Ruraflex | N38: ExNACRu | O38: 1 | P38: 4 | Q38: ExNACRu14Y | T38: > 132kV* | U38: 21.32 | V38: 24.3
A39: Excess NAC Nightsave Small | B39: ExNACNS | C39: 2 | D39: 1 | E39: ExNACNS21Y | G39: Excess NAC Nightsave Rural | H39: ExNACNR | I39: 2 | J39: 1 | K39: ExNACNR21Y | M39: Excess NAC Ruraflex | N39: ExNACRu | O39: 2 | P39: 1 | Q39: ExNACRu21Y | S39: > 600km and ≤ 900km | T39: < 500V | U39: 23.47 | V39: 26.76 | Y39: > 600km and ≤ 900km | Z39: < 500V | AA39: 11.95 | AB39: =ROUND(AA39 * (1 + VAT), 2) -> 13.62 | AE39: > 600km and ≤ 900km | AF39: < 500V | AG39: 16.63 | AH39: =ROUND(AG39 * (1 + VAT), 2) -> 18.96
A40: Excess NAC Nightsave Small | B40: ExNACNS | C40: 2 | D40: 2 | E40: ExNACNS22Y | G40: Excess NAC Nightsave Rural | H40: ExNACNR | I40: 2 | J40: 2 | K40: ExNACNR22Y | M40: Excess NAC Ruraflex | N40: ExNACRu | O40: 2 | P40: 2 | Q40: ExNACRu22Y | T40: ≥ 500V & < 66kV | U40: 21.49 | V40: 24.5 | Z40: ≥ 500V & ≤ 22kV | AA40: 10.95 | AB40: 12.48 | AF40: ≥ 500V & ≤ 22kV | AG40: 15.27 | AH40: 17.41
A41: Excess NAC Nightsave Small | B41: ExNACNS | C41: 2 | D41: 3 | E41: ExNACNS23Y | G41: Excess NAC Nightsave Rural | H41: ExNACNR | I41: 2 | J41: 3 | K41: ExNACNR23Y | M41: Excess NAC Ruraflex | N41: ExNACRu | O41: 2 | P41: 3 | Q41: ExNACRu23Y | T41: ≥ 66kV & ≤ 132kV | U41: 24.61 | V41: 28.06
A42: Excess NAC Nightsave Small | B42: ExNACNS | C42: 2 | D42: 4 | E42: ExNACNS24Y | G42: Excess NAC Nightsave Rural | H42: ExNACNR | I42: 2 | J42: 4 | K42: ExNACNR24Y | M42: Excess NAC Ruraflex | N42: ExNACRu | O42: 2 | P42: 4 | Q42: ExNACRu24Y | T42: > 132kV* | U42: 21.44 | V42: 24.44
A43: Excess NAC Nightsave Small | B43: ExNACNS | C43: 3 | D43: 1 | E43: ExNACNS31Y | G43: Excess NAC Nightsave Rural | H43: ExNACNR | I43: 3 | J43: 1 | K43: ExNACNR31Y | M43: Excess NAC Ruraflex | N43: ExNACRu | O43: 3 | P43: 1 | Q43: ExNACRu31Y | S43: > 900km | T43: < 500V | U43: 23.51 | V43: 26.8 | Y43: > 900km | Z43: < 500V | AA43: 11.96 | AB43: =ROUND(AA43 * (1 + VAT), 2) -> 13.63 | AE43: > 900km | AF43: < 500V | AG43: 16.68 | AH43: =ROUND(AG43 * (1 + VAT), 2) -> 19.02
A44: Excess NAC Nightsave Small | B44: ExNACNS | C44: 3 | D44: 2 | E44: ExNACNS32Y | G44: Excess NAC Nightsave Rural | H44: ExNACNR | I44: 3 | J44: 2 | K44: ExNACNR32Y | M44: Excess NAC Ruraflex | N44: ExNACRu | O44: 3 | P44: 2 | Q44: ExNACRu32Y | T44: ≥ 500V & < 66kV | U44: 21.56 | V44: 24.58 | Z44: ≥ 500V & ≤ 22kV | AA44: 10.96 | AB44: 12.49 | AF44: ≥ 500V & ≤ 22kV | AG44: 15.28 | AH44: 17.42
A45: Excess NAC Nightsave Small | B45: ExNACNS | C45: 3 | D45: 3 | E45: ExNACNS33Y | G45: Excess NAC Nightsave Rural | H45: ExNACNR | I45: 3 | J45: 3 | K45: ExNACNR33Y | M45: Excess NAC Ruraflex | N45: ExNACRu | O45: 3 | P45: 3 | Q45: ExNACRu33Y | T45: ≥ 66kV & ≤ 132kV | U45: 24.66 | V45: 28.11
A46: Excess NAC Nightsave Small | B46: ExNACNS | C46: 3 | D46: 4 | E46: ExNACNS34Y | G46: Excess NAC Nightsave Rural | H46: ExNACNR | I46: 3 | J46: 4 | K46: ExNACNR34Y | M46: Excess NAC Ruraflex | N46: ExNACRu | O46: 3 | P46: 4 | Q46: ExNACRu34Y | T46: > 132kV* | U46: 21.51 | V46: 24.52
T47: * 132 kV or Transmission connected

Sheet Env levy
B2: Urban
B3: Ave c/kWh | C3: Column Labels
B4: Row Labels | C4: 0 | D4: 1 | E4: 2 | F4: 3 | G4: Grand Total
B5: 1 | C5: 4.244173496 | D5: 3.922922112 | E5: 3.952738211 | F5: 3.99518266 | G5: 4.230325642
B6: 2 | C6: 3.818605965 | D6: 3.856792025 | E6: 3.895359945 | F6: 3.934313544 | G6: 3.830031886
B7: 3 | C7: 3.6978496 | D7: 3.734828096 | E7: 3.772176377 | F7: 3.809898141 | G7: 3.749584404
B8: 4 | C8: 3.485023597 | D8: 3.519873833 | E8: 3.555072571 | F8: 0 | G8: 3.497836202
B9: Grand Total | C9: 3.768693197 | D9: 3.666474757 | E9: 3.798966039 | F9: 3.84820921 | G9: 3.760612171
B11: Rural pivot(excluding landrate)
B12: Ave c/kWh | C12: Column Labels
B13: Row Labels | C13: 0 | D13: 1 | E13: 2 | F13: 3 | G13: Grand Total
B14: 1 | C14: 4.017125899 | D14: 4.057297158 | E14: 4.097870129 | F14: 4.138848829 | G14: 4.064771786
B15: 2 | C15: 3.977159862 | D15: 4.01693146 | E15: 4.057100775 | F15: 4.097671783 | G15: 4.019422117
B16: Grand Total | C16: 3.992398248 | D16: 4.037020529 | E16: 4.075975827 | F16: 4.117029851 | G16: 4.039902702
B18: Landrate
B19: Ave c/kWh | C19: Column Labels
B20: Row Labels | C20: 0 | D20: Grand Total
B21: 1 | C21: 4.654296484 | D21: 4.654296484
B22: Grand Total | C22: 4.654296484 | D22: 4.654296484

Sheet Sheet2 (hidden)
B2: GENERATOR TARIFF REFERENCE TABLE
B4: Applicability of tariff rates (key)
B5: Code | C5: Description
B6: n/a | C6: Not applicable
B7: Applicable | C7: Rate is applicable
AZ8: WEPS
B9: Bill rate matrix (BRM) code | C9: CC&B reference code to BRM (showing the first voltage code) | D9: Tariff name | E9: Municipal / non-municipal | F9: Applicability (customers or transaction) | G9: Reference tariff (rates are the same) | H9: AdminS | I9: AdminM | J9: AdminL | K9: AdminVL | L9: AdminK | M9: ServiceS | N9: ServiceM | O9: ServiceL | P9: ServiceVL | Q9: ServiceK | R9: kWhHP | S9: kWhHS | T9: kWhHO | U9: kWhLP | V9: kWhLS | W9: kWhLO | X9: DxNDC Energy | Y9: Reliability | Z9: Service Energy | AA9: kvarh | AB9: Enviro Levy | AC9: Tx NAC | AD9: Dx NAC | AE9: Dx NDC | AF9: NAC POD | AG9: EDC H | AH9: EDC L | AI9: Days | AJ9: kWhRBlock1 | AK9: kWhRBlock2 | AL9: kWhRBlock3 | AM9: kWhRBlock4 | AN9: SubRuralNetwork | AO9: SubUrbLowVolt | AP9: SubElecNetwork | AQ9: SubAfford | AR9: NAC | AS9: ERS | AT9: Maint charge | AU9: Energy charge R/100W/mth | AV9: Dx NAC for Generators | AW9: Gen Tx Reliab | AX9: Tx NAC for Generators | AY9: Gen Dx Reliability | AZ9: kWhHP | BA9: kWhHS | BB9: kWhHO | BC9: kWhLP | BD9: kWhLS | BE9: kWhLO
B10: GU01 | C10: GU01N | D10: Genflex urban | E10: Non-municipal | F10: Eskom urban HV & MV customers consuming and exporting energy | G10: Megaflex, WEPS excluding losses and Gen-TUOS and Gen-DUOS urban | H10: Applicable | I10: Applicable | J10: Applicable | K10: Applicable | L10: Applicable | M10: Applicable | N10: Applicable | O10: Applicable | P10: Applicable | Q10: Applicable | R10: Applicable | S10: Applicable | T10: Applicable | U10: Applicable | V10: Applicable | W10: Applicable | X10: n/a | Y10: Applicable | Z10: n/a | AA10: Applicable | AB10: n/a | AC10: Applicable | AD10: Applicable | AE10: Applicable | AF10: n/a | AG10: n/a | AH10: n/a | AI10: Applicable | AJ10: n/a | AK10: n/a | AL10: n/a | AM10: n/a | AN10: n/a | AO10: n/a | AP10: n/a | AQ10: Applicable | AR10: n/a | AS10: Applicable | AT10: n/a | AU10: n/a | AV10: Applicable | AW10: Applicable | AX10: Applicable | AY10: Applicable | AZ10: Applicable | BA10: Applicable | BB10: Applicable | BC10: Applicable | BD10: Applicable | BE10: Applicable
B11: GR01 | C11: GR01N | D11: Genflex rural | E11: Non-municipal | F11: Eskom rural HV & MV customers consuming and exporting energy | G11: Ruraflex and Gen DUOS rural | H11: Applicable | I11: Applicable | J11: Applicable | K11: Applicable | L11: Applicable | M11: Applicable | N11: Applicable | O11: Applicable | P11: Applicable | Q11: Applicable | R11: Applicable | S11: Applicable | T11: Applicable | U11: Applicable | V11: Applicable | W11: Applicable | X11: Applicable | Y11: Applicable | Z11: n/a | AA11: Applicable | AB11: n/a | AC11: n/a | AD11: Applicable | AE11: n/a | AF11: n/a | AG11: n/a | AH11: n/a | AI11: Applicable | AJ11: n/a | AK11: n/a | AL11: n/a | AM11: n/a | AN11: n/a | AO11: n/a | AP11: n/a | AQ11: n/a | AR11: n/a | AS11: n/a | AT11: n/a | AU11: n/a | AV11: Applicable | AW11: n/a | AX11: n/a | AY11: Applicable | AZ11: n/a | BA11: n/a | BB11: n/a | BC11: n/a | BD11: n/a | BE11: n/a
B12: NLWheelAdj04 | C12: NLWheelAdj04N | D12: Gen-wheeling | E12: Non-municipal | F12: Customers receiving energy from a non-Eskom generator located at a different area from customer's plant | G12: WEPS non-Munic | H12: Applicable | I12: Applicable | J12: Applicable | K12: Applicable | L12: Applicable | M12: Applicable | N12: Applicable | O12: Applicable | P12: Applicable | Q12: Applicable | R12: Applicable | S12: Applicable | T12: Applicable | U12: Applicable | V12: Applicable | W12: Applicable | X12: n/a | Y12: n/a | Z12: n/a | AA12: n/a | AB12: n/a | AC12: n/a | AD12: n/a | AE12: n/a | AF12: n/a | AG12: n/a | AH12: n/a | AI12: Applicable | AJ12: n/a | AK12: n/a | AL12: n/a | AM12: n/a | AN12: n/a | AO12: n/a | AP12: n/a | AQ12: Applicable | AR12: n/a | AS12: n/a | AT12: n/a | AU12: n/a | AV12: n/a | AW12: n/a | AX12: n/a
B13: NLPurchAdj04 | C13: NLPurchAdj04N | D13: Gen-purchase | E13: Non-municipal | F13: Generator selling energy to Eskom but energy does not come into Eskom's network but used by customer on site | G13: WEPS non-Munic | H13: Applicable | I13: Applicable | J13: Applicable | K13: Applicable | L13: Applicable | M13: Applicable | N13: Applicable | O13: Applicable | P13: Applicable | Q13: Applicable | R13: Applicable | S13: Applicable | T13: Applicable | U13: Applicable | V13: Applicable | W13: Applicable | X13: n/a | Y13: n/a | Z13: n/a | AA13: n/a | AB13: n/a | AC13: n/a | AD13: n/a | AE13: n/a | AF13: n/a | AG13: n/a | AH13: n/a | AI13: Applicable | AJ13: n/a | AK13: n/a | AL13: n/a | AM13: n/a | AN13: n/a | AO13: n/a | AP13: n/a | AQ13: Applicable | AR13: n/a | AS13: n/a | AT13: n/a | AU13: n/a | AV13: n/a | AW13: n/a | AX13: n/a
B14: NLWheelAdjR04 | C14: NLWheelAdjR04 | D14: Gen-wheeling rural | E14: Non-municipal | F14: Customers receiving energy from a non-Eskom generator located at a different area from customer's plant | G14: WEPS non-Munic | H14: Applicable | I14: Applicable | J14: Applicable | K14: Applicable | L14: Applicable | M14: Applicable | N14: Applicable | O14: Applicable | P14: Applicable | Q14: Applicable | R14: Applicable | S14: Applicable | T14: Applicable | U14: Applicable | V14: Applicable | W14: Applicable | X14: n/a | Y14: n/a | Z14: n/a | AA14: n/a | AB14: n/a | AC14: n/a | AD14: n/a | AE14: n/a | AF14: n/a | AG14: n/a | AH14: n/a | AI14: Applicable | AJ14: n/a | AK14: n/a | AL14: n/a | AM14: n/a | AN14: n/a | AO14: n/a | AP14: n/a | AQ14: n/a | AR14: n/a | AS14: n/a | AT14: n/a | AU14: n/a | AV14: n/a | AW14: n/a | AX14: n/a
B15: NLPurchAdjR04 | C15: NLPurchAdjR04 | D15: Gen-purchase rural | E15: Non-municipal | F15: Generator selling energy to Eskom but energy does not come into Eskom's network but used by customer on site | G15: WEPS non-Munic | H15: Applicable | I15: Applicable | J15: Applicable | K15: Applicable | L15: Applicable | M15: Applicable | N15: Applicable | O15: Applicable | P15: Applicable | Q15: Applicable | R15: Applicable | S15: Applicable | T15: Applicable | U15: Applicable | V15: Applicable | W15: Applicable | X15: n/a | Y15: n/a | Z15: n/a | AA15: n/a | AB15: n/a | AC15: n/a | AD15: n/a | AE15: n/a | AF15: n/a | AG15: n/a | AH15: n/a | AI15: Applicable | AJ15: n/a | AK15: n/a | AL15: n/a | AM15: n/a | AN15: n/a | AO15: n/a | AP15: n/a | AQ15: n/a | AR15: n/a | AS15: n/a | AT15: n/a | AU15: n/a | AV15: n/a | AW15: n/a | AX15: n/a
B16: NLWheelAdj04 | C16: NLWheelAdj04Y | D16: Gen-wheeling | E16: Municipal | F16: Customers receiving energy from a non-Eskom generator located at a different area from customer's plant thorough Municipality network | G16: WEPS munic | H16: Applicable | I16: Applicable | J16: Applicable | K16: Applicable | L16: Applicable | M16: Applicable | N16: Applicable | O16: Applicable | P16: Applicable | Q16: Applicable | R16: Applicable | S16: Applicable | T16: Applicable | U16: Applicable | V16: Applicable | W16: Applicable | X16: n/a | Y16: n/a | Z16: n/a | AA16: n/a | AB16: n/a | AC16: n/a | AD16: n/a | AE16: n/a | AF16: n/a | AG16: n/a | AH16: n/a | AI16: Applicable | AJ16: n/a | AK16: n/a | AL16: n/a | AM16: n/a | AN16: n/a | AO16: n/a | AP16: n/a | AQ16: n/a | AR16: n/a | AS16: n/a | AT16: n/a | AU16: n/a | AV16: n/a | AW16: n/a | AX16: n/a
B17: NLPurchAdj04 | C17: NLPurchAdj04Y | D17: Gen-purchase | E17: Municipal | F17: Generator in Munic area selling energy to Eskom but energy does not come into Eskom's network but used by Municipality | G17: WEPS munic | H17: Applicable | I17: Applicable | J17: Applicable | K17: Applicable | L17: Applicable | M17: Applicable | N17: Applicable | O17: Applicable | P17: Applicable | Q17: Applicable | R17: Applicable | S17: Applicable | T17: Applicable | U17: Applicable | V17: Applicable | W17: Applicable | X17: n/a | Y17: n/a | Z17: n/a | AA17: n/a | AB17: n/a | AC17: n/a | AD17: n/a | AE17: n/a | AF17: n/a | AG17: n/a | AH17: n/a | AI17: Applicable | AJ17: n/a | AK17: n/a | AL17: n/a | AM17: n/a | AN17: n/a | AO17: n/a | AP17: n/a | AQ17: n/a | AR17: n/a | AS17: n/a | AT17: n/a | AU17: n/a | AV17: n/a | AW17: n/a | AX17: n/a
B18: NLWheelAdjR04 | C18: NLWheelAdjR04 | D18: Gen-wheeling rural | E18: Municipal | F18: Customers receiving energy from a non-Eskom generator located at a different area from customer's plant thorough Municipality network | G18: WEPS munic | H18: Applicable | I18: Applicable | J18: Applicable | K18: Applicable | L18: Applicable | M18: Applicable | N18: Applicable | O18: Applicable | P18: Applicable | Q18: Applicable | R18: Applicable | S18: Applicable | T18: Applicable | U18: Applicable | V18: Applicable | W18: Applicable | X18: n/a | Y18: n/a | Z18: n/a | AA18: n/a | AB18: n/a | AC18: n/a | AD18: n/a | AE18: n/a | AF18: n/a | AG18: n/a | AH18: n/a | AI18: Applicable | AJ18: n/a | AK18: n/a | AL18: n/a | AM18: n/a | AN18: n/a | AO18: n/a | AP18: n/a | AQ18: n/a | AR18: n/a | AS18: n/a | AT18: n/a | AU18: n/a | AV18: n/a | AW18: n/a | AX18: n/a
B19: NLPurchAdjR04 | C19: NLPurchAdjR04 | D19: Gen-purchase rural | E19: Municipal | F19: Generator in Munic area selling energy to Eskom but energy does not come into Eskom's network but used by Municipality | G19: WEPS munic | H19: Applicable | I19: Applicable | J19: Applicable | K19: Applicable | L19: Applicable | M19: Applicable | N19: Applicable | O19: Applicable | P19: Applicable | Q19: Applicable | R19: Applicable | S19: Applicable | T19: Applicable | U19: Applicable | V19: Applicable | W19: Applicable | X19: n/a | Y19: n/a | Z19: n/a | AA19: n/a | AB19: n/a | AC19: n/a | AD19: n/a | AE19: n/a | AF19: n/a | AG19: n/a | AH19: n/a | AI19: Applicable | AJ19: n/a | AK19: n/a | AL19: n/a | AM19: n/a | AN19: n/a | AO19: n/a | AP19: n/a | AQ19: n/a | AR19: n/a | AS19: n/a | AT19: n/a | AU19: n/a | AV19: n/a | AW19: n/a | AX19: n/a
B20: NLUrbOffset01 | C20: NLUrbOffset01N | D20: Gen-offset urban | E20: Non-municipal | F20: Customer with own generator on site, but at times exports energy to Eskom network | G20: Megaflex | H20: Applicable | I20: Applicable | J20: Applicable | K20: Applicable | L20: Applicable | M20: Applicable | N20: Applicable | O20: Applicable | P20: Applicable | Q20: Applicable | R20: Applicable | S20: Applicable | T20: Applicable | U20: Applicable | V20: Applicable | W20: Applicable | X20: n/a | Y20: n/a | Z20: n/a | AA20: n/a | AB20: n/a | AC20: n/a | AD20: n/a | AE20: n/a | AF20: n/a | AG20: n/a | AH20: n/a | AI20: Applicable | AJ20: n/a | AK20: n/a | AL20: n/a | AM20: n/a | AN20: n/a | AO20: n/a | AP20: n/a | AQ20: Applicable | AR20: n/a | AS20: n/a | AT20: n/a | AU20: n/a | AV20: n/a | AW20: n/a | AX20: n/a
B21: NLRurOffset01 | C21: NLRurOffset01N | D21: Gen-offset rural | E21: Non-municipal | F21: Customer with own generator on site, but at times exports energy to Eskom network | G21: Ruraflex | H21: Applicable | I21: Applicable | J21: Applicable | K21: Applicable | L21: Applicable | M21: Applicable | N21: Applicable | O21: Applicable | P21: Applicable | Q21: Applicable | R21: Applicable | S21: Applicable | T21: Applicable | U21: Applicable | V21: Applicable | W21: Applicable | X21: n/a | Y21: n/a | Z21: n/a | AA21: n/a | AB21: n/a | AC21: n/a | AD21: n/a | AE21: n/a | AF21: n/a | AG21: n/a | AH21: n/a | AI21: Applicable | AJ21: n/a | AK21: n/a | AL21: n/a | AM21: n/a | AN21: n/a | AO21: n/a | AP21: n/a | AQ21: n/a | AR21: n/a | AS21: n/a | AT21: n/a | AU21: n/a | AV21: n/a | AW21: n/a | AX21: n/a | AY21: n/a
B22: NEGenDUoSU01 | C22: NEGenDUoSU01 | D22: Gen-DUoS urban | E22: Non-municipal | F22: Non-Eskom urban generators for distribution use of system charges | G22: WEPS, UOS urban for Dx | H22: Applicable | I22: Applicable | J22: Applicable | K22: Applicable | L22: Applicable | M22: Applicable | N22: Applicable | O22: Applicable | P22: Applicable | Q22: Applicable | R22: Applicable | S22: Applicable | T22: Applicable | U22: Applicable | V22: Applicable | W22: Applicable | X22: n/a | Y22: n/a | Z22: n/a | AA22: n/a | AB22: n/a | AC22: n/a | AD22: n/a | AE22: n/a | AF22: n/a | AG22: n/a | AH22: n/a | AI22: Applicable | AJ22: n/a | AK22: n/a | AL22: n/a | AM22: n/a | AN22: n/a | AO22: n/a | AP22: n/a | AQ22: n/a | AR22: n/a | AS22: n/a | AT22: n/a | AU22: n/a | AV22: Applicable | AW22: n/a | AX22: n/a | AY22: Applicable
B23: NEGenDUoSR01 | C23: NEGenDUoSR01 | D23: Gen-DUoS rural | E23: Non-municipal | F23: Non-Eskom rural generators for distribution use of system charges | G23: WEPS, UOS rural for Dx | H23: Applicable | I23: Applicable | J23: Applicable | K23: Applicable | L23: Applicable | M23: Applicable | N23: Applicable | O23: Applicable | P23: Applicable | Q23: Applicable | R23: Applicable | S23: Applicable | T23: Applicable | U23: Applicable | V23: Applicable | W23: Applicable | X23: n/a | Y23: n/a | Z23: n/a | AA23: n/a | AB23: n/a | AC23: n/a | AD23: n/a | AE23: n/a | AF23: n/a | AG23: n/a | AH23: n/a | AI23: Applicable | AJ23: n/a | AK23: n/a | AL23: n/a | AM23: n/a | AN23: n/a | AO23: n/a | AP23: n/a | AQ23: n/a | AR23: n/a | AS23: n/a | AT23: n/a | AU23: n/a | AV23: Applicable | AW23: n/a | AX23: n/a | AY23: Applicable
B24: GenTUoSCape4 | C24: GenTUoSCape4 | D24: Gen-TUOS | E24: Non-municipal | F24: Cape, Non-Eskom generators for Transmission use of system charges | G24: WEPS, TUOS | H24: Applicable | I24: Applicable | J24: Applicable | K24: Applicable | L24: Applicable | M24: Applicable | N24: Applicable | O24: Applicable | P24: Applicable | Q24: Applicable | R24: Applicable | S24: Applicable | T24: Applicable | U24: Applicable | V24: Applicable | W24: Applicable | X24: n/a | Y24: n/a | Z24: n/a | AA24: n/a | AB24: n/a | AC24: n/a | AD24: n/a | AE24: n/a | AF24: n/a | AG24: n/a | AH24: n/a | AI24: Applicable | AJ24: n/a | AK24: n/a | AL24: n/a | AM24: n/a | AN24: n/a | AO24: n/a | AP24: n/a | AQ24: n/a | AR24: n/a | AS24: n/a | AT24: n/a | AU24: n/a | AV24: n/a | AW24: Applicable | AX24: n/a
B25: GenTUoSKaroo4 | C25: GenTUoSKaroo4 | D25: Gen-TUOS | E25: Non-municipal | F25: Karoo, Non-Eskom generators for Transmission use of system charges | G25: WEPS, TUOS | H25: Applicable | I25: Applicable | J25: Applicable | K25: Applicable | L25: Applicable | M25: Applicable | N25: Applicable | O25: Applicable | P25: Applicable | Q25: Applicable | R25: Applicable | S25: Applicable | T25: Applicable | U25: Applicable | V25: Applicable | W25: Applicable | X25: n/a | Y25: n/a | Z25: n/a | AA25: n/a | AB25: n/a | AC25: n/a | AD25: n/a | AE25: n/a | AF25: n/a | AG25: n/a | AH25: n/a | AI25: Applicable | AJ25: n/a | AK25: n/a | AL25: n/a | AM25: n/a | AN25: n/a | AO25: n/a | AP25: n/a | AQ25: n/a | AR25: n/a | AS25: n/a | AT25: n/a | AU25: n/a | AV25: n/a | AW25: Applicable | AX25: n/a
B26: GenTUoSKwazulu-Natal4 | C26: GenTUoSKwazulu-Natal4 | D26: Gen-TUOS | E26: Non-municipal | F26: Kwazulu-Natal, Non-Eskom generators for Transmission use of system charges | G26: WEPS, TUOS | H26: Applicable | I26: Applicable | J26: Applicable | K26: Applicable | L26: Applicable | M26: Applicable | N26: Applicable | O26: Applicable | P26: Applicable | Q26: Applicable | R26: Applicable | S26: Applicable | T26: Applicable | U26: Applicable | V26: Applicable | W26: Applicable | X26: n/a | Y26: n/a | Z26: n/a | AA26: n/a | AB26: n/a | AC26: n/a | AD26: n/a | AE26: n/a | AF26: n/a | AG26: n/a | AH26: n/a | AI26: Applicable | AJ26: n/a | AK26: n/a | AL26: n/a | AM26: n/a | AN26: n/a | AO26: n/a | AP26: n/a | AQ26: n/a | AR26: n/a | AS26: n/a | AT26: n/a | AU26: n/a | AV26: n/a | AW26: Applicable | AX26: Applicable
B27: GenTUoSVaal4 | C27: GenTUoSVaal4 | D27: Gen-TUOS | E27: Non-municipal | F27: Vaal, Non-Eskom generators for Transmission use of system charges | G27: WEPS, TUOS | H27: Applicable | I27: Applicable | J27: Applicable | K27: Applicable | L27: Applicable | M27: Applicable | N27: Applicable | O27: Applicable | P27: Applicable | Q27: Applicable | R27: Applicable | S27: Applicable | T27: Applicable | U27: Applicable | V27: Applicable | W27: Applicable | X27: n/a | Y27: n/a | Z27: n/a | AA27: n/a | AB27: n/a | AC27: n/a | AD27: n/a | AE27: n/a | AF27: n/a | AG27: n/a | AH27: n/a | AI27: Applicable | AJ27: n/a | AK27: n/a | AL27: n/a | AM27: n/a | AN27: n/a | AO27: n/a | AP27: n/a | AQ27: n/a | AR27: n/a | AS27: n/a | AT27: n/a | AU27: n/a | AV27: n/a | AW27: Applicable | AX27: Applicable
B28: GenTUoSWaterburg4 | C28: GenTUoSWaterburg4 | D28: Gen-TUOS | E28: Non-municipal | F28: Waterburg, Non-Eskom generators for Transmission use of system charges | G28: WEPS, TUOS | H28: Applicable | I28: Applicable | J28: Applicable | K28: Applicable | L28: Applicable | M28: Applicable | N28: Applicable | O28: Applicable | P28: Applicable | Q28: Applicable | R28: Applicable | S28: Applicable | T28: Applicable | U28: Applicable | V28: Applicable | W28: Applicable | X28: n/a | Y28: n/a | Z28: n/a | AA28: n/a | AB28: n/a | AC28: n/a | AD28: n/a | AE28: n/a | AF28: n/a | AG28: n/a | AH28: n/a | AI28: Applicable | AJ28: n/a | AK28: n/a | AL28: n/a | AM28: n/a | AN28: n/a | AO28: n/a | AP28: n/a | AQ28: n/a | AR28: n/a | AS28: n/a | AT28: n/a | AU28: n/a | AV28: n/a | AW28: Applicable | AX28: Applicable
B29: GenTUoSMpumalanga4 | C29: GenTUoSMpumalanga4 | D29: Gen-TUOS | E29: Non-municipal | F29: Mpumalanga, Non-Eskom generators for Transmission use of system charges | G29: WEPS, TUOS | H29: Applicable | I29: Applicable | J29: Applicable | K29: Applicable | L29: Applicable | M29: Applicable | N29: Applicable | O29: Applicable | P29: Applicable | Q29: Applicable | R29: Applicable | S29: Applicable | T29: Applicable | U29: Applicable | V29: Applicable | W29: Applicable | X29: n/a | Y29: n/a | Z29: n/a | AA29: n/a | AB29: n/a | AC29: n/a | AD29: n/a | AE29: n/a | AF29: n/a | AG29: n/a | AH29: n/a | AI29: Applicable | AJ29: n/a | AK29: n/a | AL29: n/a | AM29: n/a | AN29: n/a | AO29: n/a | AP29: n/a | AQ29: n/a | AR29: n/a | AS29: n/a | AT29: n/a | AU29: n/a | AV29: n/a | AW29: Applicable | AX29: Applicable
B30: TUOS > 132kV04 | C30: TUOS > 132kV04 | D30: TUOS > 132kV | E30: Non-municipal | F30: Eskom loads at >132kV transmission use of system charges | G30: WEPS | H30: n/a | I30: n/a | J30: n/a | K30: n/a | L30: n/a | M30: n/a | N30: n/a | O30: n/a | P30: n/a | Q30: n/a | R30: n/a | S30: n/a | T30: n/a | U30: n/a | V30: n/a | W30: n/a | X30: n/a | Y30: n/a | Z30: n/a | AA30: n/a | AB30: n/a | AC30: Applicable | AD30: n/a | AE30: n/a | AF30: n/a | AG30: n/a | AH30: n/a | AI30: Applicable | AJ30: n/a | AK30: n/a | AL30: n/a | AM30: n/a | AN30: n/a | AO30: n/a | AP30: n/a | AQ30: n/a | AR30: n/a | AS30: n/a | AT30: n/a | AU30: n/a | AV30: n/a | AW30: n/a | AX30: n/a

Sheet Reconciliaton
B2: Generator reconciliations
C4: Wheeling | G4: Energy add back
C5: Tariff name | D5: Tariff rate | E5: Source | G5: Tariff name | H5: Tariff rate | I5: Source
C6: Gen-wheeling non Munic urban | D6: Energy: | E6: WEPS energy rate excluding losses | G6: Gen-purchase- urban | H6: Energy: | I6: WEPS energy rate excluding losses
D7: Affordability subsidy: | E7: same as WEPS | H7: Affordability subsidy: | I7: same as WEPS
D8: Admin charge: | E8: same as WEPS | H8: Admin charge: | I8: same as WEPS
D9: Other components: | E9: not applicable | H9: Other components: | I9: not applicable
C10: Gen-wheeling non Munic rural | D10: Energy: | E10: WEPS energy rate excluding losses | G10: Gen-purchase-rural | H10: Energy: | I10: WEPS energy rate excluding losses
D11: Admin charge: | E11: same as Ruraflex | H11: Admin charge: | I11: same as Ruraflex
D12: Other components: | E12: not applicable | H12: Other components: | I12: not applicable
C13: Gen-wheeling Munic urban | D13: Energy (Local): | E13: WEPS energy rate excluding losses (Local) | G13: Gen-purchase Munic urban | H13: Energy: | I13: WEPS energy rate excluding losses(Local)
D14: Admin charge: | E14: same as WEPS (local) | H14: Admin charge: | I14: same as WEPS (Local)
D15: Other components: | E15: not applicable | H15: Other components: | I15: not applicable
C16: Gen-wheeling Munic rural | D16: Energy (Local): | E16: WEPS energy rate excluding losses (Local) | G16: Gen-purchase Munic rural | H16: Energy: | I16: WEPS energy rate excluding losses(Local)
D17: Admin charge: | E17: same as same as Ruraflex (local) | H17: Admin charge: | I17: same as Ruraflex (Local)
D18: Other components: | E18: not applicable | H18: Other components: | I18: not applicable
C21: Offset
C22: Tariff name | D22: Tariff rate | E22: Source
C23: Gen-offset urban | D23: Energy: | E23: WEPS energy rate including losses (per Tx and voltage zone)
D24: Affordability subsidy: | E24: same as WEPS
D25: Admin charge: | E25: same as WEPS
D26: Other components: | E26: not applicable
C27: Gen-offset rural | D27: Energy: | E27: Ruraflex energy rate (per Tx and voltage zone)
D28: Affordability subsidy: | E28: same as WEPS
D29: Admin charge: | E29: same as WEPS
D30: Other components: | E30: not applicable
